Capital or Revenue,Directorate,SERCOP High Level Category,SERCOP Detailed Category,Transaction Number,Date,Service Area,Expenses Type,Amount,Supplier Name
Revenue,Adult Services,Adult Social Care,Central Codes (to be reallocated),5105661562,02.02.2018,Adelaide Resource Centre,Maintenance of Operational Equipment,354.39,A & M APPLIANCE CARE
Revenue,Adult Services,Adult Social Care,Central Codes (to be reallocated),5105662319,14.02.2018,Gouldings Resource Centre,Consumable Cleaning Materials,104.00,A & M APPLIANCE CARE
Revenue,Place,Fire & Rescue Services,Fire fighting and Rescue Operations,5105662317,21.02.2018,Business Support  - Fire,Property Services - Day to day Maintenance,107.48,A & M APPLIANCE CARE
Revenue,Place,Cultural and Related Services,Open Spaces,5105664163,28.02.2018,IW Biological Record Centre,Consultants Fees,220.00,REDACTED PERSONAL DATA
Revenue,Place,Environmental & Regulatory Services,"Cemetery, Cremation & Mortuary Services",5105664181,28.02.2018,Cemeteries Administration,Grounds Maintenance,"1,570.00",A GUSTAR T/A IVY TREE CARE
Revenue,Place,Cultural and Related Services,Open Spaces,5105664164,28.02.2018,Tree Felling / Replacement,Payment to Private Contractors,270.00,A GUSTAR T/A IVY TREE CARE
Revenue,Place,Cultural and Related Services,Open Spaces,5105664182,28.02.2018,Tree Felling / Replacement,Payment to Private Contractors,290.00,A GUSTAR T/A IVY TREE CARE
Revenue,Place,Cultural and Related Services,Open Spaces,5105661519,02.02.2018,John O�Conner Grounds Maintenance Contract,Payment to Private Contractors,135.00,A GUSTAR T/A IVY TREE CARE
Revenue,Place,Environmental & Regulatory Services,"Cemetery, Cremation & Mortuary Services",5105662299,14.02.2018,Crematorium,Grounds Maintenance,67.50,A GUSTAR T/A IVY TREE CARE
Revenue,Resources,Central Services,Support Services,5105662366,14.02.2018,Litigation Costs,Legal Fees - Other Parties,400.00,"COLLEGE CHAMBERS, BARRISTERS"
Revenue,Resources,Central Services,Support Services,5105662702,16.02.2018,Litigation Costs,Legal Fees - Other Parties,750.00,"COLLEGE CHAMBERS, BARRISTERS"
Revenue,Resources,Central Services,Support Services,5105662707,16.02.2018,Litigation Costs,Legal Fees - Other Parties,625.00,"COLLEGE CHAMBERS, BARRISTERS"
Revenue,Childrens Services,Children's & Education Services,Other Education and Community Budget,5105663685,28.02.2018,Home to School SEN Transport (LA),Taxis - Contract Hire,520.00,AMAR CABS OF NEWPORT
Revenue,Childrens Services,Children's & Education Services,Other Education and Community Budget,5105662718,16.02.2018,Home to School SEN Transport (LA),Taxis - Contract Hire,620.00,AMAR EXCLUSIVES
Revenue,Childrens Services,Adult Social Care,Information & Early Intervention,5105663261,21.02.2018,ASC Trg Improved Better Care Fund,Training,"4,200.00",REDACTED PERSONAL DATA
Revenue,Childrens Services,Children's & Education Services,Other Education and Community Budget,5105664018,28.02.2018,Home to School SEN Transport (LA),Taxis - Contract Hire,462.00,BEACON TAXIS
Revenue,Regeneration,Central Services,Support Services,5105664111,28.02.2018,"Westridge, Ryde",Grounds Maintenance,208.00,C & J GROUND MAINTENANCE
Revenue,Place,Cultural and Related Services,Culture and Heritage,5105664174,28.02.2018,Cothey Bottom Store RYDE,Property Services - Planned Maintenance,69.50,C & J GROUND MAINTENANCE
Revenue,Place,Cultural and Related Services,Culture and Heritage,5105664162,28.02.2018,Cothey Bottom Store RYDE,Property Services - Planned Maintenance,220.00,C & J GROUND MAINTENANCE
Revenue,Regeneration,Planning services,Business Support,5105664161,28.02.2018,Somerton Industrial Park,Grounds Maintenance,500.00,C & J GROUND MAINTENANCE
Revenue,Regeneration,Planning services,Business Support,5105664175,28.02.2018,Properties Industrial Estates,Grounds Maintenance,375.00,C & J GROUND MAINTENANCE
Revenue,Childrens Services,Children's & Education Services,Safeguarding Children/Young Peoples Svs,5105658765,21.02.2018,Training - Childrens,Training,250.00,REDACTED PERSONAL DATA
Revenue,Childrens Services,Children's & Education Services,Other Education and Community Budget,5105658765,21.02.2018,Specialist Cross-Council Training,Training,250.00,REDACTED PERSONAL DATA
Revenue,Childrens Services,Children's & Education Services,Other Education and Community Budget,5105658765,21.02.2018,Specialist Cross-Council Training,Training,250.00,REDACTED PERSONAL DATA
Revenue,Childrens Services,Children's & Education Services,Other Education and Community Budget,5105664038,28.02.2018,Home to School Mainstream Transport,Taxis - Contract Hire,432.00,MICK'S TAXI
Revenue,Childrens Services,Children's & Education Services,Other Education and Community Budget,5105663922,28.02.2018,Home to College Post 16 Transport,Taxis - Contract Hire,72.00,CAROLS TAXIS
Revenue,Childrens Services,Children's & Education Services,Other Education and Community Budget,5105663926,28.02.2018,Home to College Post 16 Transport,Taxis - Contract Hire,700.00,CAROLS TAXIS
Revenue,Childrens Services,Children's & Education Services,Other Education and Community Budget,5105663921,28.02.2018,Home to College Post 16 Transport,Taxis - Contract Hire,168.00,CAROLS TAXIS
Revenue,Childrens Services,Children's & Education Services,Other Education and Community Budget,5105663273,21.02.2018,Home to School SEN Transport (LA),Taxis - Contract Hire,765.00,CLARES CABS
Revenue,Place,Cultural and Related Services,Open Spaces,5105663833,28.02.2018,Other Grounds Maintenance,Payment to Private Contractors,460.00,C N SERVICES
Revenue,Place,Highways and Transport Services,Parking Services,5105662419,14.02.2018,Parking Maintenance Off Street,Payment to Private Contractors,"1,278.85",C N SERVICES
Revenue,Place,Cultural and Related Services,Service Management and Support Services,5105662419,14.02.2018,Leisure Management & Admin,Professional Services,"1,022.85",C N SERVICES
Revenue,Place,Cultural and Related Services,Open Spaces,5105663834,28.02.2018,Play Areas Health & Safety work,Payment to Private Contractors,964.32,C N SERVICES
Revenue,Place,Cultural and Related Services,Open Spaces,5105663838,28.02.2018,Allotments,Payment to Private Contractors,350.00,C N SERVICES
Revenue,Place,Cultural and Related Services,Open Spaces,5105663835,28.02.2018,Public Shelters - Ryde,Payment to Private Contractors,144.75,C N SERVICES
Revenue,Place,Cultural and Related Services,Open Spaces,5105663744,28.02.2018,Public Seats  (incl.Dedicated Seats),Payment to Private Contractors,243.19,C N SERVICES
Revenue,Place,Cultural and Related Services,Recreation and Sport,5105663837,28.02.2018,Beach Safety & Inspection / Beach Awards,Payment to Private Contractors,408.50,C N SERVICES
Revenue,Place,Environmental & Regulatory Services,Service Management and Support Services,5105663269,21.02.2018,Environment officers,Payment to Private Contractors,977.50,REDACTED PERSONAL DATA
Revenue,Resources,Central Services,Support Services,5105661471,02.02.2018,Litigation Costs,Legal Fees - Other Parties,"1,000.00",REDACTED PERSONAL DATA
Revenue,Resources,Central Services,Support Services,5105660198,07.02.2018,Litigation Costs,Legal Fees - Other Parties,"1,000.00",REDACTED PERSONAL DATA
Revenue,Resources,Central Services,Support Services,5105661872,07.02.2018,Litigation Costs,Legal Fees - Other Parties,"-1,000.00",REDACTED PERSONAL DATA
Revenue,Childrens Services,Children's & Education Services,Family Support Services,5105662799,16.02.2018,S17 Child Protection,Support Children,"1,100.00",REDACTED PERSONAL DATA
Revenue,Resources,Central Services,Support Services,5105662289,16.02.2018,Human Resources,Consultants Fees,"2,275.00",FRAN OSMAN-NEWBURY LTD
Revenue,Adult Services,Adult Social Care,Social Care Activities,5105662271,14.02.2018,Mental Health Team,Consultants Fees,650.00,FRAN OSMAN-NEWBURY LTD
Revenue,Place,Cultural and Related Services,Recreation and Sport,5105662201,09.02.2018,The Heights,Stock Purchases,24.79,FULL SPREAD LIMITED
Revenue,Place,Cultural and Related Services,Recreation and Sport,5105663933,28.02.2018,The Heights,Stock Purchases,40.53,FULL SPREAD LIMITED
Revenue,Childrens Services,Children's & Education Services,Safeguarding Children/Young Peoples Svs,5105663749,28.02.2018,Court Work & Consultancy Services,Professional Services,436.96,GARY TAYLOR ASSOCIATES LIMITED
Revenue,Childrens Services,Children's & Education Services,Family Support Services,5105663934,28.02.2018,S17 Child Protection,Charges from Independent Providers,195.00,HEALING SANDS
Revenue,Childrens Services,Children's & Education Services,Other Education and Community Budget,5105662416,14.02.2018,Home to School Mainstream Transport,Taxis - Contract Hire,"1,000.00",HAYLES TAXIS
Revenue,Childrens Services,Children's & Education Services,Other Education and Community Budget,5105662489,16.02.2018,Home to College Post 16 Transport,Taxis - Contract Hire,220.00,HAYLES TAXIS
Revenue,Childrens Services,Children's & Education Services,Other Education and Community Budget,5105662488,16.02.2018,Home to College Post 16 Transport,Taxis - Contract Hire,760.00,HAYLES TAXIS
Revenue,Childrens Services,Children's & Education Services,Other Education and Community Budget,5105662477,14.02.2018,Home to School SEN Transport (LA),Taxis - Contract Hire,797.50,HAYLES TAXIS
Revenue,Regeneration,Planning services,Economic Development,5105662831,16.02.2018,One Public Estate,Consultants Fees,"4,478.90",INNER CIRCLE CONSULTING LTD
Revenue,Regeneration,Planning services,Economic Development,5105662723,16.02.2018,BAE Systems Office Block Regeneration,Consultants Fees,170.00,ISLAND HIGHWAY & TRANSPORT
Capital,Place,Capital,Capital,5105659513,07.02.2018,Bus Infrastructure,External Design and Supervision Fees,200.00,ISLAND HIGHWAY & TRANSPORT
Capital,Adult Services,Capital,Capital,5105662829,16.02.2018,S106 Capital Projects,External Design and Supervision Fees,400.00,ISLAND HIGHWAY & TRANSPORT
Revenue,Resources,Central Services,Support Services,5105663198,28.02.2018,ICT Contracts,Computer Maintenance,300.00,REDACTED PERSONAL DATA
Revenue,Resources,Central Services,Support Services,5105663347,21.02.2018,Litigation Costs,Legal Fees - Other Parties,400.00,"COLLEGE CHAMBERS, BARRISTERS"
Revenue,Resources,Central Services,Support Services,5105663297,21.02.2018,Litigation Costs,Legal Fees - Other Parties,400.00,"COLLEGE CHAMBERS, BARRISTERS"
Revenue,Adult Services,Adult Social Care,Commissioning & Service Delivery,5105663694,28.02.2018,Learning Disability Homes Management & Admin,Consultants Fees,323.40,JAYNE KILGALLEN INTERIM SOLUTIONS
Revenue,Adult Services,Adult Social Care,Commissioning & Service Delivery,5105663694,28.02.2018,Learning Disability Homes Management & Admin,Consultants Fees,"3,187.50",JAYNE KILGALLEN INTERIM SOLUTIONS
Revenue,Place,Cultural and Related Services,Recreation and Sport,5105661731,07.02.2018,Play Development,Operational Equipment,200.00,REDACTED PERSONAL DATA
Revenue,Adult Services,Adult Social Care,Central Codes (to be reallocated),5105662118,09.02.2018,Community Outreach,Training,60.00,JOHN MARSH DRIVING INSTRUCTOR
Revenue,Childrens Services,Children's & Education Services,Other Education and Community Budget,5105663598,23.02.2018,Home to College Post 16 Transport,Taxis - Contract Hire,900.00,REDACTED PERSONAL DATA
Revenue,Childrens Services,Children's & Education Services,Other Education and Community Budget,5105663596,23.02.2018,Home to College Post 16 Transport,Taxis - Contract Hire,720.00,REDACTED PERSONAL DATA
Revenue,Childrens Services,Children's & Education Services,Other Education and Community Budget,5105663597,23.02.2018,Home to College Post 16 Transport,Taxis - Contract Hire,"1,752.00",REDACTED PERSONAL DATA
Revenue,Childrens Services,Children's & Education Services,Other Education and Community Budget,5105663373,21.02.2018,Home to College Post 16 Transport,Taxis - Contract Hire,690.00,REDACTED PERSONAL DATA
Revenue,Regeneration,Planning services,Economic Development,5105661137,02.02.2018,Newport Young Designers Award,Consultants Fees,"1,000.00",REDACTED PERSONAL DATA
Revenue,Regeneration,Planning services,Economic Development,5105663600,23.02.2018,Newport Young Designers Award,Consultants Fees,"2,000.00",REDACTED PERSONAL DATA
Revenue,Childrens Services,Children's & Education Services,Other Education and Community Budget,5105663579,23.02.2018,Branstone Farm Studies Centre,Property Services - Day to day Maintenance,500.00,LINSCH CONSULTANTS
Revenue,Childrens Services,Children's & Education Services,Other Education and Community Budget,5105663909,28.02.2018,Branstone Farm Studies Centre,Property Services - Day to day Maintenance,500.00,LINSCH CONSULTANTS
Revenue,Childrens Services,Children's & Education Services,Other Education and Community Budget,5105663906,28.02.2018,Branstone Farm Studies Centre,Property Services - Day to day Maintenance,-500.00,LINSCH CONSULTANTS
Revenue,Resources,Central Services,Support Services,5105663736,28.02.2018,Litigation Costs,Legal Fees - Other Parties,400.00,"COLLEGE CHAMBERS, BARRISTERS"
Revenue,Resources,Central Services,Support Services,5105663748,28.02.2018,Litigation Costs,Legal Fees - Other Parties,400.00,"COLLEGE CHAMBERS, BARRISTERS"
Revenue,Childrens Services,Children's & Education Services,Safeguarding Children/Young Peoples Svs,5105661911,09.02.2018,ASYE Programme,Training,"1,000.00",MISSING SOLUTIONS LTD
Capital,Place,Capital,Capital,5105663218,21.02.2018,Rights Of Way Capital Programme,Payment to Contractors - Capital,975.00,REDACTED PERSONAL DATA
Revenue,Childrens Services,Children's & Education Services,Other Education and Community Budget,5105663932,28.02.2018,Home to College Post 16 Transport,Taxis - Contract Hire,"2,400.00",MUSTI'S TAXIS
Revenue,Resources,Central Services,Support Services,5105662838,16.02.2018,Legal Services Section,Sundry Office Expenses,59.97,OD CONSULTANCY LTD
Revenue,Place,Housing Services,Homelessness,5105662867,21.02.2018,Leaseholds by LA,Accommodation Costs - Leaseholder Payments,695.89,REDACTED PERSONAL DATA
Revenue,Place,Housing Services,Homelessness,5105662867,21.02.2018,Leaseholds by LA,Accommodation Costs - Leaseholder Payments,695.89,REDACTED PERSONAL DATA
Revenue,Place,Housing Services,Homelessness,5105662867,21.02.2018,Leaseholds by LA,Accommodation Costs - Leaseholder Payments,695.89,REDACTED PERSONAL DATA
Revenue,Place,Housing Services,Homelessness,5105662867,21.02.2018,Leaseholds by LA,Accommodation Costs - Leaseholder Payments,695.89,REDACTED PERSONAL DATA
Revenue,Place,Housing Services,Homelessness,5105662867,21.02.2018,Leaseholds by LA,Accommodation Costs - Leaseholder Payments,695.89,REDACTED PERSONAL DATA
Revenue,Childrens Services,Children's & Education Services,Children Looked After,5105660589,07.02.2018,Adoption Support Fund,Charges from Independent Providers,120.00,REDACTED PERSONAL DATA
Revenue,Childrens Services,Children's & Education Services,Children Looked After,5105660612,07.02.2018,Adoption Support Fund,Charges from Independent Providers,180.00,REDACTED PERSONAL DATA
Revenue,Adult Services,Adult Social Care,Commissioning & Service Delivery,5105663213,21.02.2018,Deferred Payment Fees,Professional Services,150.00,PRINCIPAL SURVEYORS LTD
Revenue,Adult Services,Adult Social Care,Learning Disability Suppt-adults (18-64),5105662330,21.02.2018,Learning Disability Other LT Care 18-64,Taxis - Contract Hire,400.00,ROUNSEVELLS TAXIS
Revenue,Adult Services,Adult Social Care,Learning Disability Suppt-adults (18-64),5105663954,28.02.2018,Learning Disability Other LT Care 18-64,Taxis - Contract Hire,400.00,ROUNSEVELLS TAXIS
Revenue,Childrens Services,Children's & Education Services,Children Looked After,5105663628,23.02.2018,Support for Looked After Children,Support Children,60.00,SCALLYWAGS FUN CLUB
Revenue,Place,Cultural and Related Services,Culture and Heritage,5105661914,09.02.2018,Medina Theatre,Payment to Private Contractors,65.00,REDACTED PERSONAL DATA
Revenue,Childrens Services,Children's & Education Services,Family Support Services,5105663257,21.02.2018,Short Breaks,Charges from Independent Providers,328.00,SPLAT MESSY PLAY LTD
Revenue,Childrens Services,Children's & Education Services,Management & Support Services,5105662437,14.02.2018,Pupil Premium Managed Centrally,Professional Services,40.00,SUPPLY DESK LTD
Revenue,Childrens Services,Children's & Education Services,Management & Support Services,5105662442,14.02.2018,Pupil Premium Managed Centrally,Professional Services,40.00,SUPPLY DESK LTD
Revenue,Childrens Services,Children's & Education Services,Management & Support Services,5105663963,28.02.2018,Pupil Premium Managed Centrally,Professional Services,40.00,SUPPLY DESK LTD
Revenue,Childrens Services,Children's & Education Services,Management & Support Services,5105663963,28.02.2018,Pupil Premium Managed Centrally,Professional Services,40.00,SUPPLY DESK LTD
Revenue,Childrens Services,Children's & Education Services,Management & Support Services,5105663960,26.02.2018,Pupil Premium Managed Centrally,Professional Services,-120.00,SUPPLY DESK LTD
Revenue,Childrens Services,Children's & Education Services,Management & Support Services,5105662674,26.02.2018,Pupil Premium Managed Centrally,Professional Services,120.00,SUPPLY DESK LTD
Revenue,Childrens Services,Children's & Education Services,Management & Support Services,5105663963,28.02.2018,Pupil Premium Managed Centrally,Professional Services,40.00,SUPPLY DESK LTD
Revenue,Childrens Services,Children's & Education Services,Management & Support Services,5105662690,16.02.2018,Pupil Premium Managed Centrally,Professional Services,40.00,SUPPLY DESK LTD
Revenue,Childrens Services,Children's & Education Services,Children Looked After,5105661536,02.02.2018,Leaving Care Costs,Charges from Independent Providers,"2,878.66",NUMBER5NEWPORT
Revenue,Childrens Services,Children's & Education Services,Children Looked After,5105661536,02.02.2018,Leaving Care Costs,Charges from Independent Providers,297.60,NUMBER5NEWPORT
Revenue,Childrens Services,Children's & Education Services,Children Looked After,5105661534,02.02.2018,Leaving Care Costs,Charges from Independent Providers,297.60,NUMBER5NEWPORT
Revenue,Childrens Services,Children's & Education Services,Children Looked After,5105661534,02.02.2018,Leaving Care Costs,Charges from Independent Providers,"2,878.66",NUMBER5NEWPORT
Revenue,Childrens Services,Children's & Education Services,Children Looked After,5105661525,02.02.2018,Leaving Care Costs,Charges from Independent Providers,297.60,NUMBER5NEWPORT
Revenue,Childrens Services,Children's & Education Services,Children Looked After,5105661525,02.02.2018,Leaving Care Costs,Charges from Independent Providers,"2,214.33",NUMBER5NEWPORT
Revenue,Childrens Services,Children's & Education Services,Children Looked After,5105661539,02.02.2018,Leaving Care Costs,Charges from Independent Providers,297.60,NUMBER5NEWPORT
Revenue,Childrens Services,Children's & Education Services,Children Looked After,5105661684,07.02.2018,Leaving Care Costs,Charges from Independent Providers,"1,671.48",NUMBER5NEWPORT
Revenue,Childrens Services,Children's & Education Services,Children Looked After,5105661819,09.02.2018,Support for Looked After Children,Support Children,427.00,NUMBER5NEWPORT
Revenue,Childrens Services,Children's & Education Services,Children Looked After,5105661539,02.02.2018,Purchased Residential,Charges from Independent Providers,"2,214.33",NUMBER5NEWPORT
Revenue,Childrens Services,Children's & Education Services,Other Education and Community Budget,5105662328,14.02.2018,Family Learning,Grants to External Bodies,"2,000.00",THE CROSSLEY COMPANY (IOW) LTD
Revenue,Childrens Services,Children's & Education Services,Other Education and Community Budget,5105662328,14.02.2018,Commissioning ACL,Grants to External Bodies,"4,000.00",THE CROSSLEY COMPANY (IOW) LTD
Revenue,Childrens Services,Children's & Education Services,Services for Young People,5105663681,28.02.2018,Youth Commissioning,Payments to Voluntary and Other Associations,"1,580.00",THE VECTIS RADIO 4PS TRAINING
Revenue,Childrens Services,Children's & Education Services,Other Education and Community Budget,5105663188,21.02.2018,Home to School Mainstream Transport,Taxis - Contract Hire,360.00,THOMPSON TAXI
Revenue,Childrens Services,Children's & Education Services,Other Education and Community Budget,5105663212,21.02.2018,Home to School Mainstream Transport,Taxis - Contract Hire,900.00,THOMPSON TAXI
Revenue,Childrens Services,Children's & Education Services,Other Education and Community Budget,5105663171,21.02.2018,Home to School SEN Transport (LA),Taxis - Contract Hire,"1,020.00",THOMPSON TAXI
Revenue,Childrens Services,Children's & Education Services,Other Education and Community Budget,5105663172,21.02.2018,Home to School SEN Transport (LA),Taxis - Contract Hire,"1,190.00",THOMPSON TAXI
Revenue,Childrens Services,Children's & Education Services,Other Education and Community Budget,5105663351,21.02.2018,Home to College Post 16 Transport,Taxis - Contract Hire,"1,436.00",TJ CAR SERVICES LTD
Revenue,Childrens Services,Children's & Education Services,Other Education and Community Budget,5105663351,21.02.2018,Home to College Post 16 Transport,Taxis - Contract Hire,484.00,TJ CAR SERVICES LTD
Revenue,Childrens Services,Children's & Education Services,Other Education and Community Budget,5105663351,21.02.2018,Home to College Post 16 Transport,Taxis - Contract Hire,648.00,TJ CAR SERVICES LTD
Revenue,Childrens Services,Children's & Education Services,Special Schools & Alternative Provision,5105661761,07.02.2018,Workshop Initiative Support in Education,Cleaning Contracts,111.00,TOP MOPS LIMITED
Revenue,Childrens Services,Children's & Education Services,Special Schools & Alternative Provision,5105661652,02.02.2018,Island Learning Centre,Cleaning Contracts,521.40,TOP MOPS LIMITED
Revenue,Childrens Services,Children's & Education Services,Special Schools & Alternative Provision,5105661762,07.02.2018,Island Learning Centre,Cleaning Contracts,970.42,TOP MOPS LIMITED
Revenue,Childrens Services,Children's & Education Services,Special Schools & Alternative Provision,5105661651,02.02.2018,Island Learning Centre,Cleaning Contracts,65.75,TOP MOPS LIMITED
Revenue,Childrens Services,Children's & Education Services,Other Education and Community Budget,5105662185,21.02.2018,Weston Academy Closure,Payment to Private Contractors,287.00,VECTIS GROUP SECURITY LTD
Revenue,Childrens Services,Children's & Education Services,Other Education and Community Budget,5105662148,28.02.2018,Barton Primary Sshool Disposal,Payment to Private Contractors,147.00,VECTIS GROUP SECURITY LTD
Revenue,Childrens Services,Children's & Education Services,Other Education and Community Budget,5105662186,21.02.2018,Broadlea PS Berry Hill site (was 55909),Payment to Private Contractors,60.00,VECTIS GROUP SECURITY LTD
Revenue,Childrens Services,Children's & Education Services,Services for Young People,5105661103,16.02.2018,Grafton Street Sandown (ex Sandown Yth),Security of Buildings,166.00,VECTIS GROUP SECURITY LTD
Revenue,Childrens Services,Children's & Education Services,Special Schools & Alternative Provision,5105663555,23.02.2018,Island Learning Centre,Security of Buildings,12.00,VECTIS GROUP SECURITY LTD
Revenue,Childrens Services,Children's & Education Services,Services for Young People,5105663554,28.02.2018,Grafton Street Sandown (ex Sandown Yth),Security of Buildings,177.00,VECTIS GROUP SECURITY LTD
Revenue,Place,Planning services,Management & Support Services,5105661091,02.02.2018,Planning Management,Agency staff,"1,434.50",VIVID RESOURCING
Revenue,Place,Planning services,Management & Support Services,5105661886,16.02.2018,Planning Management,Agency staff,"1,482.00",VIVID RESOURCING
Revenue,Place,Planning services,Management & Support Services,5105662811,21.02.2018,Planning Management,Agency staff,"1,478.96",VIVID RESOURCING
Revenue,Childrens Services,Children's & Education Services,Other Education and Community Budget,5105662348,14.02.2018,Home to School SEN Transport (LA),Taxis - Contract Hire,"1,233.00",W W CARS OF SEAVIEW
Revenue,Childrens Services,Children's & Education Services,Other Education and Community Budget,5105662844,21.02.2018,Home to School SEN Transport (LA),Taxis - Contract Hire,689.00,W W CARS OF SEAVIEW
Revenue,Childrens Services,Children's & Education Services,Other Education and Community Budget,5105663801,28.02.2018,Home to School Mainstream Transport,Taxis - Contract Hire,540.00,HAVEN TAXIS & PRIVATE HIRE
Revenue,Childrens Services,Children's & Education Services,Other Education and Community Budget,5105663800,28.02.2018,Home to College Post 16 Transport,Taxis - Contract Hire,140.00,HAVEN TAXIS & PRIVATE HIRE
Revenue,Childrens Services,Children's & Education Services,Other Education and Community Budget,5105663970,28.02.2018,Home to School SEN Transport (LA),Taxis - Contract Hire,763.00,HAVEN TAXIS & PRIVATE HIRE
Revenue,Childrens Services,Children's & Education Services,Other Education and Community Budget,5105663802,28.02.2018,Home to School SEN Transport (LA),Taxis - Contract Hire,612.00,HAVEN TAXIS & PRIVATE HIRE
Revenue,Place,Cultural and Related Services,Library Service,5105663885,28.02.2018,Newport Library,Property Services - Day to day Maintenance,"3,151.78",WIGHT HEATING LTD
Revenue,Adult Services,Adult Social Care,Central Codes (to be reallocated),5105662450,14.02.2018,Mental Health Day Services,Property Services - Planned Maintenance,115.00,WIGHT HEATING LTD
Revenue,Childrens Services,Children's & Education Services,Management & Support Services,5105661524,02.02.2018,Specialist Service Business Admin,Minor Works,442.76,WIGHT HEATING LTD
Capital,Resources,Capital,Capital,5105661633,02.02.2018,Boiler Replacement Heating Non Education,Payment to Contractors - Capital,"1,438.21",WIGHT HEATING LTD
Revenue,Adult Services,Adult Social Care,Learning Disab Supp (to be reallocated),5105661643,02.02.2018,Westminster House,Property Services - Day to day Maintenance,115.00,WIGHT HEATING LTD
Revenue,Place,Cultural and Related Services,Library Service,5105663888,28.02.2018,Ryde Library,Property Services - Day to day Maintenance,"3,024.56",WIGHT HEATING LTD
Revenue,Regeneration,Central Services,Support Services,5105662101,09.02.2018,"Enterprise House, Newport",Property Services - Day to day Maintenance,80.00,WIGHT HEATING LTD
Revenue,Regeneration,Central Services,Support Services,5105663672,28.02.2018,"Enterprise House, Newport",Property Services - Day to day Maintenance,45.00,WIGHT HEATING LTD
Revenue,Regeneration,Central Services,Support Services,5105663674,28.02.2018,"Enterprise House, Newport",Property Services - Day to day Maintenance,45.00,WIGHT HEATING LTD
Revenue,Childrens Services,Children's & Education Services,Services for Young People,5105662425,14.02.2018,High Street Brading (former Brading Yth),Property Services - Planned Maintenance,195.00,WIGHT HEATING LTD
Revenue,Childrens Services,Children's & Education Services,Children Looked After,5105663961,26.02.2018,Beaulieu House,Minor Works,185.00,WIGHT HEATING LTD
Capital,Resources,Capital,Capital,5105663880,28.02.2018,Management of Asbestos,Payment to Contractors - Capital,"8,647.81",WIGHT HEATING LTD
Capital,Resources,Capital,Capital,5105663884,28.02.2018,Management of Asbestos,Payment to Contractors - Capital,"9,978.76",WIGHT HEATING LTD
Revenue,Place,Cultural and Related Services,Recreation and Sport,5105661916,09.02.2018,The Heights,Operational Equipment,238.32,WIGHT HEATING LTD
Revenue,Place,Cultural and Related Services,Recreation and Sport,5105663676,28.02.2018,The Heights,Property Services - Day to day Maintenance,"2,398.36",WIGHT HEATING LTD
Revenue,Adult Services,Adult Social Care,Central Codes (to be reallocated),5105661888,07.02.2018,Gouldings Resource Centre,Maintenance of Operational Equipment,209.64,WIGHT HEATING LTD
Revenue,Childrens Services,Children's & Education Services,Special Schools & Alternative Provision,5105661529,02.02.2018,Island Learning Centre,Minor Works,442.37,WIGHT HEATING LTD
Revenue,Childrens Services,Children's & Education Services,Other Education and Community Budget,5105661549,02.02.2018,Love Lane Primary School,Minor Works,"5,250.00",WIGHT HEATING LTD
Revenue,Childrens Services,Children's & Education Services,Special Schools & Alternative Provision,5105662427,14.02.2018,Island Learning Centre,Minor Works,45.00,WIGHT HEATING LTD
Revenue,Place,Fire & Rescue Services,Fire fighting and Rescue Operations,5105661642,02.02.2018,Business Support  - Fire,Property Services - Day to day Maintenance,80.00,WIGHT HEATING LTD
Revenue,Place,Fire & Rescue Services,Fire fighting and Rescue Operations,5105661474,02.02.2018,Business Support  - Fire,Property Services - Day to day Maintenance,102.48,WIGHT HEATING LTD
Revenue,Place,Fire & Rescue Services,Fire fighting and Rescue Operations,5105661523,02.02.2018,Business Support  - Fire,Property Services - Day to day Maintenance,115.00,WIGHT HEATING LTD
Revenue,Place,Cultural and Related Services,Library Service,5105661541,02.02.2018,East Cowes Library,Property Services - Day to day Maintenance,90.00,WIGHT HEATING LTD
Revenue,Regeneration,Central Services,Support Services,5105662100,14.02.2018,"County Hall,Newport",Property Services - Day to day Maintenance,115.00,WIGHT HEATING LTD
Revenue,Place,Fire & Rescue Services,Fire fighting and Rescue Operations,5105662428,14.02.2018,Business Support  - Fire,Property Services - Day to day Maintenance,45.00,WIGHT HEATING LTD
Revenue,Place,Fire & Rescue Services,Fire fighting and Rescue Operations,5105662422,14.02.2018,Business Support  - Fire,Property Services - Day to day Maintenance,478.31,WIGHT HEATING LTD
Revenue,Place,Cultural and Related Services,Library Service,5105663945,28.02.2018,Sandown Library,Property Services - Day to day Maintenance,203.26,WIGHT HEATING LTD
Revenue,Adult Services,Adult Social Care,Central Codes (to be reallocated),5105663849,28.02.2018,Gouldings Resource Centre,Property Services - Day to day Maintenance,97.50,WIGHT HEATING LTD
Revenue,Place,Housing Services,Homelessness,5105662880,21.02.2018,Leaseholds by LA,Accommodation Costs - Leaseholder Payments,866.67,2K PROPERTY
Revenue,Regeneration,Planning services,Economic Development,5105661799,07.02.2018,One Public Estate,Professional Services,"9,500.00",31TEN CONSULTING LIMITED
Revenue,Place,Cultural and Related Services,Recreation and Sport,5105661244,02.02.2018,Play Development,Hire of facilities,50.00,5TH RYDE SCOUT GROUP
Revenue,Place,Cultural and Related Services,Recreation and Sport,5105662750,16.02.2018,Commercial Sales Team,Advertising & Publicity,560.00,A & R WELDING
Revenue,Place,Cultural and Related Services,Recreation and Sport,5105662155,09.02.2018,Medina Leisure Centre,Payment to Private Contractors,45.00,A & R WELDING
Revenue,Childrens Services,Children's & Education Services,Children Looked After,5105661955,09.02.2018,In-house Fostering,Boarding Out Allowances,234.52,REDACTED PERSONAL DATA
Revenue,Childrens Services,Children's & Education Services,Children Looked After,5105661955,09.02.2018,In-house Fostering,Boarding Out Allowances,234.52,REDACTED PERSONAL DATA
Revenue,Childrens Services,Children's & Education Services,Children Looked After,5105663402,23.02.2018,In-house Fostering,Boarding Out Allowances,234.52,REDACTED PERSONAL DATA
Revenue,Childrens Services,Children's & Education Services,Children Looked After,5105662520,16.02.2018,In-house Fostering,Boarding Out Allowances,234.52,REDACTED PERSONAL DATA
Revenue,Childrens Services,Children's & Education Services,Children Looked After,5105662520,16.02.2018,In-house Fostering,Boarding Out Allowances,234.52,REDACTED PERSONAL DATA
Revenue,Childrens Services,Children's & Education Services,Children Looked After,5105663402,23.02.2018,In-house Fostering,Boarding Out Allowances,234.52,REDACTED PERSONAL DATA
Revenue,Childrens Services,Children's & Education Services,Children Looked After,5105661315,02.02.2018,In-house Fostering,Boarding Out Allowances,234.52,REDACTED PERSONAL DATA
Revenue,Childrens Services,Children's & Education Services,Children Looked After,5105661315,02.02.2018,In-house Fostering,Boarding Out Allowances,234.52,REDACTED PERSONAL DATA
Revenue,Childrens Services,Children's & Education Services,Children Looked After,5105662520,16.02.2018,Special Guardianship Order Costs,Support Children,168.39,REDACTED PERSONAL DATA
Revenue,Childrens Services,Children's & Education Services,Children Looked After,5105663402,23.02.2018,Special Guardianship Order Costs,Support Children,168.39,REDACTED PERSONAL DATA
Revenue,Childrens Services,Children's & Education Services,Children Looked After,5105663402,23.02.2018,Special Guardianship Order Costs,Support Children,105.00,REDACTED PERSONAL DATA
Revenue,Childrens Services,Children's & Education Services,Children Looked After,5105662520,16.02.2018,Special Guardianship Order Costs,Support Children,105.00,REDACTED PERSONAL DATA
Revenue,Childrens Services,Children's & Education Services,Children Looked After,5105661315,02.02.2018,Special Guardianship Order Costs,Support Children,105.00,REDACTED PERSONAL DATA
Revenue,Childrens Services,Children's & Education Services,Children Looked After,5105661955,09.02.2018,Special Guardianship Order Costs,Support Children,105.00,REDACTED PERSONAL DATA
Revenue,Childrens Services,Children's & Education Services,Children Looked After,5105661955,09.02.2018,Special Guardianship Order Costs,Support Children,168.39,REDACTED PERSONAL DATA
Revenue,Childrens Services,Children's & Education Services,Children Looked After,5105661315,02.02.2018,Special Guardianship Order Costs,Support Children,168.39,REDACTED PERSONAL DATA
Revenue,Place,Housing Services,Homelessness,5105662877,21.02.2018,Leaseholds by LA,Accommodation Costs - Leaseholder Payments,510.25,REDACTED PERSONAL DATA
Revenue,Place,Housing Services,Homelessness,5105662877,21.02.2018,Leaseholds by LA,Accommodation Costs - Leaseholder Payments,510.25,REDACTED PERSONAL DATA
Revenue,Place,Housing Services,Homelessness,5105662877,21.02.2018,Leaseholds by LA,Accommodation Costs - Leaseholder Payments,510.25,REDACTED PERSONAL DATA
Revenue,Place,Housing Services,Homelessness,5105662877,21.02.2018,Leaseholds by LA,Accommodation Costs - Leaseholder Payments,510.25,REDACTED PERSONAL DATA
Revenue,Place,Housing Services,Homelessness,5105662877,21.02.2018,Leaseholds by LA,Accommodation Costs - Leaseholder Payments,510.25,REDACTED PERSONAL DATA
Revenue,Place,Housing Services,Homelessness,5105662877,21.02.2018,Leaseholds by LA,Accommodation Costs - Leaseholder Payments,510.25,REDACTED PERSONAL DATA
Revenue,Childrens Services,Children's & Education Services,Children Looked After,5105662506,16.02.2018,Adoption Costs,Support Children,225.83,REDACTED PERSONAL DATA
Revenue,Childrens Services,Children's & Education Services,Children Looked After,5105663388,23.02.2018,Adoption Costs,Support Children,225.83,REDACTED PERSONAL DATA
Revenue,Childrens Services,Children's & Education Services,Children Looked After,5105661301,02.02.2018,Adoption Costs,Support Children,225.83,REDACTED PERSONAL DATA
Revenue,Childrens Services,Children's & Education Services,Children Looked After,5105661940,09.02.2018,Adoption Costs,Support Children,225.83,REDACTED PERSONAL DATA
Revenue,Childrens Services,Children's & Education Services,Children Looked After,5105661982,09.02.2018,In-house Fostering,Boarding Out Allowances,500.00,REDACTED PERSONAL DATA
Revenue,Childrens Services,Children's & Education Services,Children Looked After,5105662546,16.02.2018,In-house Fostering,Boarding Out Allowances,500.00,REDACTED PERSONAL DATA
Revenue,Childrens Services,Children's & Education Services,Children Looked After,5105663429,23.02.2018,In-house Fostering,Boarding Out Allowances,500.00,REDACTED PERSONAL DATA
Revenue,Childrens Services,Children's & Education Services,Children Looked After,5105663429,23.02.2018,In-house Fostering,Boarding Out Allowances,500.00,REDACTED PERSONAL DATA
Revenue,Childrens Services,Children's & Education Services,Children Looked After,5105662546,16.02.2018,In-house Fostering,Boarding Out Allowances,500.00,REDACTED PERSONAL DATA
Revenue,Childrens Services,Children's & Education Services,Children Looked After,5105661982,09.02.2018,In-house Fostering,Boarding Out Allowances,500.00,REDACTED PERSONAL DATA
Revenue,Childrens Services,Children's & Education Services,Children Looked After,5105661344,02.02.2018,In-house Fostering,Boarding Out Allowances,500.00,REDACTED PERSONAL DATA
Revenue,Childrens Services,Children's & Education Services,Children Looked After,5105661344,02.02.2018,In-house Fostering,Boarding Out Allowances,500.00,REDACTED PERSONAL DATA
Revenue,Place,Highways and Transport Services,Transport Planning Policy and Strategy,5105659755,02.02.2018,Sustainable Travel Transition Year LSTF,Payment to Private Contractors,"3,863.00",A TO THERE SOLUTIONS LTD
Revenue,Place,Highways and Transport Services,Transport Planning Policy and Strategy,5105659756,02.02.2018,Sustainable Travel Transition Year LSTF,Payment to Private Contractors,"4,051.00",A TO THERE SOLUTIONS LTD
Revenue,Adult Services,Adult Social Care,Support - Memory /Cognition-older people (65+),5105663119,21.02.2018,Memory & Cognition Residential 65+,Charges from Independent Providers,"3,200.12",ABBERDALE LIMITED
Revenue,Childrens Services,Children's & Education Services,Other Education and Community Budget,5105663374,23.02.2018,Specialist Cross-Council Training,Training,875.00,ABC FOOD LAW LTD
Revenue,Childrens Services,Children's & Education Services,Children Looked After,5105662263,09.02.2018,In-house Fostering,Training,"1,100.00",AC EDUCATION
Revenue,Adult Services,Adult Social Care,Physical Support - older people (65+),5105663619,23.02.2018,Physical Support Residential 65+,Charges from Independent Providers,465.50,ACACIA CARE HOME
Revenue,Adult Services,Adult Social Care,Support - Memory /Cognition-older people (65+),5105662774,16.02.2018,Memory & Cognition Residential 65+,Charges from Independent Providers,997.50,ACACIA CARE HOME
Revenue,Adult Services,Adult Social Care,Physical Support - older people (65+),5105662975,21.02.2018,Physical Support Residential 65+,Charges from Independent Providers,"1,184.05",ACACIA CARE HOME
Revenue,Adult Services,Adult Social Care,Physical Support - older people (65+),5105662975,21.02.2018,Physical Support Residential 65+,Charges from Independent Providers,"1,950.20",ACACIA CARE HOME
Revenue,Adult Services,Adult Social Care,Social Support - Support for Carer,5105662975,21.02.2018,Carers Residential,Charges from Independent Providers,"1,950.20",ACACIA CARE HOME
Revenue,Adult Services,Adult Social Care,Support - Memory /Cognition-older people (65+),5105662975,21.02.2018,Memory & Cognition Residential 65+,Charges from Independent Providers,"1,950.20",ACACIA CARE HOME
Revenue,Adult Services,Adult Social Care,Physical Support - older people (65+),5105661666,07.02.2018,Physical Support Residential 65+,Charges from Independent Providers,"1,810.90",ACACIA CARE HOME
Revenue,Adult Services,Adult Social Care,Physical Support - older people (65+),5105662466,14.02.2018,Physical Support Residential 65+,Charges from Independent Providers,997.50,ACACIA CARE HOME
Revenue,Adult Services,Adult Social Care,Physical Support - adults (18-64),5105663705,28.02.2018,Physical Support Residential 18-64,Charges from Independent Providers,997.50,ACACIA CARE HOME
Revenue,Adult Services,Adult Social Care,Physical Support - adults (18-64),5105662975,21.02.2018,Physical Support Residential 18-64,Charges from Independent Providers,"1,862.00",ACACIA CARE HOME
Revenue,Place,Environmental & Regulatory Services,Regulatory Services,5105662846,21.02.2018,Licensing Services,Professional Services,484.00,ACCESS PERSONAL CHECKING SERVICES LTD
Revenue,Place,Environmental & Regulatory Services,Regulatory Services,5105662846,21.02.2018,Licensing Services,Professional Services,66.00,ACCESS PERSONAL CHECKING SERVICES LTD
Revenue,Adult Services,Adult Social Care,Assistive Equipment & Technology,5105663715,28.02.2018,Community Equipment Store,Operational Equipment,"2,277.00",ACCORA  LIMITED
Revenue,Adult Services,Adult Social Care,Assistive Equipment & Technology,5105663715,28.02.2018,Community Equipment Store,Operational Equipment,174.00,ACCORA  LIMITED
Revenue,Childrens Services,Adult Social Care,Information & Early Intervention,5105662483,14.02.2018,ASC Trg Improved Better Care Fund,Training,795.00,ACTING OUT PRODUCTIONS
Revenue,Childrens Services,Adult Social Care,Information & Early Intervention,5105662483,14.02.2018,ASC Trg Improved Better Care Fund,Training,200.00,ACTING OUT PRODUCTIONS
Revenue,Childrens Services,Adult Social Care,Information & Early Intervention,5105662483,14.02.2018,ASC Trg Improved Better Care Fund,Training,266.75,ACTING OUT PRODUCTIONS
Revenue,Place,Environmental & Regulatory Services,Regulatory Services,5105662253,09.02.2018,Trading Standards,Professional Subscriptions,120.00,ACTSO LTD
Revenue,Childrens Services,Balance Sheet,Balance Sheet,5105663582,23.02.2018,7741 - HV10 AAX,Vehicle Maintenance Costs,97.50,ADAMS MOREY LTD
Revenue,Place,Fire & Rescue Services,Fire fighting and Rescue Operations,5105662103,09.02.2018,Fire Technical Support,Vehicle Maintenance Costs,496.52,ADAMS MOREY LTD
Revenue,Place,Fire & Rescue Services,Fire fighting and Rescue Operations,5105662103,09.02.2018,Fire Technical Support,Vehicle Maintenance Costs,255.54,ADAMS MOREY LTD
Revenue,Place,Fire & Rescue Services,Fire fighting and Rescue Operations,5105662103,09.02.2018,Fire Technical Support,Vehicle Maintenance Costs,290.04,ADAMS MOREY LTD
Revenue,Place,Fire & Rescue Services,Fire fighting and Rescue Operations,5105662103,09.02.2018,Fire Technical Support,Vehicle Maintenance Costs,20.00,ADAMS MOREY LTD
Revenue,Childrens Services,Children's & Education Services,Management & Support Services,5105663903,28.02.2018,Education Direct Payments,Charges from Independent Providers,330.00,A-DAY CONSULTANTS LTD
Revenue,Childrens Services,Children's & Education Services,Management & Support Services,5105663905,28.02.2018,Education Direct Payments,Charges from Independent Providers,227.40,A-DAY CONSULTANTS LTD
Revenue,Childrens Services,Children's & Education Services,Management & Support Services,5105663908,28.02.2018,Education Direct Payments,Charges from Independent Providers,227.40,A-DAY CONSULTANTS LTD
Revenue,Childrens Services,Children's & Education Services,Management & Support Services,5105662250,23.02.2018,Education Direct Payments,Charges from Independent Providers,220.00,A-DAY CONSULTANTS LTD
Revenue,Childrens Services,Children's & Education Services,Management & Support Services,5105662834,16.02.2018,Education Direct Payments,Charges from Independent Providers,110.00,A-DAY CONSULTANTS LTD
Revenue,Childrens Services,Children's & Education Services,Management & Support Services,5105662843,21.02.2018,Education Direct Payments,Charges from Independent Providers,303.20,A-DAY CONSULTANTS LTD
Revenue,Childrens Services,Children's & Education Services,Management & Support Services,5105662841,21.02.2018,Education Direct Payments,Charges from Independent Providers,330.00,A-DAY CONSULTANTS LTD
Revenue,Childrens Services,Children's & Education Services,Management & Support Services,5105662792,16.02.2018,Education Direct Payments,Charges from Independent Providers,282.40,A-DAY CONSULTANTS LTD
Revenue,Childrens Services,Children's & Education Services,Management & Support Services,5105663208,21.02.2018,Education Direct Payments,Charges from Independent Providers,220.00,A-DAY CONSULTANTS LTD
Revenue,Childrens Services,Children's & Education Services,Management & Support Services,5105663832,28.02.2018,Education Direct Payments,Charges from Independent Providers,330.00,A-DAY CONSULTANTS LTD
Revenue,Childrens Services,Children's & Education Services,Management & Support Services,5105663895,28.02.2018,Education Direct Payments,Charges from Independent Providers,295.80,A-DAY CONSULTANTS LTD
Revenue,Childrens Services,Children's & Education Services,Management & Support Services,5105663897,28.02.2018,Education Direct Payments,Charges from Independent Providers,220.00,A-DAY CONSULTANTS LTD
Revenue,Childrens Services,Children's & Education Services,Management & Support Services,5105663900,28.02.2018,Education Direct Payments,Charges from Independent Providers,295.80,A-DAY CONSULTANTS LTD
Revenue,Childrens Services,Children's & Education Services,Special Schools & Alternative Provision,5105660704,16.02.2018,Island Learning Centre,Agency staff,"1,473.80",A-DAY CONSULTANTS LTD
Revenue,Childrens Services,Children's & Education Services,Special Schools & Alternative Provision,5105661781,07.02.2018,Island Learning Centre,Agency staff,"1,048.00",A-DAY CONSULTANTS LTD
Revenue,Childrens Services,Children's & Education Services,Special Schools & Alternative Provision,5105663371,21.02.2018,Island Learning Centre,Agency staff,"2,662.00",A-DAY CONSULTANTS LTD
Revenue,Childrens Services,Children's & Education Services,Special Schools & Alternative Provision,5105663368,21.02.2018,Island Learning Centre,Agency staff,"3,694.40",A-DAY CONSULTANTS LTD
Revenue,Childrens Services,Children's & Education Services,Safeguarding Children/Young Peoples Svs,5105662755,16.02.2018,LSCB (Local Safeguarding Childrens Board),Printing Costs,355.00,ADGIFTDISCOUNTS LTD
Revenue,Place,Cultural and Related Services,Recreation and Sport,5105663268,21.02.2018,Westridge Squash Courts,Payment to Private Contractors,318.50,ADT FIRE AND SECURITY PLC
Capital,Place,Capital,Capital,5105661756,07.02.2018,Coastal Capital Schemes,External Design and Supervision Fees,"9,117.50",AECOM
Revenue,Resources,Housing Services,Housing Benefits Administration,5105663350,28.02.2018,Housing Benefit,Training,"2,600.00",AIREY CONSULTANCY SERVICES LTD
Revenue,Regeneration,Central Services,Support Services,5105662230,16.02.2018,"Westridge, Ryde",Property Services - Planned Maintenance,655.00,AIRTEK SERVICES IOW LTD
Revenue,Adult Services,Adult Social Care,Learning Disability Suppt-adults (18-64),5105663109,21.02.2018,Learning Disability Residential 18-64,Charges from Independent Providers,"5,950.00",AITCH CARE HOMES (LONDON) LTD
Revenue,Public Health,Public Health,NHS Health Check Programme,5105662139,09.02.2018,NHS Health Check Programme,Payment to Private Contractors,"1,132.00",ALBERT STREET PRACTICE
Revenue,Public Health,Public Health,Sexual Health,5105662139,09.02.2018,Contraception,Payment to Private Contractors,270.00,ALBERT STREET PRACTICE
Revenue,Childrens Services,Children's & Education Services,Safeguarding Children/Young Peoples Svs,5105663334,21.02.2018,Court Work & Consultancy Services,Professional Services,163.75,ALERE TOXICOLOGY PLC
Revenue,Childrens Services,Children's & Education Services,Safeguarding Children/Young Peoples Svs,5105662764,16.02.2018,Court Work & Consultancy Services,Professional Services,-259.25,ALERE TOXICOLOGY PLC
Revenue,Childrens Services,Children's & Education Services,Safeguarding Children/Young Peoples Svs,5105662709,16.02.2018,Court Work & Consultancy Services,Professional Services,259.25,ALERE TOXICOLOGY PLC
Revenue,Place,Cultural and Related Services,Culture and Heritage,5105664141,28.02.2018,Dinosaur Isle Museum (Sandown Geology),Stock Purchases,120.00,ALLSORTED LTD
Revenue,Resources,Highways and Transport Services,Public Transport,5105663175,21.02.2018,Transport Fleet Administration,Vehicle Fuel Costs,"10,004.74",ALLSTAR BUSINESS SOLUTIONS LTD
Revenue,Childrens Services,Children's & Education Services,Other Education and Community Budget,5105661752,07.02.2018,Home to School Mainstream Transport,Taxis - Contract Hire,350.00,ALPHA (IOW) LTD
Revenue,Childrens Services,Children's & Education Services,Other Education and Community Budget,5105661594,02.02.2018,Home to School Mainstream Transport,Taxis - Contract Hire,350.00,ALPHA (IOW) LTD
Revenue,Childrens Services,Children's & Education Services,Other Education and Community Budget,5105662251,14.02.2018,Home to School Mainstream Transport,Taxis - Contract Hire,70.00,ALPHA (IOW) LTD
Revenue,Childrens Services,Children's & Education Services,Other Education and Community Budget,5105662251,14.02.2018,Home to School Mainstream Transport,Taxis - Contract Hire,250.00,ALPHA (IOW) LTD
Revenue,Childrens Services,Children's & Education Services,Other Education and Community Budget,5105662251,14.02.2018,Home to School Mainstream Transport,Taxis - Contract Hire,175.00,ALPHA (IOW) LTD
Revenue,Childrens Services,Children's & Education Services,Other Education and Community Budget,5105662251,14.02.2018,Home to School Mainstream Transport,Taxis - Contract Hire,300.00,ALPHA (IOW) LTD
Revenue,Childrens Services,Children's & Education Services,Other Education and Community Budget,5105662251,14.02.2018,Home to School Mainstream Transport,Taxis - Contract Hire,350.00,ALPHA (IOW) LTD
Revenue,Childrens Services,Children's & Education Services,Other Education and Community Budget,5105661752,07.02.2018,Home to School Mainstream Transport,Taxis - Contract Hire,600.00,ALPHA (IOW) LTD
Revenue,Childrens Services,Children's & Education Services,Other Education and Community Budget,5105661594,02.02.2018,Home to School Mainstream Transport,Taxis - Contract Hire,600.00,ALPHA (IOW) LTD
Revenue,Childrens Services,Children's & Education Services,Other Education and Community Budget,5105662251,14.02.2018,Home to School Mainstream Transport,Taxis - Contract Hire,600.00,ALPHA (IOW) LTD
Revenue,Childrens Services,Children's & Education Services,Other Education and Community Budget,5105661594,02.02.2018,Home to School Mainstream Transport,Taxis - Contract Hire,250.00,ALPHA (IOW) LTD
Revenue,Childrens Services,Children's & Education Services,Other Education and Community Budget,5105661752,07.02.2018,Home to School Mainstream Transport,Taxis - Contract Hire,250.00,ALPHA (IOW) LTD
Revenue,Childrens Services,Children's & Education Services,Other Education and Community Budget,5105661752,07.02.2018,Home to School Mainstream Transport,Taxis - Contract Hire,175.00,ALPHA (IOW) LTD
Revenue,Childrens Services,Children's & Education Services,Other Education and Community Budget,5105661594,02.02.2018,Home to School Mainstream Transport,Taxis - Contract Hire,175.00,ALPHA (IOW) LTD
Revenue,Childrens Services,Children's & Education Services,Other Education and Community Budget,5105661594,02.02.2018,Home to School Mainstream Transport,Taxis - Contract Hire,70.00,ALPHA (IOW) LTD
Revenue,Childrens Services,Children's & Education Services,Other Education and Community Budget,5105661752,07.02.2018,Home to School Mainstream Transport,Taxis - Contract Hire,70.00,ALPHA (IOW) LTD
Revenue,Childrens Services,Children's & Education Services,Other Education and Community Budget,5105661594,02.02.2018,Home to School Mainstream Transport,Taxis - Contract Hire,300.00,ALPHA (IOW) LTD
Revenue,Childrens Services,Children's & Education Services,Other Education and Community Budget,5105661752,07.02.2018,Home to School Mainstream Transport,Taxis - Contract Hire,300.00,ALPHA (IOW) LTD
Revenue,Childrens Services,Children's & Education Services,Family Support Services,5105662451,14.02.2018,Childrens Rights & Participation,Transport of Clients,243.10,ALPHA (IOW) LTD
Revenue,Childrens Services,Children's & Education Services,Other Education and Community Budget,5105663357,23.02.2018,Home to College Post 16 Transport,Taxis - Contract Hire,800.00,ALPHA (IOW) LTD
Revenue,Childrens Services,Children's & Education Services,Other Education and Community Budget,5105663357,23.02.2018,Home to College Post 16 Transport,Taxis - Contract Hire,416.00,ALPHA (IOW) LTD
Revenue,Childrens Services,Children's & Education Services,Other Education and Community Budget,5105663357,23.02.2018,Home to College Post 16 Transport,Taxis - Contract Hire,480.00,ALPHA (IOW) LTD
Revenue,Childrens Services,Children's & Education Services,Other Education and Community Budget,5105663357,23.02.2018,Home to College Post 16 Transport,Taxis - Contract Hire,832.00,ALPHA (IOW) LTD
Revenue,Childrens Services,Children's & Education Services,Other Education and Community Budget,5105663357,23.02.2018,Home to College Post 16 Transport,Taxis - Contract Hire,240.00,ALPHA (IOW) LTD
Revenue,Childrens Services,Children's & Education Services,Other Education and Community Budget,5105663357,23.02.2018,Home to College Post 16 Transport,Taxis - Contract Hire,840.00,ALPHA (IOW) LTD
Revenue,Childrens Services,Children's & Education Services,Other Education and Community Budget,5105661594,02.02.2018,Home to School SEN Transport (LA),Taxis - Contract Hire,150.00,ALPHA (IOW) LTD
Revenue,Childrens Services,Children's & Education Services,Other Education and Community Budget,5105661752,07.02.2018,Home to School SEN Transport (LA),Taxis - Contract Hire,150.00,ALPHA (IOW) LTD
Revenue,Childrens Services,Children's & Education Services,Other Education and Community Budget,5105661752,07.02.2018,Home to School SEN Transport (LA),Taxis - Contract Hire,250.00,ALPHA (IOW) LTD
Revenue,Childrens Services,Children's & Education Services,Other Education and Community Budget,5105661594,02.02.2018,Home to School SEN Transport (LA),Taxis - Contract Hire,250.00,ALPHA (IOW) LTD
Revenue,Childrens Services,Children's & Education Services,Other Education and Community Budget,5105661594,02.02.2018,Home to School SEN Transport (LA),Taxis - Contract Hire,300.00,ALPHA (IOW) LTD
Revenue,Childrens Services,Children's & Education Services,Other Education and Community Budget,5105661752,07.02.2018,Home to School SEN Transport (LA),Taxis - Contract Hire,300.00,ALPHA (IOW) LTD
Revenue,Childrens Services,Children's & Education Services,Other Education and Community Budget,5105661752,07.02.2018,Home to School SEN Transport (LA),Taxis - Contract Hire,325.00,ALPHA (IOW) LTD
Revenue,Childrens Services,Children's & Education Services,Other Education and Community Budget,5105661594,02.02.2018,Home to School SEN Transport (LA),Taxis - Contract Hire,325.00,ALPHA (IOW) LTD
Revenue,Childrens Services,Children's & Education Services,Other Education and Community Budget,5105661752,07.02.2018,Home to School SEN Transport (LA),Taxis - Contract Hire,450.00,ALPHA (IOW) LTD
Revenue,Childrens Services,Children's & Education Services,Other Education and Community Budget,5105661594,02.02.2018,Home to School SEN Transport (LA),Taxis - Contract Hire,450.00,ALPHA (IOW) LTD
Revenue,Childrens Services,Children's & Education Services,Other Education and Community Budget,5105661594,02.02.2018,Home to School SEN Transport (LA),Taxis - Contract Hire,300.00,ALPHA (IOW) LTD
Revenue,Childrens Services,Children's & Education Services,Other Education and Community Budget,5105661752,07.02.2018,Home to School SEN Transport (LA),Taxis - Contract Hire,300.00,ALPHA (IOW) LTD
Revenue,Childrens Services,Children's & Education Services,Other Education and Community Budget,5105661752,07.02.2018,Home to School SEN Transport (LA),Taxis - Contract Hire,350.00,ALPHA (IOW) LTD
Revenue,Childrens Services,Children's & Education Services,Other Education and Community Budget,5105661594,02.02.2018,Home to School SEN Transport (LA),Taxis - Contract Hire,350.00,ALPHA (IOW) LTD
Revenue,Childrens Services,Children's & Education Services,Other Education and Community Budget,5105661594,02.02.2018,Home to School SEN Transport (LA),Taxis - Contract Hire,100.00,ALPHA (IOW) LTD
Revenue,Childrens Services,Children's & Education Services,Other Education and Community Budget,5105661752,07.02.2018,Home to School SEN Transport (LA),Taxis - Contract Hire,100.00,ALPHA (IOW) LTD
Revenue,Childrens Services,Children's & Education Services,Other Education and Community Budget,5105661752,07.02.2018,Home to School SEN Transport (LA),Taxis - Contract Hire,280.00,ALPHA (IOW) LTD
Revenue,Childrens Services,Children's & Education Services,Other Education and Community Budget,5105661594,02.02.2018,Home to School SEN Transport (LA),Taxis - Contract Hire,280.00,ALPHA (IOW) LTD
Revenue,Childrens Services,Children's & Education Services,Other Education and Community Budget,5105661594,02.02.2018,Home to School SEN Transport (LA),Taxis - Contract Hire,450.00,ALPHA (IOW) LTD
Revenue,Childrens Services,Children's & Education Services,Other Education and Community Budget,5105661752,07.02.2018,Home to School SEN Transport (LA),Taxis - Contract Hire,450.00,ALPHA (IOW) LTD
Revenue,Childrens Services,Children's & Education Services,Other Education and Community Budget,5105661594,02.02.2018,Home to School SEN Transport (LA),Taxis - Contract Hire,400.00,ALPHA (IOW) LTD
Revenue,Childrens Services,Children's & Education Services,Other Education and Community Budget,5105661752,07.02.2018,Home to School SEN Transport (LA),Taxis - Contract Hire,400.00,ALPHA (IOW) LTD
Revenue,Childrens Services,Children's & Education Services,Other Education and Community Budget,5105661752,07.02.2018,Home to School SEN Transport (LA),Taxis - Contract Hire,350.00,ALPHA (IOW) LTD
Revenue,Childrens Services,Children's & Education Services,Other Education and Community Budget,5105661594,02.02.2018,Home to School SEN Transport (LA),Taxis - Contract Hire,350.00,ALPHA (IOW) LTD
Revenue,Childrens Services,Children's & Education Services,Other Education and Community Budget,5105661594,02.02.2018,Home to School SEN Transport (LA),Taxis - Contract Hire,395.00,ALPHA (IOW) LTD
Revenue,Childrens Services,Children's & Education Services,Other Education and Community Budget,5105661752,07.02.2018,Home to School SEN Transport (LA),Taxis - Contract Hire,395.00,ALPHA (IOW) LTD
Revenue,Childrens Services,Children's & Education Services,Other Education and Community Budget,5105661594,02.02.2018,Home to School SEN Transport (LA),Taxis - Contract Hire,200.00,ALPHA (IOW) LTD
Revenue,Childrens Services,Children's & Education Services,Other Education and Community Budget,5105661752,07.02.2018,Home to School SEN Transport (LA),Taxis - Contract Hire,200.00,ALPHA (IOW) LTD
Revenue,Childrens Services,Children's & Education Services,Other Education and Community Budget,5105662251,14.02.2018,Home to School SEN Transport (LA),Taxis - Contract Hire,150.00,ALPHA (IOW) LTD
Revenue,Childrens Services,Children's & Education Services,Other Education and Community Budget,5105662251,14.02.2018,Home to School SEN Transport (LA),Taxis - Contract Hire,250.00,ALPHA (IOW) LTD
Revenue,Childrens Services,Children's & Education Services,Other Education and Community Budget,5105662251,14.02.2018,Home to School SEN Transport (LA),Taxis - Contract Hire,200.00,ALPHA (IOW) LTD
Revenue,Childrens Services,Children's & Education Services,Other Education and Community Budget,5105662251,14.02.2018,Home to School SEN Transport (LA),Taxis - Contract Hire,250.00,ALPHA (IOW) LTD
Revenue,Childrens Services,Children's & Education Services,Other Education and Community Budget,5105662251,14.02.2018,Home to School SEN Transport (LA),Taxis - Contract Hire,450.00,ALPHA (IOW) LTD
Revenue,Childrens Services,Children's & Education Services,Other Education and Community Budget,5105662251,14.02.2018,Home to School SEN Transport (LA),Taxis - Contract Hire,300.00,ALPHA (IOW) LTD
Revenue,Childrens Services,Children's & Education Services,Other Education and Community Budget,5105662251,14.02.2018,Home to School SEN Transport (LA),Taxis - Contract Hire,325.00,ALPHA (IOW) LTD
Revenue,Childrens Services,Children's & Education Services,Other Education and Community Budget,5105662251,14.02.2018,Home to School SEN Transport (LA),Taxis - Contract Hire,300.00,ALPHA (IOW) LTD
Revenue,Childrens Services,Children's & Education Services,Other Education and Community Budget,5105662251,14.02.2018,Home to School SEN Transport (LA),Taxis - Contract Hire,350.00,ALPHA (IOW) LTD
Revenue,Childrens Services,Children's & Education Services,Other Education and Community Budget,5105662251,14.02.2018,Home to School SEN Transport (LA),Taxis - Contract Hire,100.00,ALPHA (IOW) LTD
Revenue,Childrens Services,Children's & Education Services,Other Education and Community Budget,5105662251,14.02.2018,Home to School SEN Transport (LA),Taxis - Contract Hire,280.00,ALPHA (IOW) LTD
Revenue,Childrens Services,Children's & Education Services,Other Education and Community Budget,5105662251,14.02.2018,Home to School SEN Transport (LA),Taxis - Contract Hire,450.00,ALPHA (IOW) LTD
Revenue,Childrens Services,Children's & Education Services,Other Education and Community Budget,5105662251,14.02.2018,Home to School SEN Transport (LA),Taxis - Contract Hire,400.00,ALPHA (IOW) LTD
Revenue,Childrens Services,Children's & Education Services,Other Education and Community Budget,5105662251,14.02.2018,Home to School SEN Transport (LA),Taxis - Contract Hire,350.00,ALPHA (IOW) LTD
Revenue,Childrens Services,Children's & Education Services,Other Education and Community Budget,5105662251,14.02.2018,Home to School SEN Transport (LA),Taxis - Contract Hire,395.00,ALPHA (IOW) LTD
Revenue,Childrens Services,Children's & Education Services,Other Education and Community Budget,5105662251,14.02.2018,Home to School SEN Transport (LA),Taxis - Contract Hire,200.00,ALPHA (IOW) LTD
Revenue,Childrens Services,Children's & Education Services,Other Education and Community Budget,5105661752,07.02.2018,Home to School SEN Transport (LA),Taxis - Contract Hire,600.00,ALPHA (IOW) LTD
Revenue,Childrens Services,Children's & Education Services,Other Education and Community Budget,5105661594,02.02.2018,Home to School SEN Transport (LA),Taxis - Contract Hire,600.00,ALPHA (IOW) LTD
Revenue,Childrens Services,Children's & Education Services,Other Education and Community Budget,5105661594,02.02.2018,Home to School SEN Transport (LA),Taxis - Contract Hire,450.00,ALPHA (IOW) LTD
Revenue,Childrens Services,Children's & Education Services,Other Education and Community Budget,5105661594,02.02.2018,Home to School SEN Transport (LA),Taxis - Contract Hire,200.00,ALPHA (IOW) LTD
Revenue,Childrens Services,Children's & Education Services,Other Education and Community Budget,5105661752,07.02.2018,Home to School SEN Transport (LA),Taxis - Contract Hire,200.00,ALPHA (IOW) LTD
Revenue,Childrens Services,Children's & Education Services,Other Education and Community Budget,5105661752,07.02.2018,Home to School SEN Transport (LA),Taxis - Contract Hire,250.00,ALPHA (IOW) LTD
Revenue,Childrens Services,Children's & Education Services,Other Education and Community Budget,5105661594,02.02.2018,Home to School SEN Transport (LA),Taxis - Contract Hire,250.00,ALPHA (IOW) LTD
Revenue,Childrens Services,Children's & Education Services,Other Education and Community Budget,5105662251,14.02.2018,Home to School SEN Transport (LA),Taxis - Contract Hire,600.00,ALPHA (IOW) LTD
Revenue,Adult Services,Adult Social Care,Learning Disability Suppt-adults (18-64),5105662939,21.02.2018,Learning Disability Residential 18-64,Charges from Independent Providers,"3,836.84",ALPHAGRANGE LTD
Capital,Place,Capital,Capital,5105663313,21.02.2018,Waste Capital Programme,Payment to Contractors - Capital,"562,871.51",AMEY (IOW) SPV LIMITED
Revenue,Place,Environmental & Regulatory Services,Waste Disposal,5105663610,23.02.2018,Waste Disposal - Amey Contract,Waste Contractors,"361,274.05",AMEY (IOW) SPV LIMITED
Revenue,Place,Environmental & Regulatory Services,Recycling,5105663610,23.02.2018,Waste Recycling - Amey Contract,Waste Contractors,"32,073.71",AMEY (IOW) SPV LIMITED
Revenue,Place,Environmental & Regulatory Services,Waste Collection,5105663610,23.02.2018,Waste Collection - Amey Contract,Waste Contractors,"343,023.02",AMEY (IOW) SPV LIMITED
Revenue,Regeneration,Planning services,Economic Development,5105661612,02.02.2018,Newport Harbour Regeneration,"Refuse Collection, Disposal and Recycling Costs",105.00,AMEY LG LTD
Capital,Corporate Items,Balance Sheet,Balance Sheet,5105662941,21.02.2018,Balance Sheet,Order Settlement to Bal Sht GL,614.04,ANCONA CARE HOME
Revenue,Adult Services,Adult Social Care,Physical Support - older people (65+),5105662941,21.02.2018,Physical Support Residential 65+,Charges from Independent Providers,"1,950.20",ANCONA CARE HOME
Revenue,Adult Services,Adult Social Care,Physical Support - older people (65+),5105662941,21.02.2018,Physical Support Residential 65+,Charges from Independent Providers,"1,862.00",ANCONA CARE HOME
Revenue,Adult Services,Adult Social Care,Physical Support - older people (65+),5105662941,21.02.2018,Physical Support Residential 65+,Charges from Independent Providers,"1,862.00",ANCONA CARE HOME
Revenue,Adult Services,Adult Social Care,Physical Support - older people (65+),5105662941,21.02.2018,Physical Support Residential 65+,Charges from Independent Providers,"1,862.00",ANCONA CARE HOME
Revenue,Adult Services,Adult Social Care,Physical Support - older people (65+),5105662941,21.02.2018,Physical Support Residential 65+,Charges from Independent Providers,"1,950.20",ANCONA CARE HOME
Revenue,Childrens Services,Children's & Education Services,Children Looked After,5105661639,07.02.2018,Purchased Residential,Charges from Independent Providers,"18,181.56",ANDERIDA ADOLESCENT CARE LTD
Revenue,Childrens Services,Children's & Education Services,Other Education and Community Budget,5105663678,28.02.2018,Adult Skills,General Materials,415.00,ANN ARBOR PUBLISHERS LTD
Revenue,Childrens Services,Children's & Education Services,Other Education and Community Budget,5105663678,28.02.2018,Adult Skills,General Materials,140.00,ANN ARBOR PUBLISHERS LTD
Revenue,Chief Executive,Central Services,Support Services,5105662284,14.02.2018,Print Unit,Printing Costs,194.25,ANTALIS MCNAUGHTON
Revenue,Chief Executive,Central Services,Support Services,5105661729,07.02.2018,Print Unit,Printing Costs,77.70,ANTALIS MCNAUGHTON
Revenue,Chief Executive,Central Services,Support Services,5105661729,07.02.2018,Print Unit,Printing Costs,70.60,ANTALIS MCNAUGHTON
Revenue,Chief Executive,Central Services,Support Services,5105661729,07.02.2018,Print Unit,Printing Costs,32.90,ANTALIS MCNAUGHTON
Revenue,Place,Central Services,Central Services to the Public,5105659747,23.02.2018,Coroner,Computer Purchase & Rental,508.00,APPLE DISTRIBUTION INTERNATIONAL
Revenue,Childrens Services,Adult Social Care,Information & Early Intervention,5105661545,09.02.2018,ASC Trg Improved Better Care Fund,Training,"4,165.00",APT TRAINING & CONSULTANCY LTD
Revenue,Childrens Services,Adult Social Care,Information & Early Intervention,5105661608,02.02.2018,ASC Trg Improved Better Care Fund,Training,"4,165.00",APT TRAINING & CONSULTANCY LTD
Revenue,Childrens Services,Children's & Education Services,Special Schools & Alternative Provision,5105661572,02.02.2018,Island Learning Centre,Catering Equipment,102.66,AQUALICITY LTD
Revenue,Regeneration,Planning services,Economic Development,5105661540,02.02.2018,Director of Regeneration,Consultants Fees,"7,000.00",ARC CONSULTING LTD
Revenue,Regeneration,Planning services,Economic Development,5105662307,14.02.2018,Director of Regeneration,Consultants Fees,"7,000.00",ARC CONSULTING LTD
Capital,Place,Capital,Capital,5105663288,21.02.2018,Cowes Floating Brdge,Payment to Contractors - Capital,"5,673.28",ARCH HENDERSON LLP
Revenue,Place,Planning services,Building Control,5105661702,07.02.2018,Building Control,Clothing & Laundry,35.24,ARCO LTD
Revenue,Childrens Services,Children's & Education Services,Children Looked After,5105662672,16.02.2018,Beaulieu House,Clothing & Laundry,50.75,ARCO LTD
Revenue,Place,Highways and Transport Services,"Airports, Harbours & Toll Facilities",5105661631,14.02.2018,Ferry Operation,Clothing & Laundry,10.80,ARCO LTD
Revenue,Place,Highways and Transport Services,"Airports, Harbours & Toll Facilities",5105661631,14.02.2018,Ferry Operation,Clothing & Laundry,10.44,ARCO LTD
Revenue,Place,Highways and Transport Services,"Airports, Harbours & Toll Facilities",5105661631,14.02.2018,Ferry Operation,Clothing & Laundry,22.44,ARCO LTD
Revenue,Place,Highways and Transport Services,Parking Services,5105662236,14.02.2018,Parking Attendants,Clothing & Laundry,44.08,ARCO LTD
Revenue,Place,Highways and Transport Services,Parking Services,5105662236,14.02.2018,Parking Attendants,Clothing & Laundry,10.02,ARCO LTD
Revenue,Public Health,Public Health,NHS Health Check Programme,5105662141,09.02.2018,NHS Health Check Programme,Payment to Private Contractors,"1,247.50",ARGYLL HOUSE SURGERY
Revenue,Place,Housing Services,Homelessness,5105663965,28.02.2018,Homelessness,Medical Fees and Staff Welfare,25.15,ARGYLL HOUSE SURGERY
Revenue,Adult Services,Adult Social Care,Assistive Equipment & Technology,5105661904,09.02.2018,Community Equipment Store,Operational Equipment,291.49,ARJO UK LTD
Revenue,Adult Services,Adult Social Care,Assistive Equipment & Technology,5105661904,09.02.2018,Community Equipment Store,Operational Equipment,15.00,ARJO UK LTD
Revenue,Adult Services,Adult Social Care,Assistive Equipment & Technology,5105661887,09.02.2018,Community Equipment Store,Operational Equipment,106.49,ARJO UK LTD
Revenue,Adult Services,Adult Social Care,Assistive Equipment & Technology,5105661887,09.02.2018,Community Equipment Store,Operational Equipment,6.28,ARJO UK LTD
Revenue,Adult Services,Adult Social Care,Assistive Equipment & Technology,5105662478,14.02.2018,Community Equipment Store,Operational Equipment,189.00,ARJO UK LTD
Revenue,Adult Services,Adult Social Care,Assistive Equipment & Technology,5105662478,14.02.2018,Community Equipment Store,Operational Equipment,11.00,ARJO UK LTD
Revenue,Adult Services,Adult Social Care,Assistive Equipment & Technology,5105663726,28.02.2018,Community Equipment Store,Operational Equipment,103.49,ARJO UK LTD
Revenue,Adult Services,Adult Social Care,Assistive Equipment & Technology,5105663726,28.02.2018,Community Equipment Store,Operational Equipment,15.00,ARJO UK LTD
Revenue,Adult Services,Adult Social Care,Learning Disab Supp (to be reallocated),5105663162,21.02.2018,The Laurels,Minor Works,489.77,ARJO UK LTD
Revenue,Place,Cultural and Related Services,Library Service,5105661464,02.02.2018,Ryde Library,Property Services - Day to day Maintenance,129.28,ASSA ABLOY ENTRANCE SYSTEMS LTD
Revenue,Place,Cultural and Related Services,Recreation and Sport,5105661715,07.02.2018,Medina Leisure Centre,Property Services - Day to day Maintenance,48.62,ASSA ABLOY ENTRANCE SYSTEMS LTD
Revenue,Regeneration,Central Services,Support Services,5105662378,14.02.2018,"Enterprise House, Newport",Property Services - Day to day Maintenance,224.75,ASSA ABLOY ENTRANCE SYSTEMS LTD
Revenue,Childrens Services,Children's & Education Services,Children Looked After,5105661526,02.02.2018,In-house Fostering,Training,"1,332.72",ASSESSMENT & QUALIFICATION ALLIANCE
Revenue,Regeneration,Central Services,Support Services,5105662153,09.02.2018,Strategic Assets Team,Publications,145.00,ASSOC OF CHIEF ESTATES SURVEYORS
Revenue,Adult Services,Adult Social Care,Commissioning & Service Delivery,5105663584,23.02.2018,Deputyship Office,Professional Subscriptions,150.00,ASSOCIATION OF PUBLIC AUTHORITY DEPUTIES
Revenue,Place,Fire & Rescue Services,Fire fighting and Rescue Operations,5105663816,28.02.2018,Fire Operations,Computer Maintenance,"9,350.00",ASTRIUM LTD
Revenue,Place,Fire & Rescue Services,Fire fighting and Rescue Operations,5105662484,16.02.2018,Fire Technical Support,Vehicle Maintenance Costs,283.76,ATS EUROMASTER LTD
Revenue,Place,Fire & Rescue Services,Fire fighting and Rescue Operations,5105662485,16.02.2018,Fire Technical Support,Vehicle Maintenance Costs,204.04,ATS EUROMASTER LTD
Revenue,Place,Fire & Rescue Services,Fire fighting and Rescue Operations,5105662486,16.02.2018,Fire Technical Support,Vehicle Maintenance Costs,-487.80,ATS EUROMASTER LTD
Revenue,Adult Services,Adult Social Care,Support - Memory /Cognition-older people (65+),5105662921,21.02.2018,Memory & Cognition Residential 65+,Charges from Independent Providers,208.95,AUTUMN HOUSE CARE LTD
Revenue,Adult Services,Adult Social Care,Support - Memory /Cognition-older people (65+),5105662921,21.02.2018,Memory & Cognition Residential 65+,Charges from Independent Providers,736.92,AUTUMN HOUSE CARE LTD
Revenue,Adult Services,Adult Social Care,Support - Memory /Cognition-older people (65+),5105663377,23.02.2018,Memory & Cognition Residential 65+,Charges from Independent Providers,"1,555.72",AUTUMN HOUSE CARE LTD
Revenue,Adult Services,Adult Social Care,Support - Memory /Cognition-older people (65+),5105662921,21.02.2018,Memory & Cognition Residential 65+,Charges from Independent Providers,"1,950.20",AUTUMN HOUSE CARE LTD
Revenue,Adult Services,Adult Social Care,Physical Support - older people (65+),5105662921,21.02.2018,Physical Support Residential 65+,Charges from Independent Providers,"2,292.64",AUTUMN HOUSE CARE LTD
Revenue,Adult Services,Adult Social Care,Physical Support - older people (65+),5105662921,21.02.2018,Physical Support Residential 65+,Charges from Independent Providers,"2,292.64",AUTUMN HOUSE CARE LTD
Revenue,Adult Services,Adult Social Care,Physical Support - older people (65+),5105662921,21.02.2018,Physical Support Residential 65+,Charges from Independent Providers,"2,292.64",AUTUMN HOUSE CARE LTD
Revenue,Adult Services,Adult Social Care,Support - Memory /Cognition-older people (65+),5105662921,21.02.2018,Memory & Cognition Residential 65+,Charges from Independent Providers,"2,292.64",AUTUMN HOUSE CARE LTD
Revenue,Adult Services,Adult Social Care,Support - Memory /Cognition-older people (65+),5105662921,21.02.2018,Memory & Cognition Residential 65+,Charges from Independent Providers,"2,292.64",AUTUMN HOUSE CARE LTD
Revenue,Adult Services,Adult Social Care,Support - Memory /Cognition-older people (65+),5105662921,21.02.2018,Memory & Cognition Residential 65+,Charges from Independent Providers,"2,292.64",AUTUMN HOUSE CARE LTD
Revenue,Adult Services,Adult Social Care,Support - Memory /Cognition-older people (65+),5105662921,21.02.2018,Memory & Cognition Residential 65+,Charges from Independent Providers,"2,292.64",AUTUMN HOUSE CARE LTD
Revenue,Adult Services,Adult Social Care,Physical Support - older people (65+),5105662921,21.02.2018,Physical Support Residential 65+,Charges from Independent Providers,"2,292.64",AUTUMN HOUSE CARE LTD
Revenue,Adult Services,Adult Social Care,Physical Support - older people (65+),5105662921,21.02.2018,Physical Support Residential 65+,Charges from Independent Providers,"2,292.64",AUTUMN HOUSE CARE LTD
Revenue,Adult Services,Adult Social Care,Physical Support - older people (65+),5105662921,21.02.2018,Physical Support Residential 65+,Charges from Independent Providers,"1,950.20",AUTUMN HOUSE CARE LTD
Revenue,Adult Services,Adult Social Care,Physical Support - older people (65+),5105662921,21.02.2018,Physical Support Residential 65+,Charges from Independent Providers,"2,292.64",AUTUMN HOUSE CARE LTD
Revenue,Adult Services,Adult Social Care,Support - Memory /Cognition-older people (65+),5105662921,21.02.2018,Memory & Cognition Residential 65+,Charges from Independent Providers,"2,292.64",AUTUMN HOUSE CARE LTD
Revenue,Adult Services,Adult Social Care,Support - Memory /Cognition-older people (65+),5105662921,21.02.2018,Memory & Cognition Residential 65+,Charges from Independent Providers,"2,292.64",AUTUMN HOUSE CARE LTD
Revenue,Adult Services,Adult Social Care,Support - Memory /Cognition-older people (65+),5105662294,14.02.2018,Memory & Cognition Residential 65+,Charges from Independent Providers,"1,555.72",AUTUMN HOUSE CARE LTD
Revenue,Adult Services,Adult Social Care,Support - Memory /Cognition-older people (65+),5105662921,21.02.2018,Memory & Cognition Residential 65+,Charges from Independent Providers,"2,292.64",AUTUMN HOUSE CARE LTD
Revenue,Adult Services,Adult Social Care,Support - Memory /Cognition-older people (65+),5105662921,21.02.2018,Memory & Cognition Residential 65+,Charges from Independent Providers,"2,292.64",AUTUMN HOUSE CARE LTD
Revenue,Adult Services,Adult Social Care,Physical Support - older people (65+),5105662921,21.02.2018,Physical Support Residential 65+,Charges from Independent Providers,"1,950.20",AUTUMN HOUSE CARE LTD
Revenue,Adult Services,Adult Social Care,Support - Memory /Cognition-older people (65+),5105662921,21.02.2018,Memory & Cognition Residential 65+,Charges from Independent Providers,"2,292.64",AUTUMN HOUSE CARE LTD
Revenue,Adult Services,Adult Social Care,Support - Memory /Cognition-older people (65+),5105662921,21.02.2018,Memory & Cognition Residential 65+,Charges from Independent Providers,"2,292.64",AUTUMN HOUSE CARE LTD
Revenue,Adult Services,Adult Social Care,Support - Memory /Cognition-older people (65+),5105662921,21.02.2018,Memory & Cognition Residential 65+,Charges from Independent Providers,"2,292.64",AUTUMN HOUSE CARE LTD
Revenue,Adult Services,Adult Social Care,Support - Memory /Cognition-older people (65+),5105662921,21.02.2018,Memory & Cognition Residential 65+,Charges from Independent Providers,"2,292.64",AUTUMN HOUSE CARE LTD
Revenue,Adult Services,Adult Social Care,Mental Health Support-older people (65+),5105662921,21.02.2018,Mental Health Residential 65+,Charges from Independent Providers,"2,292.64",AUTUMN HOUSE CARE LTD
Revenue,Adult Services,Adult Social Care,Physical Support - older people (65+),5105663117,21.02.2018,Physical Support Residential 65+,Charges from Independent Providers,"2,240.56",AVON PARK RESIDENTIAL HOME
Revenue,Place,Cultural and Related Services,Service Management and Support Services,5105662120,09.02.2018,Duke of Edingburgh Award,Operational Equipment,65.00,AWARD SCHEME LTD
Revenue,Place,Cultural and Related Services,Service Management and Support Services,5105662120,09.02.2018,Duke of Edingburgh Award,Operational Equipment,149.90,AWARD SCHEME LTD
Revenue,Place,Cultural and Related Services,Service Management and Support Services,5105662120,09.02.2018,Duke of Edingburgh Award,Operational Equipment,14.99,AWARD SCHEME LTD
Revenue,Place,Cultural and Related Services,Service Management and Support Services,5105662120,09.02.2018,Duke of Edingburgh Award,Operational Equipment,3.90,AWARD SCHEME LTD
Revenue,Place,Cultural and Related Services,Service Management and Support Services,5105662120,09.02.2018,Duke of Edingburgh Award,Operational Equipment,6.25,AWARD SCHEME LTD
Revenue,Place,Cultural and Related Services,Service Management and Support Services,5105663283,21.02.2018,Duke of Edingburgh Award,Operational Equipment,81.00,AWARD SCHEME LTD
Revenue,Place,Cultural and Related Services,Service Management and Support Services,5105663283,21.02.2018,Duke of Edingburgh Award,Operational Equipment,6.25,AWARD SCHEME LTD
Revenue,Childrens Services,Children's & Education Services,Children Looked After,5105661310,02.02.2018,In-house Fostering,Boarding Out Allowances,234.52,REDACTED PERSONAL DATA
Revenue,Childrens Services,Children's & Education Services,Children Looked After,5105661949,09.02.2018,In-house Fostering,Boarding Out Allowances,234.52,REDACTED PERSONAL DATA
Revenue,Childrens Services,Children's & Education Services,Children Looked After,5105662515,16.02.2018,In-house Fostering,Boarding Out Allowances,234.52,REDACTED PERSONAL DATA
Revenue,Childrens Services,Children's & Education Services,Children Looked After,5105663397,23.02.2018,In-house Fostering,Boarding Out Allowances,234.52,REDACTED PERSONAL DATA
Revenue,Childrens Services,Children's & Education Services,Children Looked After,5105662515,16.02.2018,Leaving Care Costs,Support Children,50.00,REDACTED PERSONAL DATA
Revenue,Childrens Services,Children's & Education Services,Children Looked After,5105663397,23.02.2018,Leaving Care Costs,Support Children,50.00,REDACTED PERSONAL DATA
Revenue,Childrens Services,Children's & Education Services,Children Looked After,5105661310,02.02.2018,Leaving Care Costs,Support Children,500.00,REDACTED PERSONAL DATA
Revenue,Childrens Services,Children's & Education Services,Children Looked After,5105661310,02.02.2018,Leaving Care Costs,Support Children,50.00,REDACTED PERSONAL DATA
Revenue,Childrens Services,Children's & Education Services,Children Looked After,5105661949,09.02.2018,Leaving Care Costs,Support Children,50.00,REDACTED PERSONAL DATA
Revenue,Resources,Central Services,Support Services,5105663148,21.02.2018,Staff Benefits,Payment to Private Contractors,100.00,REDACTED PERSONAL DATA
Revenue,Resources,Central Services,Support Services,5105663148,21.02.2018,Staff Benefits,Payment to Private Contractors,100.00,REDACTED PERSONAL DATA
Revenue,Place,Housing Services,Homelessness,5105662870,21.02.2018,Leaseholds by LA,Accommodation Costs - Leaseholder Payments,866.67,REDACTED PERSONAL DATA
Revenue,Place,Housing Services,Homelessness,5105662870,21.02.2018,Leaseholds by LA,Accommodation Costs - Leaseholder Payments,888.33,REDACTED PERSONAL DATA
Revenue,Place,Housing Services,Homelessness,5105662870,21.02.2018,Leaseholds by LA,Accommodation Costs - Leaseholder Payments,799.50,REDACTED PERSONAL DATA
Capital,Corporate Items,Balance Sheet,Balance Sheet,5105663105,21.02.2018,Balance Sheet,Order Settlement to Bal Sht GL,160.16,B&M INVESTMENTS LTD
Revenue,Adult Services,Adult Social Care,Physical Support - older people (65+),5105663105,21.02.2018,Physical Support Residential 65+,Charges from Independent Providers,"1,920.80",B&M INVESTMENTS LTD
Revenue,Childrens Services,Children's & Education Services,Safeguarding Children/Young Peoples Svs,5105663549,23.02.2018,Children's office costs,Office Equipment,55.95,BACK CARE SOLUTIONS LTD
Capital,Place,Capital,Capital,5105661910,09.02.2018,Parks and Gardens Capital,External Design and Supervision Fees,"6,703.00",BAE SYSTEMS PROPERTIES LTD
Revenue,Resources,Central Services,Support Services,5105661830,07.02.2018,Litigation Costs,Legal Fees - Other Parties,550.00,REDACTED PERSONAL DATA
Revenue,Place,Fire & Rescue Services,Fire fighting and Rescue Operations,5105662367,14.02.2018,Fire Technical Support,Payment to Private Contractors,"7,005.79",BALLYCLARE LTD
Revenue,Place,Fire & Rescue Services,Fire fighting and Rescue Operations,5105662364,14.02.2018,Fire Technical Support,Payment to Private Contractors,877.76,BALLYCLARE LTD
Revenue,Adult Services,Adult Social Care,Social Care Activities,5105662457,16.02.2018,Commissioning Manager Individual Support,Consultants Fees,"3,100.00",BALTIMORE CONSULTING LIMITED
Revenue,Resources,Central Services,Support Services,5105662441,14.02.2018,Human Resources,Stationery,2.46,SUPPLIES TEAM LTD
Revenue,Resources,Central Services,Support Services,5105662441,14.02.2018,Human Resources,Stationery,0.70,SUPPLIES TEAM LTD
Revenue,Resources,Central Services,Support Services,5105662441,14.02.2018,Human Resources,Stationery,0.24,SUPPLIES TEAM LTD
Revenue,Place,Cultural and Related Services,Culture and Heritage,5105662353,14.02.2018,Dinosaur Isle Museum (Sandown Geology),Stationery,1.60,SUPPLIES TEAM LTD
Revenue,Place,Cultural and Related Services,Culture and Heritage,5105662353,14.02.2018,Dinosaur Isle Museum (Sandown Geology),Stationery,0.39,SUPPLIES TEAM LTD
Revenue,Place,Cultural and Related Services,Culture and Heritage,5105662353,14.02.2018,Dinosaur Isle Museum (Sandown Geology),Stationery,1.90,SUPPLIES TEAM LTD
Revenue,Place,Cultural and Related Services,Culture and Heritage,5105662353,14.02.2018,Dinosaur Isle Museum (Sandown Geology),Stationery,0.76,SUPPLIES TEAM LTD
Revenue,Place,Cultural and Related Services,Culture and Heritage,5105662353,14.02.2018,Dinosaur Isle Museum (Sandown Geology),Stationery,1.38,SUPPLIES TEAM LTD
Revenue,Place,Cultural and Related Services,Culture and Heritage,5105662353,14.02.2018,Dinosaur Isle Museum (Sandown Geology),Stationery,0.53,SUPPLIES TEAM LTD
Revenue,Adult Services,Adult Social Care,Assistive Equipment & Technology,5105662356,14.02.2018,Wightcare,Stationery,0.53,SUPPLIES TEAM LTD
Revenue,Adult Services,Adult Social Care,Assistive Equipment & Technology,5105662356,14.02.2018,Wightcare,Stationery,2.46,SUPPLIES TEAM LTD
Revenue,Adult Services,Adult Social Care,Assistive Equipment & Technology,5105662356,14.02.2018,Wightcare,Stationery,0.39,SUPPLIES TEAM LTD
Revenue,Adult Services,Adult Social Care,Assistive Equipment & Technology,5105662356,14.02.2018,Wightcare,Stationery,0.57,SUPPLIES TEAM LTD
Revenue,Adult Services,Adult Social Care,Assistive Equipment & Technology,5105662356,14.02.2018,Wightcare,Stationery,21.66,SUPPLIES TEAM LTD
Revenue,Adult Services,Adult Social Care,Assistive Equipment & Technology,5105662346,14.02.2018,Community Equipment Store,Stationery,0.39,SUPPLIES TEAM LTD
Revenue,Adult Services,Adult Social Care,Assistive Equipment & Technology,5105662346,14.02.2018,Community Equipment Store,Stationery,16.08,SUPPLIES TEAM LTD
Revenue,Adult Services,Adult Social Care,Assistive Equipment & Technology,5105662346,14.02.2018,Community Equipment Store,Stationery,3.60,SUPPLIES TEAM LTD
Revenue,Place,Environmental & Regulatory Services,Regulatory Services,5105662331,23.02.2018,Licensing Services,Stationery,0.80,SUPPLIES TEAM LTD
Revenue,Place,Environmental & Regulatory Services,Regulatory Services,5105662331,23.02.2018,Licensing Services,Stationery,0.78,SUPPLIES TEAM LTD
Revenue,Place,Environmental & Regulatory Services,Regulatory Services,5105662331,23.02.2018,Licensing Services,Stationery,2.51,SUPPLIES TEAM LTD
Revenue,Place,Environmental & Regulatory Services,Regulatory Services,5105662331,23.02.2018,Licensing Services,Stationery,3.11,SUPPLIES TEAM LTD
Revenue,Place,Environmental & Regulatory Services,Regulatory Services,5105662331,23.02.2018,Licensing Services,Stationery,2.72,SUPPLIES TEAM LTD
Revenue,Place,Environmental & Regulatory Services,Regulatory Services,5105662331,23.02.2018,Licensing Services,Stationery,1.23,SUPPLIES TEAM LTD
Revenue,Place,Environmental & Regulatory Services,Regulatory Services,5105662331,23.02.2018,Licensing Services,Stationery,0.39,SUPPLIES TEAM LTD
Revenue,Place,Environmental & Regulatory Services,Regulatory Services,5105662331,23.02.2018,Licensing Services,Stationery,17.14,SUPPLIES TEAM LTD
Revenue,Place,Environmental & Regulatory Services,Regulatory Services,5105662331,23.02.2018,Licensing Services,Stationery,8.04,SUPPLIES TEAM LTD
Revenue,Resources,Central Services,Support Services,5105662165,09.02.2018,Corporate Stores,Stationery,27.16,SUPPLIES TEAM LTD
Revenue,Childrens Services,Children's & Education Services,Safeguarding Children/Young Peoples Svs,5105662444,14.02.2018,Service Management (Children & Families),Stationery,4.31,SUPPLIES TEAM LTD
Revenue,Resources,Central Services,Corporate and Democratic Core,5105662444,14.02.2018,Committee and Scrutiny Team,Stationery,15.94,SUPPLIES TEAM LTD
Revenue,Place,Housing Services,Private Sector Housing Renewal,5105662444,14.02.2018,Renewal & Enforcement,Stationery,1.48,SUPPLIES TEAM LTD
Revenue,Place,Housing Services,Private Sector Housing Renewal,5105662444,14.02.2018,Renewal & Enforcement,Stationery,0.80,SUPPLIES TEAM LTD
Revenue,Place,Housing Services,Private Sector Housing Renewal,5105662444,14.02.2018,Renewal & Enforcement,Stationery,2.49,SUPPLIES TEAM LTD
Revenue,Place,Housing Services,Private Sector Housing Renewal,5105662444,14.02.2018,Renewal & Enforcement,Stationery,0.80,SUPPLIES TEAM LTD
Revenue,Place,Housing Services,Private Sector Housing Renewal,5105662444,14.02.2018,Renewal & Enforcement,Stationery,0.70,SUPPLIES TEAM LTD
Revenue,Place,Housing Services,Private Sector Housing Renewal,5105662444,14.02.2018,Renewal & Enforcement,Stationery,1.60,SUPPLIES TEAM LTD
Revenue,Place,Housing Services,Private Sector Housing Renewal,5105662444,14.02.2018,Renewal & Enforcement,Stationery,0.27,SUPPLIES TEAM LTD
Revenue,Adult Services,Adult Social Care,Commissioning & Service Delivery,5105662444,14.02.2018,Head of Adult Social Care,Stationery,17.14,SUPPLIES TEAM LTD
Revenue,Place,Central Services,Central Services to the Public,5105662794,16.02.2018,Coroner,Stationery,0.80,SUPPLIES TEAM LTD
Revenue,Place,Central Services,Central Services to the Public,5105662794,16.02.2018,Coroner,Stationery,2.28,SUPPLIES TEAM LTD
Revenue,Place,Central Services,Central Services to the Public,5105662794,16.02.2018,Coroner,Stationery,1.37,SUPPLIES TEAM LTD
Revenue,Place,Central Services,Central Services to the Public,5105662794,16.02.2018,Coroner,Stationery,9.57,SUPPLIES TEAM LTD
Revenue,Place,Central Services,Central Services to the Public,5105662794,16.02.2018,Coroner,Stationery,29.96,SUPPLIES TEAM LTD
Revenue,Place,Central Services,Central Services to the Public,5105662794,16.02.2018,Coroner,Stationery,1.08,SUPPLIES TEAM LTD
Revenue,Childrens Services,Children's & Education Services,Management & Support Services,5105662824,16.02.2018,Specialist Service Business Admin,Stationery,2.58,SUPPLIES TEAM LTD
Revenue,Childrens Services,Children's & Education Services,Management & Support Services,5105662826,16.02.2018,Specialist Service Business Admin,Stationery,-2.58,SUPPLIES TEAM LTD
Revenue,Childrens Services,Children's & Education Services,Management & Support Services,5105662826,16.02.2018,Specialist Service Business Admin,Stationery,-2.47,SUPPLIES TEAM LTD
Revenue,Childrens Services,Children's & Education Services,Management & Support Services,5105662824,16.02.2018,Specialist Service Business Admin,Stationery,2.47,SUPPLIES TEAM LTD
Revenue,Childrens Services,Children's & Education Services,Management & Support Services,5105662824,16.02.2018,Specialist Service Business Admin,Stationery,0.69,SUPPLIES TEAM LTD
Revenue,Childrens Services,Children's & Education Services,Management & Support Services,5105662826,16.02.2018,Specialist Service Business Admin,Stationery,-0.69,SUPPLIES TEAM LTD
Revenue,Childrens Services,Children's & Education Services,Management & Support Services,5105662826,16.02.2018,Pre-school Special Educational Needs,Stationery,-1.46,SUPPLIES TEAM LTD
Revenue,Childrens Services,Children's & Education Services,Management & Support Services,5105662824,16.02.2018,Pre-school Special Educational Needs,Stationery,1.46,SUPPLIES TEAM LTD
Revenue,Place,Environmental & Regulatory Services,Regulatory Services,5105663637,23.02.2018,Licensing Services,Stationery,-0.80,SUPPLIES TEAM LTD
Revenue,Place,Environmental & Regulatory Services,Regulatory Services,5105663638,28.02.2018,Licensing Services,Stationery,0.80,SUPPLIES TEAM LTD
Revenue,Place,Environmental & Regulatory Services,Regulatory Services,5105663638,28.02.2018,Licensing Services,Stationery,0.78,SUPPLIES TEAM LTD
Revenue,Place,Environmental & Regulatory Services,Regulatory Services,5105663637,23.02.2018,Licensing Services,Stationery,-0.78,SUPPLIES TEAM LTD
Revenue,Place,Environmental & Regulatory Services,Regulatory Services,5105663637,23.02.2018,Licensing Services,Stationery,-2.51,SUPPLIES TEAM LTD
Revenue,Place,Environmental & Regulatory Services,Regulatory Services,5105663638,28.02.2018,Licensing Services,Stationery,2.51,SUPPLIES TEAM LTD
Revenue,Place,Environmental & Regulatory Services,Regulatory Services,5105663638,28.02.2018,Licensing Services,Stationery,3.11,SUPPLIES TEAM LTD
Revenue,Place,Environmental & Regulatory Services,Regulatory Services,5105663637,23.02.2018,Licensing Services,Stationery,-3.11,SUPPLIES TEAM LTD
Revenue,Place,Environmental & Regulatory Services,Regulatory Services,5105663637,23.02.2018,Licensing Services,Stationery,-2.72,SUPPLIES TEAM LTD
Revenue,Place,Environmental & Regulatory Services,Regulatory Services,5105663638,28.02.2018,Licensing Services,Stationery,2.72,SUPPLIES TEAM LTD
Revenue,Place,Environmental & Regulatory Services,Regulatory Services,5105663638,28.02.2018,Licensing Services,Stationery,1.23,SUPPLIES TEAM LTD
Revenue,Place,Environmental & Regulatory Services,Regulatory Services,5105663637,23.02.2018,Licensing Services,Stationery,-1.23,SUPPLIES TEAM LTD
Revenue,Place,Environmental & Regulatory Services,Regulatory Services,5105663637,23.02.2018,Licensing Services,Stationery,-0.39,SUPPLIES TEAM LTD
Revenue,Place,Environmental & Regulatory Services,Regulatory Services,5105663638,28.02.2018,Licensing Services,Stationery,0.39,SUPPLIES TEAM LTD
Revenue,Place,Environmental & Regulatory Services,Regulatory Services,5105663638,28.02.2018,Licensing Services,Stationery,17.14,SUPPLIES TEAM LTD
Revenue,Place,Environmental & Regulatory Services,Regulatory Services,5105663637,23.02.2018,Licensing Services,Stationery,-17.14,SUPPLIES TEAM LTD
Revenue,Place,Environmental & Regulatory Services,Regulatory Services,5105663637,23.02.2018,Licensing Services,Stationery,-8.04,SUPPLIES TEAM LTD
Revenue,Place,Environmental & Regulatory Services,Regulatory Services,5105663638,28.02.2018,Licensing Services,Stationery,8.04,SUPPLIES TEAM LTD
Revenue,Place,Central Services,Central Services to the Public,5105663644,23.02.2018,Coroner,Stationery,-1.37,SUPPLIES TEAM LTD
Revenue,Place,Central Services,Central Services to the Public,5105663644,23.02.2018,Coroner,Stationery,-1.08,SUPPLIES TEAM LTD
Revenue,Place,Housing Services,Private Sector Housing Renewal,5105663260,21.02.2018,Renewal & Enforcement,Stationery,6.99,SUPPLIES TEAM LTD
Revenue,Place,Housing Services,Private Sector Housing Renewal,5105663260,21.02.2018,Renewal & Enforcement,Stationery,4.49,SUPPLIES TEAM LTD
Revenue,Place,Housing Services,Private Sector Housing Renewal,5105663260,21.02.2018,Renewal & Enforcement,Stationery,0.78,SUPPLIES TEAM LTD
Revenue,Resources,Central Services,Corporate and Democratic Core,5105663260,21.02.2018,Cabinet Support,Stationery,8.57,SUPPLIES TEAM LTD
Revenue,Childrens Services,Children's & Education Services,Youth Justice,5105663260,21.02.2018,Youth Offending Team,Stationery,25.71,SUPPLIES TEAM LTD
Revenue,Adult Services,Adult Social Care,Commissioning & Service Delivery,5105663260,21.02.2018,Head of Adult Social Care,Stationery,6.26,SUPPLIES TEAM LTD
Revenue,Adult Services,Adult Social Care,Commissioning & Service Delivery,5105663260,21.02.2018,Head of Adult Social Care,Stationery,17.14,SUPPLIES TEAM LTD
Revenue,Childrens Services,Children's & Education Services,Management & Support Services,5105664084,28.02.2018,Specialist Service Business Admin,Stationery,85.70,SUPPLIES TEAM LTD
Revenue,Resources,Central Services,Central Services to the Public,5105664012,28.02.2018,Council Tax,Stationery,85.70,SUPPLIES TEAM LTD
Revenue,Childrens Services,Children's & Education Services,Youth Justice,5105664014,28.02.2018,Youth Offending Team,Stationery,25.71,SUPPLIES TEAM LTD
Revenue,Chief Executive,Central Services,Support Services,5105664014,28.02.2018,Media,Stationery,0.54,SUPPLIES TEAM LTD
Revenue,Place,Central Services,Central Services to the Public,5105664187,28.02.2018,Coroner,Stationery,1.08,SUPPLIES TEAM LTD
Revenue,Childrens Services,Children's & Education Services,Other Education and Community Budget,5105651105,07.02.2018,Education & Participation,Stationery,6.45,SUPPLIES TEAM LTD
Revenue,Resources,Central Services,Central Services to the Public,5105651105,07.02.2018,Electoral Registration Canvassing,Stationery,14.80,SUPPLIES TEAM LTD
Revenue,Childrens Services,Children's & Education Services,Other Education and Community Budget,5105651105,07.02.2018,Education & Participation,Stationery,5.94,SUPPLIES TEAM LTD
Revenue,Place,Housing Services,Private Sector Housing Renewal,5105651105,07.02.2018,Renewal & Enforcement,Stationery,1.90,SUPPLIES TEAM LTD
Revenue,Place,Housing Services,Private Sector Housing Renewal,5105651105,07.02.2018,Renewal & Enforcement,Stationery,2.46,SUPPLIES TEAM LTD
Revenue,Place,Housing Services,Private Sector Housing Renewal,5105661709,09.02.2018,Renewal & Enforcement,Stationery,0.34,SUPPLIES TEAM LTD
Revenue,Place,Housing Services,Private Sector Housing Renewal,5105661709,09.02.2018,Renewal & Enforcement,Stationery,1.23,SUPPLIES TEAM LTD
Revenue,Place,Housing Services,Private Sector Housing Renewal,5105661709,09.02.2018,Renewal & Enforcement,Stationery,0.19,SUPPLIES TEAM LTD
Revenue,Childrens Services,Children's & Education Services,Other Education and Community Budget,5105661709,09.02.2018,Education & Participation,Stationery,1.61,SUPPLIES TEAM LTD
Revenue,Place,Housing Services,Private Sector Housing Renewal,5105661709,09.02.2018,Renewal & Enforcement,Stationery,1.61,SUPPLIES TEAM LTD
Revenue,Childrens Services,Children's & Education Services,Safeguarding Children/Young Peoples Svs,5105661709,09.02.2018,Service Management (Children & Families),Stationery,2.46,SUPPLIES TEAM LTD
Revenue,Childrens Services,Children's & Education Services,Safeguarding Children/Young Peoples Svs,5105661709,09.02.2018,Service Management (Children & Families),Stationery,0.80,SUPPLIES TEAM LTD
Revenue,Place,Housing Services,Private Sector Housing Renewal,5105661709,09.02.2018,Renewal & Enforcement,Stationery,1.06,SUPPLIES TEAM LTD
Revenue,Resources,Central Services,Support Services,5105662441,14.02.2018,Human Resources,Stationery,0.53,SUPPLIES TEAM LTD
Revenue,Resources,Central Services,Support Services,5105662441,14.02.2018,Call Centre,Stationery,17.15,SUPPLIES TEAM LTD
Revenue,Resources,Central Services,Support Services,5105662441,14.02.2018,Call Centre,Stationery,0.08,SUPPLIES TEAM LTD
Revenue,Resources,Central Services,Support Services,5105662441,14.02.2018,Call Centre,Stationery,0.27,SUPPLIES TEAM LTD
Revenue,Resources,Central Services,Support Services,5105662441,14.02.2018,Call Centre,Stationery,2.46,SUPPLIES TEAM LTD
Revenue,Resources,Central Services,Support Services,5105662441,14.02.2018,Call Centre,Stationery,8.71,SUPPLIES TEAM LTD
Revenue,Resources,Central Services,Support Services,5105662441,14.02.2018,Call Centre,Stationery,6.50,SUPPLIES TEAM LTD
Revenue,Resources,Central Services,Support Services,5105662441,14.02.2018,Payments Social Care Team,Stationery,57.04,SUPPLIES TEAM LTD
Revenue,Place,Environmental & Regulatory Services,Service Management and Support Services,5105662331,23.02.2018,Regulatory Management & Admin Support,Stationery,55.87,SUPPLIES TEAM LTD
Revenue,Place,Environmental & Regulatory Services,Service Management and Support Services,5105662331,23.02.2018,Regulatory Management & Admin Support,Stationery,37.44,SUPPLIES TEAM LTD
Revenue,Place,Cultural and Related Services,Library Service,5105662445,14.02.2018,Public Libraries Central,Stationery,8.52,SUPPLIES TEAM LTD
Revenue,Place,Cultural and Related Services,Library Service,5105662445,14.02.2018,Public Libraries Central,Stationery,14.39,SUPPLIES TEAM LTD
Revenue,Place,Cultural and Related Services,Library Service,5105662445,14.02.2018,Public Libraries Central,Stationery,15.13,SUPPLIES TEAM LTD
Revenue,Place,Cultural and Related Services,Library Service,5105662445,14.02.2018,Public Libraries Central,Stationery,1.98,SUPPLIES TEAM LTD
Revenue,Childrens Services,Children's & Education Services,Other Education and Community Budget,5105662164,09.02.2018,SEND Independent Advice & Support,Stationery,3.00,SUPPLIES TEAM LTD
Revenue,Childrens Services,Children's & Education Services,Other Education and Community Budget,5105662164,09.02.2018,SEND Independent Advice & Support,Stationery,0.70,SUPPLIES TEAM LTD
Revenue,Childrens Services,Children's & Education Services,Other Education and Community Budget,5105662164,09.02.2018,SEND Independent Advice & Support,Stationery,4.72,SUPPLIES TEAM LTD
Revenue,Childrens Services,Children's & Education Services,Other Education and Community Budget,5105662164,09.02.2018,SEND Independent Advice & Support,Stationery,1.23,SUPPLIES TEAM LTD
Revenue,Childrens Services,Children's & Education Services,Other Education and Community Budget,5105662164,09.02.2018,SEND Independent Advice & Support,Stationery,1.80,SUPPLIES TEAM LTD
Revenue,Childrens Services,Children's & Education Services,Other Education and Community Budget,5105662164,09.02.2018,SEND Independent Advice & Support,Stationery,1.23,SUPPLIES TEAM LTD
Revenue,Childrens Services,Children's & Education Services,Other Education and Community Budget,5105662164,09.02.2018,SEND Independent Advice & Support,Stationery,8.57,SUPPLIES TEAM LTD
Revenue,Childrens Services,Children's & Education Services,Family Support Services,5105662158,09.02.2018,Disabled Childrens Intervention Team,Stationery,2.46,SUPPLIES TEAM LTD
Revenue,Childrens Services,Children's & Education Services,Safeguarding Children/Young Peoples Svs,5105662444,14.02.2018,Fostering Team,Stationery,3.60,SUPPLIES TEAM LTD
Revenue,Childrens Services,Children's & Education Services,Safeguarding Children/Young Peoples Svs,5105662444,14.02.2018,Fostering Team,Stationery,0.38,SUPPLIES TEAM LTD
Revenue,Resources,Central Services,Support Services,5105662444,14.02.2018,Legal Services Section,Stationery,2.46,SUPPLIES TEAM LTD
Revenue,Resources,Central Services,Support Services,5105662444,14.02.2018,Legal Services Section,Stationery,2.28,SUPPLIES TEAM LTD
Revenue,Resources,Central Services,Support Services,5105662444,14.02.2018,Legal Services Section,Stationery,0.33,SUPPLIES TEAM LTD
Revenue,Resources,Central Services,Support Services,5105662444,14.02.2018,County Hall Central Mail Room,Stationery,1.72,SUPPLIES TEAM LTD
Revenue,Resources,Central Services,Support Services,5105662444,14.02.2018,Legal Services Section,Stationery,25.71,SUPPLIES TEAM LTD
Revenue,Place,Cultural and Related Services,Recreation and Sport,5105662813,16.02.2018,Medina Leisure Centre,Stationery,1.60,SUPPLIES TEAM LTD
Revenue,Place,Cultural and Related Services,Recreation and Sport,5105662813,16.02.2018,Medina Leisure Centre,Stationery,0.81,SUPPLIES TEAM LTD
Revenue,Place,Cultural and Related Services,Recreation and Sport,5105662813,16.02.2018,Medina Leisure Centre,Stationery,2.47,SUPPLIES TEAM LTD
Revenue,Place,Cultural and Related Services,Recreation and Sport,5105662813,16.02.2018,Medina Leisure Centre,Stationery,2.47,SUPPLIES TEAM LTD
Revenue,Place,Cultural and Related Services,Recreation and Sport,5105662813,16.02.2018,Medina Leisure Centre,Stationery,13.32,SUPPLIES TEAM LTD
Revenue,Place,Cultural and Related Services,Recreation and Sport,5105662813,16.02.2018,Medina Leisure Centre,Stationery,11.88,SUPPLIES TEAM LTD
Revenue,Place,Cultural and Related Services,Recreation and Sport,5105662820,16.02.2018,Medina Leisure Centre,Stationery,9.98,SUPPLIES TEAM LTD
Revenue,Place,Cultural and Related Services,Recreation and Sport,5105662813,16.02.2018,Medina Leisure Centre,Stationery,3.43,SUPPLIES TEAM LTD
Revenue,Place,Cultural and Related Services,Recreation and Sport,5105662813,16.02.2018,Medina Leisure Centre,Stationery,1.23,SUPPLIES TEAM LTD
Revenue,Place,Cultural and Related Services,Recreation and Sport,5105662813,16.02.2018,Medina Leisure Centre,Stationery,0.71,SUPPLIES TEAM LTD
Revenue,Place,Cultural and Related Services,Recreation and Sport,5105662813,16.02.2018,Medina Leisure Centre,Stationery,0.53,SUPPLIES TEAM LTD
Revenue,Place,Cultural and Related Services,Recreation and Sport,5105662813,16.02.2018,Medina Leisure Centre,Stationery,1.61,SUPPLIES TEAM LTD
Revenue,Place,Central Services,Central Services to the Public,5105662794,16.02.2018,"Registration Of Births,Deaths, Marriages",Stationery,4.40,SUPPLIES TEAM LTD
Revenue,Place,Central Services,Central Services to the Public,5105662794,16.02.2018,"Registration Of Births,Deaths, Marriages",Stationery,17.14,SUPPLIES TEAM LTD
Revenue,Place,Environmental & Regulatory Services,Service Management and Support Services,5105663637,23.02.2018,Regulatory Management & Admin Support,Stationery,-55.87,SUPPLIES TEAM LTD
Revenue,Place,Environmental & Regulatory Services,Service Management and Support Services,5105663638,28.02.2018,Regulatory Management & Admin Support,Stationery,55.87,SUPPLIES TEAM LTD
Revenue,Place,Environmental & Regulatory Services,Service Management and Support Services,5105663638,28.02.2018,Regulatory Management & Admin Support,Stationery,37.44,SUPPLIES TEAM LTD
Revenue,Place,Environmental & Regulatory Services,Service Management and Support Services,5105663637,23.02.2018,Regulatory Management & Admin Support,Stationery,-37.44,SUPPLIES TEAM LTD
Revenue,Resources,Central Services,Support Services,5105663854,28.02.2018,Payroll,Stationery,35.19,SUPPLIES TEAM LTD
Revenue,Resources,Central Services,Support Services,5105663260,21.02.2018,Legal Services Section,Stationery,6.12,SUPPLIES TEAM LTD
Revenue,Place,Cultural and Related Services,Service Management and Support Services,5105663260,21.02.2018,Leisure Management & Admin,Stationery,1.90,SUPPLIES TEAM LTD
Revenue,Resources,Central Services,Support Services,5105663260,21.02.2018,Legal Services Section,Stationery,8.57,SUPPLIES TEAM LTD
Revenue,Resources,Central Services,Support Services,5105663260,21.02.2018,Legal Services Section,Stationery,34.28,SUPPLIES TEAM LTD
Revenue,Resources,Central Services,Support Services,5105663260,21.02.2018,Legal Services Section,Stationery,6.26,SUPPLIES TEAM LTD
Revenue,Place,Cultural and Related Services,Library Service,5105663568,23.02.2018,Public Libraries Central,Stationery,3.00,SUPPLIES TEAM LTD
Revenue,Resources,Central Services,Support Services,5105663571,23.02.2018,Payroll,Stationery,34.28,SUPPLIES TEAM LTD
Revenue,Resources,Central Services,Support Services,5105663571,23.02.2018,Payroll,Stationery,0.80,SUPPLIES TEAM LTD
Revenue,Childrens Services,Children's & Education Services,Other Education and Community Budget,5105664084,28.02.2018,Special Educational Needs Reforms Grant,Stationery,85.70,SUPPLIES TEAM LTD
Revenue,Resources,Central Services,Central Services to the Public,5105664014,28.02.2018,National Non Domestic Rates,Stationery,17.14,SUPPLIES TEAM LTD
Revenue,Childrens Services,Children's & Education Services,Safeguarding Children/Young Peoples Svs,5105664014,28.02.2018,Fostering Team,Stationery,8.62,SUPPLIES TEAM LTD
Revenue,Resources,Central Services,Support Services,5105659516,07.02.2018,ICT CCR,Stationery,2.65,SUPPLIES TEAM LTD
Revenue,Resources,Central Services,Support Services,5105659516,07.02.2018,ICT CCR,Stationery,5.20,SUPPLIES TEAM LTD
Revenue,Place,Cultural and Related Services,Service Management and Support Services,5105651105,07.02.2018,Leisure Management & Admin,Stationery,18.78,SUPPLIES TEAM LTD
Revenue,Resources,Central Services,Support Services,5105661709,09.02.2018,Legal Services Section,Stationery,2.46,SUPPLIES TEAM LTD
Revenue,Resources,Central Services,Support Services,5105661709,09.02.2018,Legal Services Section,Stationery,0.53,SUPPLIES TEAM LTD
Revenue,Resources,Central Services,Support Services,5105661709,09.02.2018,Legal Services Section,Stationery,0.69,SUPPLIES TEAM LTD
Revenue,Place,Cultural and Related Services,Service Management and Support Services,5105661709,09.02.2018,Leisure Management & Admin,Stationery,17.14,SUPPLIES TEAM LTD
Revenue,Place,Cultural and Related Services,Library Service,5105661712,07.02.2018,Public Libraries Central,Stationery,2.80,SUPPLIES TEAM LTD
Revenue,Place,Cultural and Related Services,Library Service,5105661712,07.02.2018,Public Libraries Central,Stationery,6.00,SUPPLIES TEAM LTD
Revenue,Place,Cultural and Related Services,Library Service,5105661712,07.02.2018,Public Libraries Central,Stationery,0.94,SUPPLIES TEAM LTD
Revenue,Place,Cultural and Related Services,Culture and Heritage,5105661712,07.02.2018,Archives,Stationery,7.43,SUPPLIES TEAM LTD
Revenue,Place,Cultural and Related Services,Culture and Heritage,5105661712,07.02.2018,Archives,Stationery,7.43,SUPPLIES TEAM LTD
Revenue,Place,Cultural and Related Services,Service Management and Support Services,5105661694,07.02.2018,Leisure Management & Admin,Stationery,-0.17,SUPPLIES TEAM LTD
Revenue,Adult Services,Adult Social Care,Learning Disability Suppt-adults (18-64),5105662190,09.02.2018,No-Barriers,Stationery,17.14,SUPPLIES TEAM LTD
Revenue,Adult Services,Adult Social Care,Learning Disability Suppt-adults (18-64),5105662190,09.02.2018,No-Barriers,Stationery,0.53,SUPPLIES TEAM LTD
Revenue,Adult Services,Adult Social Care,Learning Disability Suppt-adults (18-64),5105662381,14.02.2018,No-Barriers,Stationery,9.67,SUPPLIES TEAM LTD
Revenue,Adult Services,Adult Social Care,Learning Disability Suppt-adults (18-64),5105662381,14.02.2018,No-Barriers,Stationery,25.71,SUPPLIES TEAM LTD
Revenue,Adult Services,Adult Social Care,Learning Disability Suppt-adults (18-64),5105662381,14.02.2018,No-Barriers,Stationery,1.60,SUPPLIES TEAM LTD
Revenue,Adult Services,Adult Social Care,Learning Disability Suppt-adults (18-64),5105662381,14.02.2018,No-Barriers,Stationery,1.06,SUPPLIES TEAM LTD
Revenue,Resources,Central Services,Support Services,5105662441,14.02.2018,Call Centre,Stationery,0.54,SUPPLIES TEAM LTD
Revenue,Resources,Central Services,Support Services,5105662441,14.02.2018,Call Centre,Stationery,8.71,SUPPLIES TEAM LTD
Revenue,Place,Planning services,Management & Support Services,5105662794,16.02.2018,Planning Management,Stationery,51.42,SUPPLIES TEAM LTD
Revenue,Place,Planning services,Management & Support Services,5105662803,16.02.2018,Planning Management,Stationery,26.36,SUPPLIES TEAM LTD
Revenue,Place,Planning services,Management & Support Services,5105662794,16.02.2018,Planning Management,Stationery,4.80,SUPPLIES TEAM LTD
Revenue,Place,Planning services,Management & Support Services,5105662794,16.02.2018,Planning Management,Stationery,2.80,SUPPLIES TEAM LTD
Revenue,Place,Planning services,Management & Support Services,5105662794,16.02.2018,Planning Management,Stationery,3.78,SUPPLIES TEAM LTD
Revenue,Place,Planning services,Management & Support Services,5105662794,16.02.2018,Planning Management,Stationery,4.94,SUPPLIES TEAM LTD
Revenue,Place,Planning services,Management & Support Services,5105662794,16.02.2018,Planning Management,Stationery,1.80,SUPPLIES TEAM LTD
Revenue,Place,Planning services,Management & Support Services,5105662794,16.02.2018,Planning Management,Stationery,1.23,SUPPLIES TEAM LTD
Revenue,Adult Services,Adult Social Care,Central Codes (to be reallocated),5105662815,16.02.2018,Community Outreach,Stationery,17.14,SUPPLIES TEAM LTD
Revenue,Adult Services,Adult Social Care,Central Codes (to be reallocated),5105662815,16.02.2018,Community Outreach,Stationery,0.78,SUPPLIES TEAM LTD
Revenue,Adult Services,Adult Social Care,Central Codes (to be reallocated),5105662815,16.02.2018,Community Outreach,Stationery,0.53,SUPPLIES TEAM LTD
Revenue,Adult Services,Adult Social Care,Central Codes (to be reallocated),5105662815,16.02.2018,Community Outreach,Stationery,0.24,SUPPLIES TEAM LTD
Revenue,Adult Services,Adult Social Care,Central Codes (to be reallocated),5105662815,16.02.2018,Community Outreach,Stationery,1.23,SUPPLIES TEAM LTD
Revenue,Adult Services,Adult Social Care,Central Codes (to be reallocated),5105662815,16.02.2018,Community Outreach,Stationery,4.92,SUPPLIES TEAM LTD
Revenue,Adult Services,Adult Social Care,Central Codes (to be reallocated),5105662815,16.02.2018,Community Outreach,Stationery,49.46,SUPPLIES TEAM LTD
Revenue,Adult Services,Adult Social Care,Central Codes (to be reallocated),5105662816,16.02.2018,Community Outreach,Stationery,-49.46,SUPPLIES TEAM LTD
Revenue,Adult Services,Adult Social Care,Central Codes (to be reallocated),5105662815,16.02.2018,Community Outreach,Stationery,13.50,SUPPLIES TEAM LTD
Revenue,Place,Cultural and Related Services,Recreation and Sport,5105663168,21.02.2018,The Heights,Stationery,1.00,SUPPLIES TEAM LTD
Revenue,Childrens Services,Children's & Education Services,Management & Support Services,5105662824,16.02.2018,"Speech, Language and Communication",Stationery,7.60,SUPPLIES TEAM LTD
Revenue,Place,Planning services,Management & Support Services,5105663644,23.02.2018,Planning Management,Stationery,-4.80,SUPPLIES TEAM LTD
Revenue,Place,Planning services,Management & Support Services,5105663644,23.02.2018,Planning Management,Stationery,-1.80,SUPPLIES TEAM LTD
Revenue,Place,Planning services,Management & Support Services,5105663644,23.02.2018,Planning Management,Stationery,-1.23,SUPPLIES TEAM LTD
Revenue,Place,Highways and Transport Services,Parking Services,5105663260,21.02.2018,Parking Management,Stationery,0.39,SUPPLIES TEAM LTD
Revenue,Childrens Services,Children's & Education Services,Other Education and Community Budget,5105663260,21.02.2018,Schools Asset Management,Stationery,2.90,SUPPLIES TEAM LTD
Revenue,Childrens Services,Children's & Education Services,Other Education and Community Budget,5105663260,21.02.2018,Schools Asset Management,Stationery,1.48,SUPPLIES TEAM LTD
Revenue,Childrens Services,Children's & Education Services,Other Education and Community Budget,5105663260,21.02.2018,Schools Asset Management,Stationery,0.20,SUPPLIES TEAM LTD
Revenue,Childrens Services,Children's & Education Services,Other Education and Community Budget,5105663260,21.02.2018,Schools Asset Management,Stationery,1.06,SUPPLIES TEAM LTD
Revenue,Childrens Services,Children's & Education Services,Other Education and Community Budget,5105663260,21.02.2018,Schools Asset Management,Stationery,3.00,SUPPLIES TEAM LTD
Revenue,Resources,Housing Services,Housing Benefits Administration,5105663260,21.02.2018,Housing Benefit,Stationery,0.33,SUPPLIES TEAM LTD
Revenue,Place,Highways and Transport Services,Parking Services,5105663260,21.02.2018,Parking Management,Stationery,26.01,SUPPLIES TEAM LTD
Revenue,Adult Services,Adult Social Care,Commissioning & Service Delivery,5105664008,28.02.2018,Adult Social Care Enterprise House,Stationery,1.06,SUPPLIES TEAM LTD
Revenue,Adult Services,Adult Social Care,Commissioning & Service Delivery,5105664008,28.02.2018,Adult Social Care Enterprise House,Stationery,4.92,SUPPLIES TEAM LTD
Revenue,Adult Services,Adult Social Care,Commissioning & Service Delivery,5105664008,28.02.2018,Adult Social Care Enterprise House,Stationery,4.83,SUPPLIES TEAM LTD
Revenue,Adult Services,Adult Social Care,Commissioning & Service Delivery,5105664008,28.02.2018,Adult Social Care Enterprise House,Stationery,4.92,SUPPLIES TEAM LTD
Revenue,Adult Services,Adult Social Care,Commissioning & Service Delivery,5105664008,28.02.2018,Adult Social Care Enterprise House,Stationery,34.28,SUPPLIES TEAM LTD
Revenue,Adult Services,Adult Social Care,Commissioning & Service Delivery,5105664008,28.02.2018,Adult Social Care Enterprise House,Stationery,5.92,SUPPLIES TEAM LTD
Revenue,Adult Services,Adult Social Care,Commissioning & Service Delivery,5105664008,28.02.2018,Adult Social Care Enterprise House,Stationery,1.98,SUPPLIES TEAM LTD
Revenue,Adult Services,Adult Social Care,Commissioning & Service Delivery,5105664008,28.02.2018,Adult Social Care Enterprise House,Stationery,4.92,SUPPLIES TEAM LTD
Revenue,Adult Services,Adult Social Care,Commissioning & Service Delivery,5105664008,28.02.2018,Adult Social Care Enterprise House,Stationery,1.23,SUPPLIES TEAM LTD
Revenue,Resources,Housing Services,Housing Benefits Administration,5105664012,28.02.2018,Housing Benefit,Stationery,85.70,SUPPLIES TEAM LTD
Revenue,Resources,Central Services,Support Services,5105664014,28.02.2018,Customer Accounts Shared Service Centre,Stationery,17.14,SUPPLIES TEAM LTD
Revenue,Chief Executive,Central Services,Central Services to the Public,5105664014,28.02.2018,Emergency Management,Stationery,8.57,SUPPLIES TEAM LTD
Revenue,Resources,Central Services,Support Services,5105664014,28.02.2018,Customer Accounts Shared Service Centre,Stationery,17.14,SUPPLIES TEAM LTD
Revenue,Place,Planning services,Management & Support Services,5105664187,28.02.2018,Planning Management,Stationery,4.80,SUPPLIES TEAM LTD
Revenue,Place,Planning services,Management & Support Services,5105664187,28.02.2018,Planning Management,Stationery,1.80,SUPPLIES TEAM LTD
Revenue,Place,Planning services,Management & Support Services,5105664187,28.02.2018,Planning Management,Stationery,1.23,SUPPLIES TEAM LTD
Revenue,Place,Environmental & Regulatory Services,"Cemetery, Cremation & Mortuary Services",5105659509,14.02.2018,Crematorium,Stationery,1.80,SUPPLIES TEAM LTD
Revenue,Place,Environmental & Regulatory Services,"Cemetery, Cremation & Mortuary Services",5105659509,14.02.2018,Crematorium,Stationery,25.71,SUPPLIES TEAM LTD
Revenue,Place,Environmental & Regulatory Services,"Cemetery, Cremation & Mortuary Services",5105659509,14.02.2018,Crematorium,Stationery,5.22,SUPPLIES TEAM LTD
Revenue,Chief Executive,Central Services,Central Services to the Public,5105651105,07.02.2018,Emergency Management,Stationery,8.57,SUPPLIES TEAM LTD
Revenue,Adult Services,Adult Social Care,Commissioning & Service Delivery,5105661689,07.02.2018,Adult Social Care Enterprise House,Stationery,5.52,SUPPLIES TEAM LTD
Revenue,Adult Services,Adult Social Care,Commissioning & Service Delivery,5105661689,07.02.2018,Adult Social Care Enterprise House,Stationery,24.12,SUPPLIES TEAM LTD
Revenue,Adult Services,Adult Social Care,Commissioning & Service Delivery,5105661706,07.02.2018,Adult Social Care Enterprise House,Stationery,2.96,SUPPLIES TEAM LTD
Revenue,Adult Services,Adult Social Care,Commissioning & Service Delivery,5105661706,07.02.2018,Adult Social Care Enterprise House,Stationery,3.22,SUPPLIES TEAM LTD
Revenue,Adult Services,Adult Social Care,Commissioning & Service Delivery,5105661706,07.02.2018,Adult Social Care Enterprise House,Stationery,2.46,SUPPLIES TEAM LTD
Revenue,Adult Services,Adult Social Care,Commissioning & Service Delivery,5105661706,07.02.2018,Adult Social Care Enterprise House,Stationery,0.78,SUPPLIES TEAM LTD
Revenue,Adult Services,Adult Social Care,Commissioning & Service Delivery,5105661706,07.02.2018,Adult Social Care Enterprise House,Stationery,0.32,SUPPLIES TEAM LTD
Revenue,Adult Services,Adult Social Care,Commissioning & Service Delivery,5105661706,07.02.2018,Adult Social Care Enterprise House,Stationery,1.00,SUPPLIES TEAM LTD
Revenue,Adult Services,Adult Social Care,Commissioning & Service Delivery,5105661706,07.02.2018,Adult Social Care Enterprise House,Stationery,6.44,SUPPLIES TEAM LTD
Revenue,Adult Services,Adult Social Care,Commissioning & Service Delivery,5105661706,07.02.2018,Adult Social Care Enterprise House,Stationery,3.69,SUPPLIES TEAM LTD
Revenue,Adult Services,Adult Social Care,Commissioning & Service Delivery,5105661706,07.02.2018,Adult Social Care Enterprise House,Stationery,5.40,SUPPLIES TEAM LTD
Revenue,Adult Services,Adult Social Care,Commissioning & Service Delivery,5105661706,07.02.2018,Adult Social Care Enterprise House,Stationery,0.57,SUPPLIES TEAM LTD
Revenue,Adult Services,Adult Social Care,Commissioning & Service Delivery,5105661706,07.02.2018,Adult Social Care Enterprise House,Stationery,2.70,SUPPLIES TEAM LTD
Revenue,Adult Services,Adult Social Care,Commissioning & Service Delivery,5105661706,07.02.2018,Adult Social Care Enterprise House,Stationery,11.88,SUPPLIES TEAM LTD
Revenue,Adult Services,Adult Social Care,Commissioning & Service Delivery,5105661706,07.02.2018,Adult Social Care Enterprise House,Stationery,4.92,SUPPLIES TEAM LTD
Revenue,Adult Services,Adult Social Care,Commissioning & Service Delivery,5105661706,07.02.2018,Direct Payment Finance Team,Stationery,19.35,SUPPLIES TEAM LTD
Revenue,Place,Environmental & Regulatory Services,"Cemetery, Cremation & Mortuary Services",5105662241,14.02.2018,Crematorium,Stationery,-2.61,SUPPLIES TEAM LTD
Revenue,Place,Highways and Transport Services,Management and Support Services,5105662443,14.02.2018,Highways PFI Project,Stationery,25.71,SUPPLIES TEAM LTD
Revenue,Adult Services,Adult Social Care,Central Codes (to be reallocated),5105662381,14.02.2018,Community Outreach,Stationery,25.71,SUPPLIES TEAM LTD
Revenue,Adult Services,Adult Social Care,Central Codes (to be reallocated),5105662381,14.02.2018,Community Outreach,Stationery,1.06,SUPPLIES TEAM LTD
Revenue,Adult Services,Adult Social Care,Central Codes (to be reallocated),5105662381,14.02.2018,Community Outreach,Stationery,5.80,SUPPLIES TEAM LTD
Revenue,Adult Services,Adult Social Care,Central Codes (to be reallocated),5105662381,14.02.2018,Community Outreach,Stationery,0.78,SUPPLIES TEAM LTD
Revenue,Adult Services,Adult Social Care,Central Codes (to be reallocated),5105662381,14.02.2018,Community Outreach,Stationery,6.90,SUPPLIES TEAM LTD
Revenue,Adult Services,Adult Social Care,Central Codes (to be reallocated),5105662381,14.02.2018,Community Outreach,Stationery,2.70,SUPPLIES TEAM LTD
Revenue,Adult Services,Adult Social Care,Central Codes (to be reallocated),5105662381,14.02.2018,Community Outreach,Stationery,4.96,SUPPLIES TEAM LTD
Revenue,Adult Services,Adult Social Care,Central Codes (to be reallocated),5105662381,14.02.2018,Community Outreach,Stationery,3.60,SUPPLIES TEAM LTD
Revenue,Adult Services,Adult Social Care,Central Codes (to be reallocated),5105662381,14.02.2018,Community Outreach,Stationery,2.46,SUPPLIES TEAM LTD
Revenue,Place,Cultural and Related Services,Recreation and Sport,5105662373,14.02.2018,The Heights,Stationery,2.46,SUPPLIES TEAM LTD
Revenue,Place,Cultural and Related Services,Recreation and Sport,5105662373,14.02.2018,The Heights,Stationery,1.61,SUPPLIES TEAM LTD
Revenue,Place,Cultural and Related Services,Recreation and Sport,5105662373,14.02.2018,The Heights,Stationery,0.78,SUPPLIES TEAM LTD
Revenue,Place,Cultural and Related Services,Recreation and Sport,5105662373,14.02.2018,The Heights,Stationery,2.04,SUPPLIES TEAM LTD
Revenue,Place,Cultural and Related Services,Recreation and Sport,5105662373,14.02.2018,The Heights,Stationery,0.68,SUPPLIES TEAM LTD
Revenue,Place,Cultural and Related Services,Recreation and Sport,5105662373,14.02.2018,The Heights,Stationery,1.56,SUPPLIES TEAM LTD
Revenue,Place,Cultural and Related Services,Recreation and Sport,5105662373,14.02.2018,The Heights,Stationery,1.48,SUPPLIES TEAM LTD
Revenue,Place,Cultural and Related Services,Recreation and Sport,5105662373,14.02.2018,The Heights,Stationery,1.62,SUPPLIES TEAM LTD
Revenue,Place,Cultural and Related Services,Recreation and Sport,5105662373,14.02.2018,The Heights,Stationery,10.29,SUPPLIES TEAM LTD
Revenue,Place,Cultural and Related Services,Recreation and Sport,5105662373,14.02.2018,The Heights,Stationery,1.88,SUPPLIES TEAM LTD
Revenue,Place,Cultural and Related Services,Recreation and Sport,5105662373,14.02.2018,The Heights,Stationery,1.90,SUPPLIES TEAM LTD
Revenue,Place,Cultural and Related Services,Recreation and Sport,5105662373,14.02.2018,The Heights,Stationery,1.72,SUPPLIES TEAM LTD
Revenue,Place,Environmental & Regulatory Services,"Cemetery, Cremation & Mortuary Services",5105662350,14.02.2018,Crematorium,Stationery,1.60,SUPPLIES TEAM LTD
Revenue,Place,Environmental & Regulatory Services,"Cemetery, Cremation & Mortuary Services",5105662350,14.02.2018,Crematorium,Stationery,1.48,SUPPLIES TEAM LTD
Revenue,Place,Environmental & Regulatory Services,"Cemetery, Cremation & Mortuary Services",5105662350,14.02.2018,Crematorium,Stationery,13.42,SUPPLIES TEAM LTD
Revenue,Place,Environmental & Regulatory Services,"Cemetery, Cremation & Mortuary Services",5105662350,14.02.2018,Crematorium,Stationery,1.98,SUPPLIES TEAM LTD
Revenue,Place,Environmental & Regulatory Services,"Cemetery, Cremation & Mortuary Services",5105662350,14.02.2018,Crematorium,Stationery,2.58,SUPPLIES TEAM LTD
Revenue,Place,Environmental & Regulatory Services,"Cemetery, Cremation & Mortuary Services",5105662350,14.02.2018,Crematorium,Stationery,1.90,SUPPLIES TEAM LTD
Revenue,Place,Environmental & Regulatory Services,"Cemetery, Cremation & Mortuary Services",5105662350,14.02.2018,Crematorium,Stationery,4.06,SUPPLIES TEAM LTD
Revenue,Adult Services,Adult Social Care,Commissioning & Service Delivery,5105662356,14.02.2018,Adult Social Care Enterprise House,Stationery,34.28,SUPPLIES TEAM LTD
Revenue,Adult Services,Adult Social Care,Commissioning & Service Delivery,5105662356,14.02.2018,Adult Social Care Enterprise House,Stationery,3.43,SUPPLIES TEAM LTD
Revenue,Adult Services,Adult Social Care,Commissioning & Service Delivery,5105662356,14.02.2018,Adult Social Care Enterprise House,Stationery,1.40,SUPPLIES TEAM LTD
Revenue,Adult Services,Adult Social Care,Commissioning & Service Delivery,5105662440,14.02.2018,Learning Disability Homes Management & Admin,Stationery,0.66,SUPPLIES TEAM LTD
Revenue,Adult Services,Adult Social Care,Commissioning & Service Delivery,5105662440,14.02.2018,Learning Disability Homes Management & Admin,Stationery,1.56,SUPPLIES TEAM LTD
Revenue,Adult Services,Adult Social Care,Commissioning & Service Delivery,5105662440,14.02.2018,Learning Disability Homes Management & Admin,Stationery,2.30,SUPPLIES TEAM LTD
Revenue,Adult Services,Adult Social Care,Commissioning & Service Delivery,5105662440,14.02.2018,Learning Disability Homes Management & Admin,Stationery,5.83,SUPPLIES TEAM LTD
Revenue,Adult Services,Adult Social Care,Commissioning & Service Delivery,5105662440,14.02.2018,Learning Disability Homes Management & Admin,Stationery,25.71,SUPPLIES TEAM LTD
Revenue,Adult Services,Adult Social Care,Commissioning & Service Delivery,5105662440,14.02.2018,Learning Disability Homes Management & Admin,Stationery,2.90,SUPPLIES TEAM LTD
Revenue,Adult Services,Adult Social Care,Commissioning & Service Delivery,5105662440,14.02.2018,Learning Disability Homes Management & Admin,Stationery,0.86,SUPPLIES TEAM LTD
Revenue,Adult Services,Adult Social Care,Commissioning & Service Delivery,5105662440,14.02.2018,Learning Disability Homes Management & Admin,Stationery,2.34,SUPPLIES TEAM LTD
Revenue,Adult Services,Adult Social Care,Commissioning & Service Delivery,5105662440,14.02.2018,Learning Disability Homes Management & Admin,Stationery,0.80,SUPPLIES TEAM LTD
Revenue,Adult Services,Adult Social Care,Commissioning & Service Delivery,5105662440,14.02.2018,Learning Disability Homes Management & Admin,Stationery,0.39,SUPPLIES TEAM LTD
Revenue,Adult Services,Adult Social Care,Commissioning & Service Delivery,5105662440,14.02.2018,Learning Disability Homes Management & Admin,Stationery,7.74,SUPPLIES TEAM LTD
Revenue,Adult Services,Adult Social Care,Commissioning & Service Delivery,5105662440,14.02.2018,Learning Disability Homes Management & Admin,Stationery,9.67,SUPPLIES TEAM LTD
Revenue,Adult Services,Adult Social Care,Commissioning & Service Delivery,5105662440,14.02.2018,Learning Disability Homes Management & Admin,Stationery,0.08,SUPPLIES TEAM LTD
Revenue,Adult Services,Adult Social Care,Learning Disab Supp (to be reallocated),5105662440,14.02.2018,31 Carter Avenue,Stationery,11.43,SUPPLIES TEAM LTD
Revenue,Resources,Housing Services,Housing Benefits Administration,5105662169,14.02.2018,Housing Benefit,Stationery,12.52,SUPPLIES TEAM LTD
Revenue,Resources,Housing Services,Housing Benefits Administration,5105662169,14.02.2018,Housing Benefit,Stationery,0.27,SUPPLIES TEAM LTD
Revenue,Resources,Housing Services,Housing Benefits Administration,5105662169,14.02.2018,Housing Benefit,Stationery,0.33,SUPPLIES TEAM LTD
Revenue,Resources,Housing Services,Housing Benefits Administration,5105662237,09.02.2018,Housing Benefit,Stationery,-0.33,SUPPLIES TEAM LTD
Revenue,Place,Fire & Rescue Services,Fire fighting and Rescue Operations,5105662358,14.02.2018,Business Support  - Fire,Stationery,1.50,SUPPLIES TEAM LTD
Revenue,Place,Fire & Rescue Services,Fire fighting and Rescue Operations,5105662358,14.02.2018,Business Support  - Fire,Stationery,0.34,SUPPLIES TEAM LTD
Revenue,Place,Fire & Rescue Services,Fire fighting and Rescue Operations,5105662358,14.02.2018,Business Support  - Fire,Stationery,1.90,SUPPLIES TEAM LTD
Revenue,Place,Fire & Rescue Services,Fire fighting and Rescue Operations,5105662358,14.02.2018,Business Support  - Fire,Stationery,0.76,SUPPLIES TEAM LTD
Revenue,Place,Fire & Rescue Services,Fire fighting and Rescue Operations,5105662358,14.02.2018,Business Support  - Fire,Stationery,2.46,SUPPLIES TEAM LTD
Revenue,Public Health,Public Health,Miscellaneous Public Health Services,5105662331,23.02.2018,Public Health Core Non Prescribed,Stationery,34.28,SUPPLIES TEAM LTD
Revenue,Public Health,Public Health,Miscellaneous Public Health Services,5105662331,23.02.2018,Public Health Core Non Prescribed,Stationery,4.06,SUPPLIES TEAM LTD
Revenue,Public Health,Public Health,Miscellaneous Public Health Services,5105662331,23.02.2018,Public Health Core Non Prescribed,Stationery,1.23,SUPPLIES TEAM LTD
Revenue,Childrens Services,Children's & Education Services,Safeguarding Children/Young Peoples Svs,5105662444,14.02.2018,Children's office costs,Stationery,6.15,SUPPLIES TEAM LTD
Revenue,Childrens Services,Children's & Education Services,Safeguarding Children/Young Peoples Svs,5105662444,14.02.2018,Children's office costs,Stationery,3.22,SUPPLIES TEAM LTD
Revenue,Childrens Services,Children's & Education Services,Safeguarding Children/Young Peoples Svs,5105662444,14.02.2018,Children's office costs,Stationery,24.55,SUPPLIES TEAM LTD
Revenue,Childrens Services,Children's & Education Services,Safeguarding Children/Young Peoples Svs,5105662444,14.02.2018,Children's office costs,Stationery,0.39,SUPPLIES TEAM LTD
Revenue,Childrens Services,Children's & Education Services,Safeguarding Children/Young Peoples Svs,5105662444,14.02.2018,Children's office costs,Stationery,0.99,SUPPLIES TEAM LTD
Revenue,Childrens Services,Children's & Education Services,Safeguarding Children/Young Peoples Svs,5105662444,14.02.2018,Children's office costs,Stationery,0.32,SUPPLIES TEAM LTD
Revenue,Childrens Services,Children's & Education Services,Safeguarding Children/Young Peoples Svs,5105662444,14.02.2018,Children's office costs,Stationery,1.60,SUPPLIES TEAM LTD
Revenue,Childrens Services,Children's & Education Services,Safeguarding Children/Young Peoples Svs,5105662444,14.02.2018,Children's office costs,Stationery,3.96,SUPPLIES TEAM LTD
Revenue,Childrens Services,Children's & Education Services,Safeguarding Children/Young Peoples Svs,5105662444,14.02.2018,Children's office costs,Stationery,6.50,SUPPLIES TEAM LTD
Revenue,Childrens Services,Children's & Education Services,Safeguarding Children/Young Peoples Svs,5105662444,14.02.2018,Children's office costs,Stationery,0.68,SUPPLIES TEAM LTD
Revenue,Childrens Services,Children's & Education Services,Safeguarding Children/Young Peoples Svs,5105662444,14.02.2018,Children's office costs,Stationery,1.38,SUPPLIES TEAM LTD
Revenue,Childrens Services,Children's & Education Services,Safeguarding Children/Young Peoples Svs,5105662444,14.02.2018,Children's office costs,Stationery,0.39,SUPPLIES TEAM LTD
Revenue,Childrens Services,Children's & Education Services,Safeguarding Children/Young Peoples Svs,5105662444,14.02.2018,Children's office costs,Stationery,3.69,SUPPLIES TEAM LTD
Revenue,Childrens Services,Children's & Education Services,Other Education and Community Budget,5105662444,14.02.2018,Pupil Resources Business Support Team,Stationery,25.71,SUPPLIES TEAM LTD
Revenue,Childrens Services,Children's & Education Services,Safeguarding Children/Young Peoples Svs,5105662444,14.02.2018,Children's office costs,Stationery,42.85,SUPPLIES TEAM LTD
Revenue,Childrens Services,Children's & Education Services,Safeguarding Children/Young Peoples Svs,5105662444,14.02.2018,Children's office costs,Stationery,25.71,SUPPLIES TEAM LTD
Revenue,Childrens Services,Children's & Education Services,Safeguarding Children/Young Peoples Svs,5105662444,14.02.2018,Children's office costs,Stationery,17.14,SUPPLIES TEAM LTD
Revenue,Childrens Services,Children's & Education Services,Safeguarding Children/Young Peoples Svs,5105662444,14.02.2018,Children's office costs,Stationery,6.26,SUPPLIES TEAM LTD
Revenue,Childrens Services,Children's & Education Services,Other Education and Community Budget,5105662444,14.02.2018,Pupil Resources Business Support Team,Stationery,6.26,SUPPLIES TEAM LTD
Revenue,Childrens Services,Children's & Education Services,Safeguarding Children/Young Peoples Svs,5105662444,14.02.2018,Children's office costs,Stationery,17.14,SUPPLIES TEAM LTD
Revenue,Adult Services,Adult Social Care,Central Codes (to be reallocated),5105662815,16.02.2018,Gouldings Resource Centre,Stationery,17.14,SUPPLIES TEAM LTD
Revenue,Adult Services,Adult Social Care,Central Codes (to be reallocated),5105662815,16.02.2018,Gouldings Resource Centre,Stationery,1.06,SUPPLIES TEAM LTD
Revenue,Adult Services,Adult Social Care,Central Codes (to be reallocated),5105662815,16.02.2018,Gouldings Resource Centre,Stationery,1.00,SUPPLIES TEAM LTD
Revenue,Adult Services,Adult Social Care,Central Codes (to be reallocated),5105662815,16.02.2018,Gouldings Resource Centre,Stationery,1.60,SUPPLIES TEAM LTD
Revenue,Adult Services,Adult Social Care,Central Codes (to be reallocated),5105662815,16.02.2018,Gouldings Resource Centre,Stationery,1.72,SUPPLIES TEAM LTD
Revenue,Childrens Services,Children's & Education Services,Management & Support Services,5105662824,16.02.2018,Education Out of School,Stationery,2.96,SUPPLIES TEAM LTD
Revenue,Childrens Services,Children's & Education Services,Management & Support Services,5105662824,16.02.2018,Education Out of School,Stationery,1.23,SUPPLIES TEAM LTD
Revenue,Childrens Services,Children's & Education Services,Management & Support Services,5105662824,16.02.2018,Education Out of School,Stationery,0.38,SUPPLIES TEAM LTD
Revenue,Childrens Services,Children's & Education Services,Management & Support Services,5105662824,16.02.2018,Education Out of School,Stationery,0.39,SUPPLIES TEAM LTD
Revenue,Childrens Services,Children's & Education Services,Management & Support Services,5105662824,16.02.2018,Education Out of School,Stationery,1.61,SUPPLIES TEAM LTD
Revenue,Childrens Services,Children's & Education Services,Management & Support Services,5105662824,16.02.2018,Education Out of School,Stationery,8.57,SUPPLIES TEAM LTD
Revenue,Childrens Services,Children's & Education Services,Management & Support Services,5105662824,16.02.2018,Education Out of School,Stationery,2.72,SUPPLIES TEAM LTD
Revenue,Childrens Services,Children's & Education Services,Management & Support Services,5105662824,16.02.2018,Education Out of School,Stationery,2.49,SUPPLIES TEAM LTD
Revenue,Childrens Services,Children's & Education Services,Management & Support Services,5105662824,16.02.2018,Education Out of School,Stationery,4.49,SUPPLIES TEAM LTD
Revenue,Childrens Services,Children's & Education Services,Management & Support Services,5105662824,16.02.2018,Education Out of School,Stationery,6.99,SUPPLIES TEAM LTD
Revenue,Childrens Services,Children's & Education Services,Management & Support Services,5105662824,16.02.2018,Education Out of School,Stationery,10.14,SUPPLIES TEAM LTD
Revenue,Childrens Services,Children's & Education Services,Management & Support Services,5105662824,16.02.2018,Education Out of School,Stationery,1.60,SUPPLIES TEAM LTD
Revenue,Childrens Services,Children's & Education Services,Management & Support Services,5105662824,16.02.2018,Education Out of School,Stationery,0.80,SUPPLIES TEAM LTD
Revenue,Childrens Services,Children's & Education Services,Management & Support Services,5105662824,16.02.2018,Education Out of School,Stationery,0.96,SUPPLIES TEAM LTD
Revenue,Childrens Services,Children's & Education Services,Management & Support Services,5105662824,16.02.2018,Education Out of School,Stationery,15.71,SUPPLIES TEAM LTD
Revenue,Public Health,Public Health,Miscellaneous Public Health Services,5105663638,28.02.2018,Public Health Core Non Prescribed,Stationery,34.28,SUPPLIES TEAM LTD
Revenue,Public Health,Public Health,Miscellaneous Public Health Services,5105663637,23.02.2018,Public Health Core Non Prescribed,Stationery,-34.28,SUPPLIES TEAM LTD
Revenue,Public Health,Public Health,Miscellaneous Public Health Services,5105663637,23.02.2018,Public Health Core Non Prescribed,Stationery,-4.06,SUPPLIES TEAM LTD
Revenue,Public Health,Public Health,Miscellaneous Public Health Services,5105663638,28.02.2018,Public Health Core Non Prescribed,Stationery,4.06,SUPPLIES TEAM LTD
Revenue,Public Health,Public Health,Miscellaneous Public Health Services,5105663638,28.02.2018,Public Health Core Non Prescribed,Stationery,1.23,SUPPLIES TEAM LTD
Revenue,Public Health,Public Health,Miscellaneous Public Health Services,5105663637,23.02.2018,Public Health Core Non Prescribed,Stationery,-1.23,SUPPLIES TEAM LTD
Revenue,Resources,Central Services,Support Services,5105663691,28.02.2018,Help Centres Shared Service Centre,Stationery,13.00,SUPPLIES TEAM LTD
Revenue,Childrens Services,Children's & Education Services,Safeguarding Children/Young Peoples Svs,5105663260,21.02.2018,Children's office costs,Stationery,4.49,SUPPLIES TEAM LTD
Revenue,Resources,Central Services,Support Services,5105663260,21.02.2018,Help Centres Shared Service Centre,Stationery,0.80,SUPPLIES TEAM LTD
Revenue,Resources,Central Services,Support Services,5105663260,21.02.2018,Help Centres Shared Service Centre,Stationery,6.36,SUPPLIES TEAM LTD
Revenue,Place,Environmental & Regulatory Services,Service Management and Support Services,5105663260,21.02.2018,Environment officers,Stationery,2.40,SUPPLIES TEAM LTD
Revenue,Resources,Central Services,Support Services,5105664014,28.02.2018,Creditor Payments Shared Service Centre,Stationery,17.14,SUPPLIES TEAM LTD
Revenue,Childrens Services,Children's & Education Services,Safeguarding Children/Young Peoples Svs,5105664014,28.02.2018,Children's office costs,Stationery,25.71,SUPPLIES TEAM LTD
Revenue,Childrens Services,Children's & Education Services,Safeguarding Children/Young Peoples Svs,5105664014,28.02.2018,Children's office costs,Stationery,34.28,SUPPLIES TEAM LTD
Revenue,Resources,Central Services,Support Services,5105664014,28.02.2018,Help Centres Shared Service Centre,Stationery,17.14,SUPPLIES TEAM LTD
Revenue,Childrens Services,Children's & Education Services,Other Education and Community Budget,5105664014,28.02.2018,Pupil Resources Business Support Team,Stationery,25.71,SUPPLIES TEAM LTD
Revenue,Childrens Services,Children's & Education Services,Safeguarding Children/Young Peoples Svs,5105664014,28.02.2018,Children's office costs,Stationery,25.71,SUPPLIES TEAM LTD
Revenue,Resources,Central Services,Central Services to the Public,5105664014,28.02.2018,Electoral Registration Office,Stationery,17.14,SUPPLIES TEAM LTD
Revenue,Childrens Services,Children's & Education Services,Safeguarding Children/Young Peoples Svs,5105664014,28.02.2018,Children's office costs,Stationery,52.00,SUPPLIES TEAM LTD
Revenue,Childrens Services,Children's & Education Services,Safeguarding Children/Young Peoples Svs,5105664014,28.02.2018,Children's office costs,Stationery,20.25,SUPPLIES TEAM LTD
Revenue,Childrens Services,Children's & Education Services,Other Education and Community Budget,5105651105,07.02.2018,Pupil Resources Business Support Team,Stationery,0.80,SUPPLIES TEAM LTD
Revenue,Childrens Services,Children's & Education Services,Safeguarding Children/Young Peoples Svs,5105651105,07.02.2018,Children's office costs,Stationery,25.71,SUPPLIES TEAM LTD
Revenue,Childrens Services,Children's & Education Services,Safeguarding Children/Young Peoples Svs,5105651105,07.02.2018,Children's office costs,Stationery,24.08,SUPPLIES TEAM LTD
Revenue,Childrens Services,Children's & Education Services,Safeguarding Children/Young Peoples Svs,5105651105,07.02.2018,Children's office costs,Stationery,1.60,SUPPLIES TEAM LTD
Revenue,Childrens Services,Children's & Education Services,Safeguarding Children/Young Peoples Svs,5105651105,07.02.2018,Children's office costs,Stationery,1.59,SUPPLIES TEAM LTD
Revenue,Childrens Services,Children's & Education Services,Safeguarding Children/Young Peoples Svs,5105651105,07.02.2018,Children's office costs,Stationery,3.30,SUPPLIES TEAM LTD
Revenue,Childrens Services,Children's & Education Services,Safeguarding Children/Young Peoples Svs,5105651105,07.02.2018,Children's office costs,Stationery,6.32,SUPPLIES TEAM LTD
Revenue,Childrens Services,Children's & Education Services,Safeguarding Children/Young Peoples Svs,5105651105,07.02.2018,Children's office costs,Stationery,0.66,SUPPLIES TEAM LTD
Revenue,Childrens Services,Children's & Education Services,Safeguarding Children/Young Peoples Svs,5105651105,07.02.2018,Children's office costs,Stationery,4.91,SUPPLIES TEAM LTD
Revenue,Childrens Services,Children's & Education Services,Safeguarding Children/Young Peoples Svs,5105651105,07.02.2018,Children's office costs,Stationery,1.90,SUPPLIES TEAM LTD
Revenue,Childrens Services,Children's & Education Services,Safeguarding Children/Young Peoples Svs,5105661709,09.02.2018,Commissioning (Children & Families),Stationery,2.61,SUPPLIES TEAM LTD
Revenue,Childrens Services,Children's & Education Services,Safeguarding Children/Young Peoples Svs,5105661709,09.02.2018,Commissioning (Children & Families),Stationery,2.72,SUPPLIES TEAM LTD
Revenue,Childrens Services,Children's & Education Services,Safeguarding Children/Young Peoples Svs,5105661709,09.02.2018,Commissioning (Children & Families),Stationery,8.74,SUPPLIES TEAM LTD
Revenue,Place,Highways and Transport Services,Parking Services,5105661709,09.02.2018,Parking Attendants,Stationery,3.43,SUPPLIES TEAM LTD
Revenue,Childrens Services,Children's & Education Services,Safeguarding Children/Young Peoples Svs,5105661709,09.02.2018,Children's office costs,Stationery,17.14,SUPPLIES TEAM LTD
Revenue,Childrens Services,Children's & Education Services,Special Schools & Alternative Provision,5105661688,07.02.2018,Island Learning Centre,Stationery,1.32,SUPPLIES TEAM LTD
Revenue,Childrens Services,Children's & Education Services,Special Schools & Alternative Provision,5105661688,07.02.2018,Island Learning Centre,Stationery,2.92,SUPPLIES TEAM LTD
Revenue,Childrens Services,Children's & Education Services,Special Schools & Alternative Provision,5105661688,07.02.2018,Island Learning Centre,Stationery,2.92,SUPPLIES TEAM LTD
Revenue,Childrens Services,Children's & Education Services,Special Schools & Alternative Provision,5105661688,07.02.2018,Island Learning Centre,Stationery,17.14,SUPPLIES TEAM LTD
Revenue,Childrens Services,Children's & Education Services,Special Schools & Alternative Provision,5105661688,07.02.2018,Island Learning Centre,Stationery,6.99,SUPPLIES TEAM LTD
Revenue,Childrens Services,Children's & Education Services,Safeguarding Children/Young Peoples Svs,5105661704,07.02.2018,Children's office costs,Stationery,14.99,SUPPLIES TEAM LTD
Revenue,Childrens Services,Children's & Education Services,Safeguarding Children/Young Peoples Svs,5105661709,09.02.2018,Children's office costs,Stationery,0.43,SUPPLIES TEAM LTD
Revenue,Childrens Services,Children's & Education Services,Special Schools & Alternative Provision,5105661688,07.02.2018,Island Learning Centre,Stationery,2.92,SUPPLIES TEAM LTD
Revenue,Adult Services,Adult Social Care,Central Codes (to be reallocated),5105662381,14.02.2018,Adelaide Resource Centre,Stationery,1.06,SUPPLIES TEAM LTD
Revenue,Adult Services,Adult Social Care,Central Codes (to be reallocated),5105662381,14.02.2018,Adelaide Resource Centre,Stationery,0.72,SUPPLIES TEAM LTD
Revenue,Adult Services,Adult Social Care,Central Codes (to be reallocated),5105662381,14.02.2018,Adelaide Resource Centre,Stationery,0.80,SUPPLIES TEAM LTD
Revenue,Adult Services,Adult Social Care,Central Codes (to be reallocated),5105662381,14.02.2018,Adelaide Resource Centre,Stationery,2.28,SUPPLIES TEAM LTD
Revenue,Adult Services,Adult Social Care,Central Codes (to be reallocated),5105662381,14.02.2018,Adelaide Resource Centre,Stationery,2.40,SUPPLIES TEAM LTD
Revenue,Adult Services,Adult Social Care,Central Codes (to be reallocated),5105662381,14.02.2018,Adelaide Resource Centre,Stationery,1.52,SUPPLIES TEAM LTD
Revenue,Adult Services,Adult Social Care,Central Codes (to be reallocated),5105662381,14.02.2018,Adelaide Resource Centre,Stationery,0.34,SUPPLIES TEAM LTD
Revenue,Adult Services,Adult Social Care,Central Codes (to be reallocated),5105662381,14.02.2018,Adelaide Resource Centre,Stationery,1.56,SUPPLIES TEAM LTD
Revenue,Adult Services,Adult Social Care,Central Codes (to be reallocated),5105662381,14.02.2018,Adelaide Resource Centre,Stationery,0.16,SUPPLIES TEAM LTD
Revenue,Adult Services,Adult Social Care,Central Codes (to be reallocated),5105662381,14.02.2018,Adelaide Resource Centre,Stationery,1.90,SUPPLIES TEAM LTD
Revenue,Adult Services,Adult Social Care,Central Codes (to be reallocated),5105662381,14.02.2018,Adelaide Resource Centre,Stationery,2.15,SUPPLIES TEAM LTD
Revenue,Adult Services,Adult Social Care,Central Codes (to be reallocated),5105662381,14.02.2018,Adelaide Resource Centre,Stationery,2.30,SUPPLIES TEAM LTD
Revenue,Adult Services,Adult Social Care,Central Codes (to be reallocated),5105662381,14.02.2018,Adelaide Resource Centre,Stationery,3.24,SUPPLIES TEAM LTD
Revenue,Adult Services,Adult Social Care,Central Codes (to be reallocated),5105662381,14.02.2018,Adelaide Resource Centre,Stationery,2.59,SUPPLIES TEAM LTD
Revenue,Adult Services,Adult Social Care,Central Codes (to be reallocated),5105662381,14.02.2018,Adelaide Resource Centre,Stationery,1.26,SUPPLIES TEAM LTD
Revenue,Adult Services,Adult Social Care,Central Codes (to be reallocated),5105662381,14.02.2018,Adelaide Resource Centre,Stationery,1.26,SUPPLIES TEAM LTD
Revenue,Adult Services,Adult Social Care,Central Codes (to be reallocated),5105662381,14.02.2018,Adelaide Resource Centre,Stationery,1.17,SUPPLIES TEAM LTD
Revenue,Adult Services,Adult Social Care,Central Codes (to be reallocated),5105662381,14.02.2018,Adelaide Resource Centre,Stationery,5.34,SUPPLIES TEAM LTD
Revenue,Adult Services,Adult Social Care,Central Codes (to be reallocated),5105662381,14.02.2018,Adelaide Resource Centre,Stationery,1.46,SUPPLIES TEAM LTD
Revenue,Adult Services,Adult Social Care,Central Codes (to be reallocated),5105662439,14.02.2018,Gouldings Resource Centre,Stationery,9.98,SUPPLIES TEAM LTD
Revenue,Childrens Services,Children's & Education Services,Special Schools & Alternative Provision,5105662417,14.02.2018,Island Learning Centre,Stationery,17.14,SUPPLIES TEAM LTD
Revenue,Childrens Services,Children's & Education Services,Special Schools & Alternative Provision,5105662417,14.02.2018,Island Learning Centre,Stationery,2.47,SUPPLIES TEAM LTD
Revenue,Childrens Services,Children's & Education Services,Special Schools & Alternative Provision,5105662417,14.02.2018,Island Learning Centre,Stationery,2.16,SUPPLIES TEAM LTD
Revenue,Childrens Services,Children's & Education Services,Children Looked After,5105664120,28.02.2018,Adoption Support Fund,Charges from Independent Providers,160.00,BARNARDO'S
Revenue,Resources,Central Services,Support Services,5105663133,21.02.2018,Staff Benefits,Payment to Private Contractors,50.00,BARTON PRIMARY & EARLY YEARS
Revenue,Place,Fire & Rescue Services,Fire fighting and Rescue Operations,5105662321,21.02.2018,Diversity & Workforce,Operational Equipment,91.26,BASELAYER LTD
Revenue,Place,Fire & Rescue Services,Fire fighting and Rescue Operations,5105662321,21.02.2018,Diversity & Workforce,Training,30.42,BASELAYER LTD
Revenue,Place,Fire & Rescue Services,Fire fighting and Rescue Operations,5105662321,21.02.2018,Diversity & Workforce,Recruitment Advertising,91.26,BASELAYER LTD
Revenue,Place,Cultural and Related Services,Recreation and Sport,5105661472,02.02.2018,Medina Leisure Centre,Consumable Cleaning Materials,24.40,LAKE CLEANING & CATERING SUPPLIES
Revenue,Place,Cultural and Related Services,Recreation and Sport,5105661472,02.02.2018,Medina Leisure Centre,Consumable Cleaning Materials,29.10,LAKE CLEANING & CATERING SUPPLIES
Revenue,Place,Cultural and Related Services,Recreation and Sport,5105661472,02.02.2018,Medina Leisure Centre,Consumable Cleaning Materials,29.10,LAKE CLEANING & CATERING SUPPLIES
Revenue,Place,Cultural and Related Services,Recreation and Sport,5105661472,02.02.2018,Medina Leisure Centre,Consumable Cleaning Materials,117.50,LAKE CLEANING & CATERING SUPPLIES
Revenue,Place,Cultural and Related Services,Recreation and Sport,5105661472,02.02.2018,Medina Leisure Centre,Consumable Cleaning Materials,43.68,LAKE CLEANING & CATERING SUPPLIES
Revenue,Place,Cultural and Related Services,Recreation and Sport,5105661472,02.02.2018,Medina Leisure Centre,Consumable Cleaning Materials,23.64,LAKE CLEANING & CATERING SUPPLIES
Revenue,Place,Cultural and Related Services,Recreation and Sport,5105661472,02.02.2018,Medina Leisure Centre,Consumable Cleaning Materials,32.88,LAKE CLEANING & CATERING SUPPLIES
Revenue,Place,Cultural and Related Services,Recreation and Sport,5105661468,02.02.2018,Medina Leisure Centre,Consumable Cleaning Materials,26.70,LAKE CLEANING & CATERING SUPPLIES
Revenue,Place,Cultural and Related Services,Recreation and Sport,5105661468,02.02.2018,Medina Leisure Centre,Consumable Cleaning Materials,14.38,LAKE CLEANING & CATERING SUPPLIES
Revenue,Place,Cultural and Related Services,Recreation and Sport,5105661468,02.02.2018,Medina Leisure Centre,Consumable Cleaning Materials,22.94,LAKE CLEANING & CATERING SUPPLIES
Revenue,Place,Cultural and Related Services,Recreation and Sport,5105661468,02.02.2018,Medina Leisure Centre,Consumable Cleaning Materials,10.66,LAKE CLEANING & CATERING SUPPLIES
Revenue,Place,Cultural and Related Services,Recreation and Sport,5105661468,02.02.2018,Medina Leisure Centre,Consumable Cleaning Materials,51.88,LAKE CLEANING & CATERING SUPPLIES
Revenue,Place,Cultural and Related Services,Recreation and Sport,5105661468,02.02.2018,Medina Leisure Centre,Consumable Cleaning Materials,38.30,LAKE CLEANING & CATERING SUPPLIES
Revenue,Place,Cultural and Related Services,Recreation and Sport,5105661468,02.02.2018,Medina Leisure Centre,Consumable Cleaning Materials,18.20,LAKE CLEANING & CATERING SUPPLIES
Revenue,Place,Cultural and Related Services,Recreation and Sport,5105661468,02.02.2018,Medina Leisure Centre,Consumable Cleaning Materials,27.18,LAKE CLEANING & CATERING SUPPLIES
Revenue,Place,Cultural and Related Services,Recreation and Sport,5105661468,02.02.2018,Medina Leisure Centre,Consumable Cleaning Materials,26.88,LAKE CLEANING & CATERING SUPPLIES
Revenue,Place,Cultural and Related Services,Recreation and Sport,5105661468,02.02.2018,Medina Leisure Centre,Consumable Cleaning Materials,41.52,LAKE CLEANING & CATERING SUPPLIES
Revenue,Childrens Services,Children's & Education Services,Children Looked After,5105661467,02.02.2018,Beaulieu House,General Materials,24.48,LAKE CLEANING & CATERING SUPPLIES
Revenue,Childrens Services,Children's & Education Services,Children Looked After,5105661469,02.02.2018,Beaulieu House,General Materials,80.01,LAKE CLEANING & CATERING SUPPLIES
Revenue,Childrens Services,Children's & Education Services,Children Looked After,5105662240,09.02.2018,Beaulieu House,General Materials,57.05,LAKE CLEANING & CATERING SUPPLIES
Revenue,Childrens Services,Children's & Education Services,Children Looked After,5105663372,21.02.2018,Beaulieu House,General Materials,54.77,LAKE CLEANING & CATERING SUPPLIES
Revenue,Place,Cultural and Related Services,Recreation and Sport,5105661656,02.02.2018,The Heights,Catering Equipment,84.48,LAKE CLEANING & CATERING SUPPLIES
Revenue,Place,Cultural and Related Services,Recreation and Sport,5105661655,02.02.2018,The Heights,Catering Equipment,15.40,LAKE CLEANING & CATERING SUPPLIES
Revenue,Place,Cultural and Related Services,Recreation and Sport,5105662123,09.02.2018,The Heights,Catering Equipment,134.63,LAKE CLEANING & CATERING SUPPLIES
Revenue,Place,Cultural and Related Services,Recreation and Sport,5105661465,02.02.2018,The Heights,Consumable Cleaning Materials,229.96,LAKE CLEANING & CATERING SUPPLIES
Revenue,Place,Cultural and Related Services,Recreation and Sport,5105661655,02.02.2018,The Heights,Consumable Cleaning Materials,146.46,LAKE CLEANING & CATERING SUPPLIES
Revenue,Place,Environmental & Regulatory Services,"Cemetery, Cremation & Mortuary Services",5105661881,07.02.2018,Crematorium,Consumable Cleaning Materials,26.59,LAKE CLEANING & CATERING SUPPLIES
Revenue,Place,Fire & Rescue Services,Fire fighting and Rescue Operations,5105662393,14.02.2018,Fire Technical Support,Stock Purchases,62.50,LAKE CLEANING & CATERING SUPPLIES
Revenue,Place,Fire & Rescue Services,Fire fighting and Rescue Operations,5105662393,14.02.2018,Fire Technical Support,Stock Purchases,20.80,LAKE CLEANING & CATERING SUPPLIES
Revenue,Place,Fire & Rescue Services,Fire fighting and Rescue Operations,5105662393,14.02.2018,Fire Technical Support,Stock Purchases,24.24,LAKE CLEANING & CATERING SUPPLIES
Revenue,Place,Cultural and Related Services,Recreation and Sport,5105661797,07.02.2018,Commercial Sales Team,Advertising & Publicity,150.00,BEACON MEDIA LIMITED
Revenue,Adult Services,Adult Social Care,Support - Memory /Cognition-older people (65+),5105662997,21.02.2018,Memory & Cognition Nursing 65+,Charges from Independent Providers,"2,269.40",BEAUMONT LODGE LTD
Revenue,Public Health,Public Health,NHS Health Check Programme,5105662152,09.02.2018,NHS Health Check Programme,Payment to Private Contractors,"1,002.00",BEECH GROVE SURGERY
Revenue,Public Health,Public Health,Sexual Health,5105662152,09.02.2018,Contraception,Payment to Private Contractors,260.00,BEECH GROVE SURGERY
Revenue,Place,Housing Services,Homelessness,5105663690,28.02.2018,B&B Properties,Accommodation Costs - Bed & Breakfast,"6,183.50",BERTRAM LODGE
Revenue,Adult Services,Adult Social Care,Learning Disab Supp (to be reallocated),5105662823,16.02.2018,Saxonbury,Operational Equipment,162.03,BETA PAK LTD
Revenue,Adult Services,Adult Social Care,Learning Disab Supp (to be reallocated),5105662788,16.02.2018,Saxonbury,Operational Equipment,104.44,BETA PAK LTD
Revenue,Adult Services,Adult Social Care,Learning Disab Supp (to be reallocated),5105663996,28.02.2018,Saxonbury,Operational Equipment,38.04,BETA PAK LTD
Revenue,Adult Services,Adult Social Care,Learning Disab Supp (to be reallocated),5105663553,23.02.2018,Saxonbury,Operational Equipment,5.60,BETA PAK LTD
Revenue,Adult Services,Adult Social Care,Learning Disab Supp (to be reallocated),5105664158,28.02.2018,Saxonbury,Operational Equipment,29.69,BETA PAK LTD
Revenue,Adult Services,Adult Social Care,Learning Disab Supp (to be reallocated),5105661049,16.02.2018,Seagulls,Operational Equipment,135.65,BETA PAK LTD
Revenue,Adult Services,Adult Social Care,Learning Disab Supp (to be reallocated),5105661048,14.02.2018,Seagulls,Operational Equipment,34.98,BETA PAK LTD
Revenue,Adult Services,Adult Social Care,Learning Disab Supp (to be reallocated),5105661047,23.02.2018,Seagulls,Operational Equipment,43.49,BETA PAK LTD
Revenue,Adult Services,Adult Social Care,Learning Disab Supp (to be reallocated),5105661699,16.02.2018,Seagulls,Operational Equipment,29.69,BETA PAK LTD
Revenue,Adult Services,Adult Social Care,Learning Disab Supp (to be reallocated),5105661697,07.02.2018,Saxonbury,Operational Equipment,27.57,BETA PAK LTD
Revenue,Adult Services,Adult Social Care,Learning Disab Supp (to be reallocated),5105661847,09.02.2018,Seagulls,Operational Equipment,195.17,BETA PAK LTD
Revenue,Adult Services,Adult Social Care,Learning Disab Supp (to be reallocated),5105663890,28.02.2018,40 Venner Avenue,Operational Equipment,229.03,BETA PAK LTD
Revenue,Adult Services,Adult Social Care,Learning Disab Supp (to be reallocated),5105664156,28.02.2018,Westminster House,Operational Equipment,92.88,BETA PAK LTD
Revenue,Adult Services,Adult Social Care,Learning Disab Supp (to be reallocated),5105664028,28.02.2018,Westminster House,Operational Equipment,93.74,BETA PAK LTD
Revenue,Adult Services,Adult Social Care,Learning Disab Supp (to be reallocated),5105660624,09.02.2018,40 Venner Avenue,Operational Equipment,28.83,BETA PAK LTD
Revenue,Adult Services,Adult Social Care,Learning Disab Supp (to be reallocated),5105660209,09.02.2018,40 Venner Avenue,Operational Equipment,276.14,BETA PAK LTD
Revenue,Adult Services,Adult Social Care,Learning Disab Supp (to be reallocated),5105661794,09.02.2018,40 Venner Avenue,Operational Equipment,154.47,BETA PAK LTD
Revenue,Adult Services,Adult Social Care,Learning Disab Supp (to be reallocated),5105661846,09.02.2018,40 Venner Avenue,Operational Equipment,63.24,BETA PAK LTD
Revenue,Adult Services,Adult Social Care,Learning Disab Supp (to be reallocated),5105661877,21.02.2018,Westminster House,Operational Equipment,128.01,BETA PAK LTD
Revenue,Adult Services,Adult Social Care,Learning Disab Supp (to be reallocated),5105662145,21.02.2018,Westminster House,Operational Equipment,90.69,BETA PAK LTD
Revenue,Adult Services,Adult Social Care,Learning Disab Supp (to be reallocated),5105660115,14.02.2018,31 Carter Avenue,Operational Equipment,43.70,BETA PAK LTD
Revenue,Adult Services,Adult Social Care,Learning Disab Supp (to be reallocated),5105661567,02.02.2018,Plean Dene,Operational Equipment,45.96,BETA PAK LTD
Revenue,Adult Services,Adult Social Care,Learning Disab Supp (to be reallocated),5105661567,02.02.2018,Plean Dene,Operational Equipment,155.95,BETA PAK LTD
Revenue,Adult Services,Adult Social Care,Learning Disab Supp (to be reallocated),5105662375,23.02.2018,31 Carter Avenue,Operational Equipment,104.93,BETA PAK LTD
Revenue,Adult Services,Adult Social Care,Learning Disab Supp (to be reallocated),5105663899,28.02.2018,Plean Dene,Operational Equipment,84.75,BETA PAK LTD
Revenue,Adult Services,Adult Social Care,Learning Disab Supp (to be reallocated),5105663902,28.02.2018,Plean Dene,Operational Equipment,-10.60,BETA PAK LTD
Revenue,Adult Services,Adult Social Care,Learning Disab Supp (to be reallocated),5105663886,28.02.2018,Plean Dene,Operational Equipment,16.79,BETA PAK LTD
Revenue,Adult Services,Adult Social Care,Learning Disab Supp (to be reallocated),5105663899,28.02.2018,Plean Dene,Operational Equipment,11.00,BETA PAK LTD
Revenue,Adult Services,Adult Social Care,Learning Disab Supp (to be reallocated),5105659685,14.02.2018,Overbrook,Operational Equipment,79.06,BETA PAK LTD
Revenue,Adult Services,Adult Social Care,Learning Disab Supp (to be reallocated),5105661595,14.02.2018,The Laurels,Operational Equipment,1.41,BETA PAK LTD
Revenue,Adult Services,Adult Social Care,Learning Disab Supp (to be reallocated),5105661834,14.02.2018,The Laurels,Operational Equipment,1.41,BETA PAK LTD
Revenue,Childrens Services,Children's & Education Services,Other Education and Community Budget,5105662106,09.02.2018,Learning & Development Running Costs,Catering Purchases,63.46,BETA PAK LTD
Revenue,Childrens Services,Children's & Education Services,Other Education and Community Budget,5105662106,09.02.2018,Learning & Development Running Costs,Catering Purchases,27.37,BETA PAK LTD
Revenue,Adult Services,Adult Social Care,Central Codes (to be reallocated),5105661521,02.02.2018,Adelaide Resource Centre,Consumable Cleaning Materials,5.49,BETA PAK LTD
Revenue,Adult Services,Adult Social Care,Central Codes (to be reallocated),5105661522,02.02.2018,Adelaide Resource Centre,Consumable Cleaning Materials,306.38,BETA PAK LTD
Revenue,Adult Services,Adult Social Care,Central Codes (to be reallocated),5105661780,07.02.2018,Gouldings Resource Centre,Consumable Cleaning Materials,34.26,BETA PAK LTD
Revenue,Adult Services,Adult Social Care,Central Codes (to be reallocated),5105662383,14.02.2018,Adelaide Resource Centre,Consumable Cleaning Materials,369.88,BETA PAK LTD
Revenue,Adult Services,Adult Social Care,Central Codes (to be reallocated),5105663836,28.02.2018,Adelaide Resource Centre,Consumable Cleaning Materials,191.40,BETA PAK LTD
Revenue,Adult Services,Adult Social Care,Central Codes (to be reallocated),5105663862,28.02.2018,Adelaide Resource Centre,Consumable Cleaning Materials,27.70,BETA PAK LTD
Revenue,Adult Services,Adult Social Care,Central Codes (to be reallocated),5105664085,28.02.2018,Adelaide Resource Centre,Consumable Cleaning Materials,7.78,BETA PAK LTD
Revenue,Place,Cultural and Related Services,Recreation and Sport,5105662171,09.02.2018,The Heights,Stock Purchases,23.30,3663 (BFS GROUP LTD)
Revenue,Place,Cultural and Related Services,Recreation and Sport,5105662171,09.02.2018,The Heights,Stock Purchases,2.33,3663 (BFS GROUP LTD)
Revenue,Adult Services,Adult Social Care,Central Codes (to be reallocated),5105664024,28.02.2018,Adelaide Resource Centre,Catering Purchases,19.47,3663 (BFS GROUP LTD)
Revenue,Adult Services,Adult Social Care,Central Codes (to be reallocated),5105664066,28.02.2018,Adelaide Resource Centre,Catering Purchases,5.84,3663 (BFS GROUP LTD)
Revenue,Adult Services,Adult Social Care,Central Codes (to be reallocated),5105663217,21.02.2018,Adelaide Resource Centre,Catering Purchases,167.39,3663 (BFS GROUP LTD)
Revenue,Adult Services,Adult Social Care,Central Codes (to be reallocated),5105663217,21.02.2018,Adelaide Resource Centre,Catering Purchases,6.70,3663 (BFS GROUP LTD)
Revenue,Adult Services,Adult Social Care,Central Codes (to be reallocated),5105662763,16.02.2018,Adelaide Resource Centre,Catering Purchases,-39.98,3663 (BFS GROUP LTD)
Revenue,Adult Services,Adult Social Care,Central Codes (to be reallocated),5105661696,07.02.2018,Adelaide Resource Centre,Catering Purchases,278.09,3663 (BFS GROUP LTD)
Revenue,Adult Services,Adult Social Care,Central Codes (to be reallocated),5105662167,09.02.2018,Gouldings Resource Centre,Catering Purchases,303.18,3663 (BFS GROUP LTD)
Revenue,Adult Services,Adult Social Care,Central Codes (to be reallocated),5105662168,09.02.2018,Adelaide Resource Centre,Catering Purchases,508.77,3663 (BFS GROUP LTD)
Revenue,Adult Services,Adult Social Care,Central Codes (to be reallocated),5105662343,14.02.2018,Adelaide Resource Centre,Catering Purchases,178.99,3663 (BFS GROUP LTD)
Revenue,Adult Services,Adult Social Care,Central Codes (to be reallocated),5105662345,16.02.2018,Adelaide Resource Centre,Catering Purchases,127.49,3663 (BFS GROUP LTD)
Revenue,Adult Services,Adult Social Care,Central Codes (to be reallocated),5105662345,16.02.2018,Adelaide Resource Centre,Catering Purchases,18.63,3663 (BFS GROUP LTD)
Revenue,Adult Services,Adult Social Care,Central Codes (to be reallocated),5105662343,14.02.2018,Adelaide Resource Centre,Catering Purchases,29.68,3663 (BFS GROUP LTD)
Revenue,Adult Services,Adult Social Care,Central Codes (to be reallocated),5105662168,09.02.2018,Adelaide Resource Centre,Catering Purchases,13.84,3663 (BFS GROUP LTD)
Revenue,Adult Services,Adult Social Care,Central Codes (to be reallocated),5105663291,21.02.2018,Gouldings Resource Centre,Catering Purchases,272.36,3663 (BFS GROUP LTD)
Revenue,Adult Services,Adult Social Care,Central Codes (to be reallocated),5105663233,21.02.2018,Gouldings Resource Centre,Catering Purchases,380.17,3663 (BFS GROUP LTD)
Revenue,Adult Services,Adult Social Care,Central Codes (to be reallocated),5105663997,28.02.2018,Gouldings Resource Centre,Catering Purchases,270.83,3663 (BFS GROUP LTD)
Revenue,Adult Services,Adult Social Care,Central Codes (to be reallocated),5105663997,28.02.2018,Gouldings Resource Centre,Catering Purchases,33.08,3663 (BFS GROUP LTD)
Revenue,Adult Services,Adult Social Care,Central Codes (to be reallocated),5105663233,21.02.2018,Gouldings Resource Centre,Catering Purchases,4.36,3663 (BFS GROUP LTD)
Revenue,Adult Services,Adult Social Care,Central Codes (to be reallocated),5105663291,21.02.2018,Gouldings Resource Centre,Catering Purchases,4.36,3663 (BFS GROUP LTD)
Revenue,Adult Services,Adult Social Care,Central Codes (to be reallocated),5105664066,28.02.2018,Adelaide Resource Centre,Catering Purchases,111.83,3663 (BFS GROUP LTD)
Revenue,Adult Services,Adult Social Care,Central Codes (to be reallocated),5105664067,28.02.2018,Adelaide Resource Centre,Catering Purchases,287.45,3663 (BFS GROUP LTD)
Revenue,Adult Services,Adult Social Care,Central Codes (to be reallocated),5105664024,28.02.2018,Adelaide Resource Centre,Catering Purchases,289.23,3663 (BFS GROUP LTD)
Revenue,Place,Cultural and Related Services,Library Service,5105661917,09.02.2018,Public Libraries Central,Stationery,60.90,BIBLIOTHECA LTD
Revenue,Adult Services,Adult Social Care,Learning Disab Supp (to be reallocated),5105661695,07.02.2018,Saxonbury,"Refuse Collection, Disposal and Recycling Costs",88.20,BIFFA WASTE SERVICES LTD
Revenue,Adult Services,Adult Social Care,Learning Disab Supp (to be reallocated),5105661695,07.02.2018,Seagulls,"Refuse Collection, Disposal and Recycling Costs",92.60,BIFFA WASTE SERVICES LTD
Revenue,Place,Cultural and Related Services,Recreation and Sport,5105661695,07.02.2018,Westridge Squash Courts,"Refuse Collection, Disposal and Recycling Costs",28.45,BIFFA WASTE SERVICES LTD
Revenue,Childrens Services,Children's & Education Services,Management & Support Services,5105661695,07.02.2018,Specialist Service Business Admin,"Refuse Collection, Disposal and Recycling Costs",176.40,BIFFA WASTE SERVICES LTD
Revenue,Place,Cultural and Related Services,Culture and Heritage,5105661695,07.02.2018,Dinosaur Isle Museum (Sandown Geology),"Refuse Collection, Disposal and Recycling Costs",9.52,BIFFA WASTE SERVICES LTD
Revenue,Place,Highways and Transport Services,"Airports, Harbours & Toll Facilities",5105661695,07.02.2018,Ferry Management,"Refuse Collection, Disposal and Recycling Costs",92.60,BIFFA WASTE SERVICES LTD
Revenue,Place,Cultural and Related Services,Recreation and Sport,5105661695,07.02.2018,Ryde Harbour,"Refuse Collection, Disposal and Recycling Costs",52.50,BIFFA WASTE SERVICES LTD
Revenue,Adult Services,Adult Social Care,Assistive Equipment & Technology,5105661695,07.02.2018,Community Equipment Store,"Refuse Collection, Disposal and Recycling Costs",143.92,BIFFA WASTE SERVICES LTD
Revenue,Adult Services,Adult Social Care,Commissioning & Service Delivery,5105661695,07.02.2018,Stores Adult Social Care,"Refuse Collection, Disposal and Recycling Costs",9.73,BIFFA WASTE SERVICES LTD
Revenue,Resources,Central Services,Support Services,5105661695,07.02.2018,Corporate Stores,"Refuse Collection, Disposal and Recycling Costs",48.44,BIFFA WASTE SERVICES LTD
Revenue,Adult Services,Adult Social Care,Central Codes (to be reallocated),5105661695,07.02.2018,Mental Health Day Services,"Refuse Collection, Disposal and Recycling Costs",46.90,BIFFA WASTE SERVICES LTD
Revenue,Adult Services,Adult Social Care,Learning Disab Supp (to be reallocated),5105661695,07.02.2018,40 Venner Avenue,"Refuse Collection, Disposal and Recycling Costs",92.60,BIFFA WASTE SERVICES LTD
Revenue,Childrens Services,Children's & Education Services,Children Looked After,5105661695,07.02.2018,Beaulieu House,"Refuse Collection, Disposal and Recycling Costs",197.00,BIFFA WASTE SERVICES LTD
Revenue,Place,Cultural and Related Services,Recreation and Sport,5105661695,07.02.2018,Medina Leisure Centre,"Refuse Collection, Disposal and Recycling Costs",311.50,BIFFA WASTE SERVICES LTD
Revenue,Regeneration,Central Services,Support Services,5105661695,07.02.2018,"Civic Centre,Sandown","Refuse Collection, Disposal and Recycling Costs",156.48,BIFFA WASTE SERVICES LTD
Revenue,Regeneration,Central Services,Support Services,5105661695,07.02.2018,"Enterprise House, Newport","Refuse Collection, Disposal and Recycling Costs",170.80,BIFFA WASTE SERVICES LTD
Revenue,Childrens Services,Children's & Education Services,Other Education and Community Budget,5105661695,07.02.2018,SEND Independent Advice & Support,"Refuse Collection, Disposal and Recycling Costs",37.60,BIFFA WASTE SERVICES LTD
Revenue,Place,Planning services,Management & Support Services,5105661695,07.02.2018,Planning Management,"Refuse Collection, Disposal and Recycling Costs",176.40,BIFFA WASTE SERVICES LTD
Revenue,Place,Environmental & Regulatory Services,"Cemetery, Cremation & Mortuary Services",5105661695,07.02.2018,Crematorium,"Refuse Collection, Disposal and Recycling Costs",181.13,BIFFA WASTE SERVICES LTD
Revenue,Place,Cultural and Related Services,Open Spaces,5105661695,07.02.2018,Fort Victoria,"Refuse Collection, Disposal and Recycling Costs",150.15,BIFFA WASTE SERVICES LTD
Revenue,Regeneration,Central Services,Support Services,5105661695,07.02.2018,"Jubilee Stores, Newport","Refuse Collection, Disposal and Recycling Costs",92.60,BIFFA WASTE SERVICES LTD
Revenue,Place,Cultural and Related Services,Recreation and Sport,5105661695,07.02.2018,The Heights,"Refuse Collection, Disposal and Recycling Costs",243.53,BIFFA WASTE SERVICES LTD
Revenue,Place,Cultural and Related Services,Culture and Heritage,5105661695,07.02.2018,Archaeology,"Refuse Collection, Disposal and Recycling Costs",5.60,BIFFA WASTE SERVICES LTD
Revenue,Adult Services,Adult Social Care,Learning Disab Supp (to be reallocated),5105661695,07.02.2018,31 Carter Avenue,"Refuse Collection, Disposal and Recycling Costs",92.60,BIFFA WASTE SERVICES LTD
Revenue,Adult Services,Adult Social Care,Learning Disab Supp (to be reallocated),5105661695,07.02.2018,Plean Dene,"Refuse Collection, Disposal and Recycling Costs",157.85,BIFFA WASTE SERVICES LTD
Revenue,Regeneration,Central Services,Support Services,5105661695,07.02.2018,"Westridge, Ryde","Refuse Collection, Disposal and Recycling Costs",56.89,BIFFA WASTE SERVICES LTD
Revenue,Place,Cultural and Related Services,Culture and Heritage,5105661695,07.02.2018,Cothey Bottom Store RYDE,"Refuse Collection, Disposal and Recycling Costs",28.45,BIFFA WASTE SERVICES LTD
Revenue,Adult Services,Adult Social Care,Learning Disab Supp (to be reallocated),5105661695,07.02.2018,Overbrook,"Refuse Collection, Disposal and Recycling Costs",107.65,BIFFA WASTE SERVICES LTD
Revenue,Adult Services,Adult Social Care,Learning Disab Supp (to be reallocated),5105661695,07.02.2018,The Laurels,"Refuse Collection, Disposal and Recycling Costs",119.95,BIFFA WASTE SERVICES LTD
Revenue,Childrens Services,Children's & Education Services,Other Education and Community Budget,5105661695,07.02.2018,Learning & Development Running Costs,"Refuse Collection, Disposal and Recycling Costs",26.25,BIFFA WASTE SERVICES LTD
Revenue,Adult Services,Adult Social Care,Central Codes (to be reallocated),5105661691,07.02.2018,Gouldings Resource Centre,"Refuse Collection, Disposal and Recycling Costs",306.24,BIFFA WASTE SERVICES LTD
Revenue,Adult Services,Adult Social Care,Central Codes (to be reallocated),5105661686,07.02.2018,Gouldings Resource Centre,"Refuse Collection, Disposal and Recycling Costs",101.76,BIFFA WASTE SERVICES LTD
Revenue,Place,Fire & Rescue Services,Fire fighting and Rescue Operations,5105661695,07.02.2018,Fire Operations,"Refuse Collection, Disposal and Recycling Costs",372.44,BIFFA WASTE SERVICES LTD
Revenue,Place,Highways and Transport Services,"Airports, Harbours & Toll Facilities",5105661695,07.02.2018,Newport Harbour Account,"Refuse Collection, Disposal and Recycling Costs",234.26,BIFFA WASTE SERVICES LTD
Revenue,Place,Highways and Transport Services,"Airports, Harbours & Toll Facilities",5105661695,07.02.2018,Newport Harbour Account,"Refuse Collection, Disposal and Recycling Costs",178.51,BIFFA WASTE SERVICES LTD
Revenue,Childrens Services,Children's & Education Services,Children Looked After,5105662584,16.02.2018,Leaving Care Costs,Support Children,401.00,REDACTED PERSONAL DATA
Revenue,Resources,Central Services,Support Services,5105662912,21.02.2018,Staff Benefits,Payment to Private Contractors,243.00,BLACKBERRY LANE PRE-SCHOOL
Revenue,Resources,Central Services,Support Services,5105662912,21.02.2018,Staff Benefits,Payment to Private Contractors,175.00,BLACKBERRY LANE PRE-SCHOOL
Revenue,Childrens Services,Children's & Education Services,Children Looked After,5105663889,28.02.2018,Purchased Fostering,Charges from Independent Providers,"3,485.33",BLUE SKY FOSTERING LTD
Revenue,Childrens Services,Children's & Education Services,Children Looked After,5105662840,21.02.2018,Beaulieu House,Operational Equipment,38.30,BOC LTD
Revenue,Childrens Services,Children's & Education Services,Other Education and Community Budget,5105661489,02.02.2018,Commissioning ACL,Grants to External Bodies,"2,439.00",BODSTER EQUINE ASSISTED LEARN CIC
Revenue,Childrens Services,Children's & Education Services,Family Support Services,5105663928,28.02.2018,Short Breaks,Charges from Independent Providers,395.83,BODSTER EQUINE ASSISTED LEARN CIC
Revenue,Place,Cultural and Related Services,Library Service,5105661849,07.02.2018,Public Libraries Central,Purchase of Books,"5,000.00",BOLINDA UK LTD
Revenue,Adult Services,Adult Social Care,Learning Disab Supp (to be reallocated),5105662852,21.02.2018,40 Venner Avenue,Catering Purchases,18.26,BOOKER CASH & CARRY LTD
Revenue,Adult Services,Adult Social Care,Learning Disab Supp (to be reallocated),5105663562,23.02.2018,Plean Dene,Catering Purchases,11.19,BOOKER CASH & CARRY LTD
Revenue,Adult Services,Adult Social Care,Learning Disab Supp (to be reallocated),5105664148,28.02.2018,Plean Dene,Catering Purchases,7.19,BOOKER CASH & CARRY LTD
Revenue,Adult Services,Adult Social Care,Learning Disab Supp (to be reallocated),5105664129,28.02.2018,Plean Dene,Catering Purchases,164.82,BOOKER CASH & CARRY LTD
Revenue,Adult Services,Adult Social Care,Learning Disab Supp (to be reallocated),5105664129,28.02.2018,Plean Dene,Catering Purchases,30.93,BOOKER CASH & CARRY LTD
Revenue,Adult Services,Adult Social Care,Learning Disab Supp (to be reallocated),5105664148,28.02.2018,Plean Dene,Catering Purchases,5.97,BOOKER CASH & CARRY LTD
Revenue,Adult Services,Adult Social Care,Learning Disab Supp (to be reallocated),5105663953,28.02.2018,Plean Dene,Catering Purchases,11.97,BOOKER CASH & CARRY LTD
Revenue,Adult Services,Adult Social Care,Learning Disab Supp (to be reallocated),5105664056,28.02.2018,Plean Dene,Catering Purchases,1.49,BOOKER CASH & CARRY LTD
Revenue,Adult Services,Adult Social Care,Learning Disab Supp (to be reallocated),5105661744,07.02.2018,Plean Dene,Catering Purchases,27.38,BOOKER CASH & CARRY LTD
Revenue,Adult Services,Adult Social Care,Learning Disab Supp (to be reallocated),5105661058,14.02.2018,Plean Dene,Catering Purchases,10.18,BOOKER CASH & CARRY LTD
Revenue,Adult Services,Adult Social Care,Learning Disab Supp (to be reallocated),5105661236,07.02.2018,Plean Dene,Catering Purchases,201.61,BOOKER CASH & CARRY LTD
Revenue,Adult Services,Adult Social Care,Learning Disab Supp (to be reallocated),5105661236,07.02.2018,Plean Dene,Catering Purchases,37.92,BOOKER CASH & CARRY LTD
Revenue,Adult Services,Adult Social Care,Learning Disab Supp (to be reallocated),5105662315,14.02.2018,Plean Dene,Catering Purchases,116.55,BOOKER CASH & CARRY LTD
Revenue,Adult Services,Adult Social Care,Learning Disab Supp (to be reallocated),5105662320,14.02.2018,Plean Dene,Catering Purchases,14.74,BOOKER CASH & CARRY LTD
Revenue,Adult Services,Adult Social Care,Learning Disab Supp (to be reallocated),5105662315,14.02.2018,Plean Dene,Catering Purchases,26.74,BOOKER CASH & CARRY LTD
Revenue,Adult Services,Adult Social Care,Learning Disab Supp (to be reallocated),5105662708,21.02.2018,Plean Dene,Catering Purchases,12.99,BOOKER CASH & CARRY LTD
Revenue,Adult Services,Adult Social Care,Learning Disab Supp (to be reallocated),5105663189,21.02.2018,Plean Dene,Catering Purchases,135.03,BOOKER CASH & CARRY LTD
Revenue,Adult Services,Adult Social Care,Learning Disab Supp (to be reallocated),5105663189,21.02.2018,Plean Dene,Catering Purchases,21.55,BOOKER CASH & CARRY LTD
Revenue,Adult Services,Adult Social Care,Learning Disab Supp (to be reallocated),5105664056,28.02.2018,Plean Dene,Catering Purchases,14.48,BOOKER CASH & CARRY LTD
Revenue,Adult Services,Adult Social Care,Learning Disab Supp (to be reallocated),5105663952,28.02.2018,Plean Dene,Catering Purchases,11.26,BOOKER CASH & CARRY LTD
Revenue,Adult Services,Adult Social Care,Learning Disab Supp (to be reallocated),5105663953,28.02.2018,Plean Dene,Catering Purchases,181.87,BOOKER CASH & CARRY LTD
Revenue,Adult Services,Adult Social Care,Learning Disab Supp (to be reallocated),5105663560,23.02.2018,Plean Dene,Catering Purchases,20.27,BOOKER CASH & CARRY LTD
Revenue,Adult Services,Adult Social Care,Learning Disab Supp (to be reallocated),5105663561,23.02.2018,Plean Dene,Catering Purchases,20.40,BOOKER CASH & CARRY LTD
Revenue,Public Health,Public Health,Smoking & Tobacco,5105662742,16.02.2018,Stop Smoking Services & Interventions,Payment to Private Contractors,20.00,BOOTS THE CHEMIST LTD (Ryde)
Revenue,Public Health,Public Health,Smoking & Tobacco,5105662742,16.02.2018,Stop Smoking Services & Interventions,Payment to Private Contractors,127.89,BOOTS THE CHEMIST LTD (Ryde)
Revenue,Public Health,Public Health,Substance Misuse,5105661728,07.02.2018,Drug Misuse Adult- Treatment,Payment to Private Contractors,465.50,BOOTS THE CHEMIST LTD (Ryde)
Revenue,Public Health,Public Health,Substance Misuse,5105661728,07.02.2018,Drug Misuse Adult- Treatment,Payment to Private Contractors,218.00,BOOTS THE CHEMIST LTD (Ryde)
Revenue,Public Health,Public Health,Substance Misuse,5105661728,07.02.2018,Drug Misuse Adult- Treatment,Payment to Private Contractors,30.00,BOOTS THE CHEMIST LTD (Ryde)
Revenue,Public Health,Public Health,Sexual Health,5105661728,07.02.2018,Contraception,Payment to Private Contractors,279.50,BOOTS THE CHEMIST LTD (Ryde)
Revenue,Public Health,Public Health,Sexual Health,5105661728,07.02.2018,Contraception,Payment to Private Contractors,36.40,BOOTS THE CHEMIST LTD (Ryde)
Revenue,Public Health,Public Health,Sexual Health,5105661728,07.02.2018,Contraception,Payment to Private Contractors,84.30,BOOTS THE CHEMIST LTD (Ryde)
Revenue,Public Health,Public Health,Substance Misuse,5105661754,07.02.2018,Drug Misuse Adult- Treatment,Payment to Private Contractors,42.00,BOOTS UK LTD (107 HIGH ST SANDOWN)
Revenue,Public Health,Public Health,Substance Misuse,5105661754,07.02.2018,Drug Misuse Adult- Treatment,Payment to Private Contractors,88.00,BOOTS UK LTD (107 HIGH ST SANDOWN)
Revenue,Public Health,Public Health,Substance Misuse,5105661754,07.02.2018,Drug Misuse Adult- Treatment,Payment to Private Contractors,30.00,BOOTS UK LTD (107 HIGH ST SANDOWN)
Revenue,Public Health,Public Health,Sexual Health,5105661754,07.02.2018,Contraception,Payment to Private Contractors,14.05,BOOTS UK LTD (107 HIGH ST SANDOWN)
Revenue,Public Health,Public Health,Sexual Health,5105661754,07.02.2018,Contraception,Payment to Private Contractors,21.50,BOOTS UK LTD (107 HIGH ST SANDOWN)
Revenue,Public Health,Public Health,Substance Misuse,5105662113,09.02.2018,Drug Misuse Adult- Treatment,Payment to Private Contractors,30.00,BOOTS UK LTD (COWES)
Revenue,Public Health,Public Health,Substance Misuse,5105662113,09.02.2018,Drug Misuse Adult- Treatment,Payment to Private Contractors,66.00,BOOTS UK LTD (COWES)
Revenue,Public Health,Public Health,Substance Misuse,5105662113,09.02.2018,Drug Misuse Adult- Treatment,Payment to Private Contractors,49.00,BOOTS UK LTD (COWES)
Revenue,Public Health,Public Health,Sexual Health,5105662113,09.02.2018,Contraception,Payment to Private Contractors,28.10,BOOTS UK LTD (COWES)
Revenue,Public Health,Public Health,Sexual Health,5105662113,09.02.2018,Contraception,Payment to Private Contractors,43.00,BOOTS UK LTD (COWES)
Revenue,Public Health,Public Health,Substance Misuse,5105662140,09.02.2018,Drug Misuse Adult- Treatment,Payment to Private Contractors,72.00,BOOTS UK LTD (FRESHWATER)
Revenue,Public Health,Public Health,Substance Misuse,5105662140,09.02.2018,Drug Misuse Adult- Treatment,Payment to Private Contractors,30.00,BOOTS UK LTD (FRESHWATER)
Revenue,Public Health,Public Health,Substance Misuse,5105662751,16.02.2018,Drug Misuse Adult- Treatment,Payment to Private Contractors,2.00,BOOTS UK LTD (FRESHWATER)
Revenue,Public Health,Public Health,Substance Misuse,5105662751,16.02.2018,Drug Misuse Adult- Treatment,Payment to Private Contractors,20.58,BOOTS UK LTD (FRESHWATER)
Revenue,Public Health,Public Health,Sexual Health,5105662140,09.02.2018,Contraception,Payment to Private Contractors,21.50,BOOTS UK LTD (FRESHWATER)
Revenue,Public Health,Public Health,Sexual Health,5105662140,09.02.2018,Contraception,Payment to Private Contractors,5.20,BOOTS UK LTD (FRESHWATER)
Revenue,Public Health,Public Health,Sexual Health,5105662140,09.02.2018,Contraception,Payment to Private Contractors,14.05,BOOTS UK LTD (FRESHWATER)
Revenue,Public Health,Public Health,Substance Misuse,5105661721,07.02.2018,Drug Misuse Adult- Treatment,Payment to Private Contractors,30.00,BOOTS UK LTD (NEWPORT)
Revenue,Public Health,Public Health,Substance Misuse,5105661721,07.02.2018,Drug Misuse Adult- Treatment,Payment to Private Contractors,314.00,BOOTS UK LTD (NEWPORT)
Revenue,Public Health,Public Health,Substance Misuse,5105661721,07.02.2018,Drug Misuse Adult- Treatment,Payment to Private Contractors,161.00,BOOTS UK LTD (NEWPORT)
Revenue,Public Health,Public Health,Sexual Health,5105661721,07.02.2018,Contraception,Payment to Private Contractors,295.05,BOOTS UK LTD (NEWPORT)
Revenue,Public Health,Public Health,Sexual Health,5105661721,07.02.2018,Contraception,Payment to Private Contractors,52.00,BOOTS UK LTD (NEWPORT)
Revenue,Public Health,Public Health,Sexual Health,5105661721,07.02.2018,Contraception,Payment to Private Contractors,688.00,BOOTS UK LTD (NEWPORT)
Revenue,Public Health,Public Health,Substance Misuse,5105661738,07.02.2018,Drug Misuse Adult- Treatment,Payment to Private Contractors,98.00,BOOTS UK LTD (SANDOWN LARGE STORE)
Revenue,Public Health,Public Health,Substance Misuse,5105661738,07.02.2018,Drug Misuse Adult- Treatment,Payment to Private Contractors,30.00,BOOTS UK LTD (SANDOWN LARGE STORE)
Revenue,Public Health,Public Health,Sexual Health,5105661738,07.02.2018,Contraception,Payment to Private Contractors,10.40,BOOTS UK LTD (SANDOWN LARGE STORE)
Revenue,Public Health,Public Health,Sexual Health,5105661738,07.02.2018,Contraception,Payment to Private Contractors,28.10,BOOTS UK LTD (SANDOWN LARGE STORE)
Revenue,Public Health,Public Health,Sexual Health,5105661738,07.02.2018,Contraception,Payment to Private Contractors,86.00,BOOTS UK LTD (SANDOWN LARGE STORE)
Revenue,Public Health,Public Health,Substance Misuse,5105661736,07.02.2018,Drug Misuse Adult- Treatment,Payment to Private Contractors,138.00,BOOTS UK LTD (SHANKLIN)
Revenue,Public Health,Public Health,Substance Misuse,5105661736,07.02.2018,Drug Misuse Adult- Treatment,Payment to Private Contractors,30.00,BOOTS UK LTD (SHANKLIN)
Revenue,Public Health,Public Health,Sexual Health,5105661736,07.02.2018,Contraception,Payment to Private Contractors,21.50,BOOTS UK LTD (SHANKLIN)
Revenue,Public Health,Public Health,Sexual Health,5105661736,07.02.2018,Contraception,Payment to Private Contractors,14.05,BOOTS UK LTD (SHANKLIN)
Revenue,Public Health,Public Health,Substance Misuse,5105662119,09.02.2018,Drug Misuse Adult- Treatment,Payment to Private Contractors,35.00,BOOTS UK LTD (TOWER HOUSE)
Revenue,Public Health,Public Health,Substance Misuse,5105662119,09.02.2018,Drug Misuse Adult- Treatment,Payment to Private Contractors,114.00,BOOTS UK LTD (TOWER HOUSE)
Revenue,Public Health,Public Health,Substance Misuse,5105662119,09.02.2018,Drug Misuse Adult- Treatment,Payment to Private Contractors,30.00,BOOTS UK LTD (TOWER HOUSE)
Revenue,Public Health,Public Health,Sexual Health,5105662119,09.02.2018,Contraception,Payment to Private Contractors,21.50,BOOTS UK LTD (TOWER HOUSE)
Revenue,Public Health,Public Health,Sexual Health,5105662119,09.02.2018,Contraception,Payment to Private Contractors,14.05,BOOTS UK LTD (TOWER HOUSE)
Revenue,Public Health,Public Health,Smoking & Tobacco,5105662740,16.02.2018,Stop Smoking Services & Interventions,Payment to Private Contractors,4.00,BOOTS UK LTD
Revenue,Public Health,Public Health,Smoking & Tobacco,5105662740,16.02.2018,Stop Smoking Services & Interventions,Payment to Private Contractors,21.97,BOOTS UK LTD
Revenue,Public Health,Public Health,Substance Misuse,5105661735,07.02.2018,Drug Misuse Adult- Treatment,Payment to Private Contractors,28.00,BOOTS UK LTD
Revenue,Public Health,Public Health,Substance Misuse,5105661735,07.02.2018,Drug Misuse Adult- Treatment,Payment to Private Contractors,200.00,BOOTS UK LTD
Revenue,Public Health,Public Health,Substance Misuse,5105661735,07.02.2018,Drug Misuse Adult- Treatment,Payment to Private Contractors,30.00,BOOTS UK LTD
Revenue,Public Health,Public Health,Sexual Health,5105661735,07.02.2018,Contraception,Payment to Private Contractors,43.00,BOOTS UK LTD
Revenue,Public Health,Public Health,Sexual Health,5105661735,07.02.2018,Contraception,Payment to Private Contractors,28.10,BOOTS UK LTD
Revenue,Public Health,Public Health,Substance Misuse,5105661751,07.02.2018,Drug Misuse Adult- Treatment,Payment to Private Contractors,18.00,BOOTS UK LTD (YLB BEMBRIDGE)
Revenue,Public Health,Public Health,Substance Misuse,5105661751,07.02.2018,Drug Misuse Adult- Treatment,Payment to Private Contractors,30.00,BOOTS UK LTD (YLB BEMBRIDGE)
Revenue,Childrens Services,Children's & Education Services,Family Support Services,5105661600,02.02.2018,S17 Child Protection,Professional Services,479.89,BOSTICO INTERNATIONAL
Revenue,Childrens Services,Children's & Education Services,Family Support Services,5105661149,02.02.2018,S17 Child Protection,Professional Services,270.81,BOSTICO INTERNATIONAL
Revenue,Place,Environmental & Regulatory Services,Flood Defence and Land Drainage,5105662817,16.02.2018,"Flood Grant, Planning",Payment to Private Contractors,"-3,000.00",BOURNEMOUTH UNIVERSITY
Revenue,Place,Environmental & Regulatory Services,Flood Defence and Land Drainage,5105662818,16.02.2018,"Flood Grant, Planning",Payment to Private Contractors,"3,000.00",BOURNEMOUTH UNIVERSITY
Revenue,Place,Environmental & Regulatory Services,Flood Defence and Land Drainage,5105662819,16.02.2018,"Flood Grant, Planning",Payment to Private Contractors,"-3,000.00",BOURNEMOUTH UNIVERSITY
Revenue,Place,Environmental & Regulatory Services,Flood Defence and Land Drainage,5105658903,16.02.2018,"Flood Grant, Planning",Payment to Private Contractors,"6,762.00",BOURNEMOUTH UNIVERSITY
Revenue,Place,Environmental & Regulatory Services,Flood Defence and Land Drainage,5105661117,16.02.2018,"Flood Grant, Planning",Payment to Private Contractors,"7,262.00",BOURNEMOUTH UNIVERSITY
Revenue,Place,Environmental & Regulatory Services,Flood Defence and Land Drainage,5105661647,16.02.2018,"Flood Grant, Planning",Payment to Private Contractors,"-6,762.00",BOURNEMOUTH UNIVERSITY
Revenue,Place,Environmental & Regulatory Services,Flood Defence and Land Drainage,5105661682,05.02.2018,"Flood Grant, Planning",Payment to Private Contractors,"2,500.00",BOURNEMOUTH UNIVERSITY
Revenue,Place,Environmental & Regulatory Services,Flood Defence and Land Drainage,5105661683,05.02.2018,"Flood Grant, Planning",Payment to Private Contractors,"-2,500.00",BOURNEMOUTH UNIVERSITY
Revenue,Place,Environmental & Regulatory Services,Flood Defence and Land Drainage,5105661767,16.02.2018,"Flood Grant, Planning",Payment to Private Contractors,"2,500.00",BOURNEMOUTH UNIVERSITY
Revenue,Childrens Services,Children's & Education Services,Services for Young People,5105664106,28.02.2018,Youth Commissioning,Payments to Voluntary and Other Associations,960.46,BRADING COMMUNITY PARTNERSHIP
Revenue,Resources,Central Services,Support Services,5105662909,21.02.2018,Staff Benefits,Payment to Private Contractors,243.00,BRADING PRIMARY SCHOOL
Revenue,Place,Housing Services,Homelessness,5105662892,21.02.2018,Leaseholds by LA,Accommodation Costs - Leaseholder Payments,216.66,BRAMBLE LETTINGS
Revenue,Place,Housing Services,Homelessness,5105662892,21.02.2018,Leaseholds by LA,Accommodation Costs - Leaseholder Payments,281.66,BRAMBLE LETTINGS
Revenue,Place,Housing Services,Homelessness,5105662892,21.02.2018,Leaseholds by LA,Accommodation Costs - Leaseholder Payments,746.81,BRAMBLE LETTINGS
Revenue,Place,Housing Services,Homelessness,5105662892,21.02.2018,Leaseholds by LA,Accommodation Costs - Leaseholder Payments,746.81,BRAMBLE LETTINGS
Revenue,Place,Housing Services,Homelessness,5105662892,21.02.2018,Leaseholds by LA,Accommodation Costs - Leaseholder Payments,746.81,BRAMBLE LETTINGS
Revenue,Place,Housing Services,Homelessness,5105662892,21.02.2018,Leaseholds by LA,Accommodation Costs - Leaseholder Payments,746.81,BRAMBLE LETTINGS
Revenue,Place,Housing Services,Homelessness,5105662892,21.02.2018,Leaseholds by LA,Accommodation Costs - Leaseholder Payments,746.81,BRAMBLE LETTINGS
Revenue,Place,Housing Services,Homelessness,5105662892,21.02.2018,Leaseholds by LA,Accommodation Costs - Leaseholder Payments,746.81,BRAMBLE LETTINGS
Revenue,Place,Housing Services,Homelessness,5105662892,21.02.2018,Leaseholds by LA,Accommodation Costs - Leaseholder Payments,746.81,BRAMBLE LETTINGS
Revenue,Place,Housing Services,Homelessness,5105662892,21.02.2018,Leaseholds by LA,Accommodation Costs - Leaseholder Payments,746.81,BRAMBLE LETTINGS
Revenue,Place,Housing Services,Homelessness,5105662892,21.02.2018,Leaseholds by LA,Accommodation Costs - Leaseholder Payments,769.43,BRAMBLE LETTINGS
Revenue,Place,Housing Services,Homelessness,5105662892,21.02.2018,Leaseholds by LA,Accommodation Costs - Leaseholder Payments,746.81,BRAMBLE LETTINGS
Revenue,Place,Housing Services,Homelessness,5105662892,21.02.2018,Leaseholds by LA,Accommodation Costs - Leaseholder Payments,588.38,BRAMBLE LETTINGS
Revenue,Place,Housing Services,Homelessness,5105662892,21.02.2018,Leaseholds by LA,Accommodation Costs - Leaseholder Payments,746.81,BRAMBLE LETTINGS
Revenue,Place,Housing Services,Homelessness,5105662892,21.02.2018,Leaseholds by LA,Accommodation Costs - Leaseholder Payments,746.81,BRAMBLE LETTINGS
Revenue,Place,Housing Services,Homelessness,5105662892,21.02.2018,Leaseholds by LA,Accommodation Costs - Leaseholder Payments,746.81,BRAMBLE LETTINGS
Revenue,Place,Housing Services,Homelessness,5105662892,21.02.2018,Leaseholds by LA,Accommodation Costs - Leaseholder Payments,746.81,BRAMBLE LETTINGS
Revenue,Place,Housing Services,Homelessness,5105662892,21.02.2018,Leaseholds by LA,Accommodation Costs - Leaseholder Payments,746.81,BRAMBLE LETTINGS
Revenue,Place,Housing Services,Homelessness,5105662892,21.02.2018,Leaseholds by LA,Accommodation Costs - Leaseholder Payments,746.81,BRAMBLE LETTINGS
Revenue,Place,Housing Services,Homelessness,5105662892,21.02.2018,Leaseholds by LA,Accommodation Costs - Leaseholder Payments,588.38,BRAMBLE LETTINGS
Revenue,Place,Housing Services,Homelessness,5105662892,21.02.2018,Leaseholds by LA,Accommodation Costs - Leaseholder Payments,588.38,BRAMBLE LETTINGS
Revenue,Place,Housing Services,Homelessness,5105662892,21.02.2018,Leaseholds by LA,Accommodation Costs - Leaseholder Payments,588.38,BRAMBLE LETTINGS
Revenue,Place,Housing Services,Homelessness,5105662892,21.02.2018,Leaseholds by LA,Accommodation Costs - Leaseholder Payments,588.38,BRAMBLE LETTINGS
Revenue,Place,Housing Services,Homelessness,5105662892,21.02.2018,Leaseholds by LA,Accommodation Costs - Leaseholder Payments,588.38,BRAMBLE LETTINGS
Revenue,Place,Environmental & Regulatory Services,(Street) Cleansing (not highways),5105664045,28.02.2018,Beach Cleaning,Payment to Private Contractors,115.00,BRIGHSTONE LANDSCAPING LTD
Revenue,Place,Environmental & Regulatory Services,(Street) Cleansing (not highways),5105663750,28.02.2018,Beach Cleaning,Beach Cleansing Contractors,"1,140.00",BRIGHSTONE LANDSCAPING LTD
Revenue,Place,Environmental & Regulatory Services,(Street) Cleansing (not highways),5105661503,02.02.2018,Beach Cleaning,Payment to Private Contractors,414.70,BRIGHSTONE LANDSCAPING LTD
Revenue,Place,Environmental & Regulatory Services,(Street) Cleansing (not highways),5105662424,14.02.2018,Beach Cleaning,Payment to Private Contractors,25.18,BRIGHSTONE LANDSCAPING LTD
Revenue,Place,Environmental & Regulatory Services,(Street) Cleansing (not highways),5105662424,14.02.2018,Beach Cleaning,Payment to Private Contractors,"1,274.66",BRIGHSTONE LANDSCAPING LTD
Revenue,Place,Cultural and Related Services,Open Spaces,5105662426,14.02.2018,John O�Conner Grounds Maintenance Contract,Payment to Private Contractors,170.00,BRIGHSTONE LANDSCAPING LTD
Revenue,Place,Environmental & Regulatory Services,Coast Protection,5105662691,16.02.2018,Coast Protection,Payment to Private Contractors,60.00,BRIGHSTONE LANDSCAPING LTD
Revenue,Place,Environmental & Regulatory Services,Coast Protection,5105662689,16.02.2018,Coast Protection,Payment to Private Contractors,110.00,BRIGHSTONE LANDSCAPING LTD
Revenue,Place,Environmental & Regulatory Services,Coast Protection,5105663362,23.02.2018,Coast Protection,Payment to Private Contractors,"1,692.00",BRIGHSTONE LANDSCAPING LTD
Revenue,Place,Environmental & Regulatory Services,Coast Protection,5105664047,28.02.2018,Coast Protection,Payment to Private Contractors,750.00,BRIGHSTONE LANDSCAPING LTD
Revenue,Place,Cultural and Related Services,Open Spaces,5105661516,09.02.2018,Allotments,Payment to Private Contractors,"2,564.00",BRIGHSTONE LANDSCAPING LTD
Revenue,Place,Cultural and Related Services,Recreation and Sport,5105661503,02.02.2018,Misc dinghy parks,Payment to Private Contractors,24.70,BRIGHSTONE LANDSCAPING LTD
Revenue,Place,Cultural and Related Services,Open Spaces,5105661503,02.02.2018,Public Shelters - Ryde,Payment to Private Contractors,210.60,BRIGHSTONE LANDSCAPING LTD
Revenue,Place,Environmental & Regulatory Services,Service Management and Support Services,5105662424,14.02.2018,Environment officers,Payment to Private Contractors,25.18,BRIGHSTONE LANDSCAPING LTD
Revenue,Place,Cultural and Related Services,Recreation and Sport,5105664109,28.02.2018,Beach Safety & Inspection / Beach Awards,Payment to Private Contractors,40.00,BRIGHSTONE LANDSCAPING LTD
Revenue,Place,Cultural and Related Services,Recreation and Sport,5105661502,02.02.2018,Beach Safety & Inspection / Beach Awards,Payment to Private Contractors,50.00,BRIGHSTONE LANDSCAPING LTD
Revenue,Adult Services,Adult Social Care,Assistive Equipment & Technology,5105662413,14.02.2018,Community Equipment Store,Payments to Voluntary and Other Associations,"41,342.50",BRITISH RED CROSS SOCIETY
Revenue,Adult Services,Adult Social Care,Assistive Equipment & Technology,5105662414,14.02.2018,Community Equipment Store,Payments to Voluntary and Other Associations,"-41,342.50",BRITISH RED CROSS SOCIETY
Revenue,Adult Services,Adult Social Care,Assistive Equipment & Technology,5105662410,13.02.2018,Community Equipment Store,Payments to Voluntary and Other Associations,"41,342.50",BRITISH RED CROSS SOCIETY
Revenue,Adult Services,Adult Social Care,Assistive Equipment & Technology,5105662409,13.02.2018,Community Equipment Store,Payment to Private Contractors,"3,569.69",BRITISH RED CROSS SOCIETY
Revenue,Adult Services,Adult Social Care,Assistive Equipment & Technology,5105662411,14.02.2018,Community Equipment Store,Payment to Private Contractors,"3,569.69",BRITISH RED CROSS SOCIETY
Revenue,Adult Services,Adult Social Care,Assistive Equipment & Technology,5105662412,14.02.2018,Community Equipment Store,Payment to Private Contractors,"-3,569.69",BRITISH RED CROSS SOCIETY
Revenue,Adult Services,Adult Social Care,Learning Disability Suppt-adults (18-64),5105662901,21.02.2018,Learning Disability Residential 18-64,Charges from Independent Providers,"6,840.12",BROADHAM CARE LTD
Revenue,Adult Services,Adult Social Care,Social Support -Substance Misuse Support,5105661560,07.02.2018,Substance Misuse Other ST Support,Charges from Independent Providers,465.50,BROADREACH HOUSE
Revenue,Public Health,Public Health,Substance Misuse,5105663354,21.02.2018,Drug Misuse Adult- Treatment,Payments to Voluntary and Other Associations,"2,184.29",BROADREACH HOUSE
Revenue,Public Health,Public Health,Substance Misuse,5105663355,21.02.2018,Drug Misuse Adult- Treatment,Payments to Voluntary and Other Associations,"1,985.71",BROADREACH HOUSE
Revenue,Public Health,Public Health,Substance Misuse,5105663356,21.02.2018,Drug Misuse Adult- Treatment,Payments to Voluntary and Other Associations,557.36,BROADREACH HOUSE
Revenue,Public Health,Public Health,NHS Health Check Programme,5105662121,09.02.2018,NHS Health Check Programme,Payment to Private Contractors,"1,609.00",BROOKSIDE HEALTH CENTRE
Capital,Resources,Capital,Capital,5105663296,21.02.2018,Management of Asbestos,Payment to Contractors - Capital,"4,320.00",BSS SOUTHAMPTON
Revenue,Resources,Central Services,Support Services,5105662107,14.02.2018,Telecommunications,Fixed Telephones,"1,099.63",BTS HOLDINGS PLC
Capital,Corporate Items,Balance Sheet,Balance Sheet,5105662959,21.02.2018,Balance Sheet,Order Settlement to Bal Sht GL,92.12,BUCKLAND CARE LTD
Revenue,Adult Services,Adult Social Care,Sensory Support - older people (65+),5105662959,21.02.2018,Sensory Support Residential 65+,Charges from Independent Providers,"1,862.00",BUCKLAND CARE LTD
Revenue,Adult Services,Adult Social Care,Physical Support - older people (65+),5105663320,21.02.2018,Physical Support Residential 65+,Charges from Independent Providers,997.50,BUCKLAND CARE LTD
Revenue,Adult Services,Adult Social Care,Physical Support - older people (65+),5105664100,28.02.2018,Physical Support Residential 65+,Charges from Independent Providers,"1,500.10",BUCKLAND CARE LTD
Revenue,Adult Services,Adult Social Care,Physical Support - older people (65+),5105663987,28.02.2018,Physical Support Residential 65+,Charges from Independent Providers,857.20,BUCKLAND CARE LTD
Revenue,Adult Services,Adult Social Care,Physical Support - older people (65+),5105663987,28.02.2018,Physical Support Residential 65+,Charges from Independent Providers,532.00,BUCKLAND CARE LTD
Revenue,Adult Services,Adult Social Care,Physical Support - older people (65+),5105662773,16.02.2018,Physical Support Residential 65+,Charges from Independent Providers,655.04,BUCKLAND CARE LTD
Revenue,Adult Services,Adult Social Care,Physical Support - older people (65+),5105662959,21.02.2018,Physical Support Residential 65+,Charges from Independent Providers,"1,950.20",BUCKLAND CARE LTD
Revenue,Adult Services,Adult Social Care,Support - Memory /Cognition-older people (65+),5105662959,21.02.2018,Memory & Cognition Residential 65+,Charges from Independent Providers,"1,950.20",BUCKLAND CARE LTD
Revenue,Adult Services,Adult Social Care,Physical Support - older people (65+),5105662959,21.02.2018,Physical Support Residential 65+,Charges from Independent Providers,"1,862.00",BUCKLAND CARE LTD
Revenue,Adult Services,Adult Social Care,Physical Support - older people (65+),5105662959,21.02.2018,Physical Support Residential 65+,Charges from Independent Providers,"2,292.64",BUCKLAND CARE LTD
Revenue,Adult Services,Adult Social Care,Physical Support - older people (65+),5105662959,21.02.2018,Physical Support Residential 65+,Charges from Independent Providers,"1,950.20",BUCKLAND CARE LTD
Revenue,Adult Services,Adult Social Care,Support - Memory /Cognition-older people (65+),5105662959,21.02.2018,Memory & Cognition Residential 65+,Charges from Independent Providers,"2,292.64",BUCKLAND CARE LTD
Revenue,Adult Services,Adult Social Care,Physical Support - older people (65+),5105662959,21.02.2018,Physical Support Residential 65+,Charges from Independent Providers,"2,210.76",BUCKLAND CARE LTD
Revenue,Adult Services,Adult Social Care,Support - Memory /Cognition-older people (65+),5105662959,21.02.2018,Memory & Cognition Residential 65+,Charges from Independent Providers,"2,292.64",BUCKLAND CARE LTD
Revenue,Adult Services,Adult Social Care,Support - Memory /Cognition-older people (65+),5105662959,21.02.2018,Memory & Cognition Residential 65+,Charges from Independent Providers,"1,950.20",BUCKLAND CARE LTD
Revenue,Adult Services,Adult Social Care,Support - Memory /Cognition-older people (65+),5105662959,21.02.2018,Memory & Cognition Residential 65+,Charges from Independent Providers,"1,950.20",BUCKLAND CARE LTD
